,Directorate,Supplier Name,Supplier Invoice No,Payment Date,Gross Invoice Value,Vat Amount,Vendor Id,Purpose of Expenditure,Description,Redact flag,Year,Period
1,Community and Housing,SOUTHPARK RESIDENTIAL HOME,916098,05-Jan-23,11040,0,19,Older People Placements - East,321017              Nursing & Residential Care Homes,A,2022,10
2,Community and Housing,SOUTHPARK RESIDENTIAL HOME,916109,05-Jan-23,2185.22,0,19,Older People Placements - East,321017              Nursing & Residential Care Homes,A,2022,10
3,Community and Housing,SOUTHPARK RESIDENTIAL HOME,921722,19-Jan-23,9685.2,0,19,Older People Placements - East,321017              Nursing & Residential Care Homes,A,2022,10
4,Community and Housing,SOUTHPARK RESIDENTIAL HOME,921841,19-Jan-23,1035.1,0,19,Older People Placements - East,321017              Nursing & Residential Care Homes,A,2022,10
5,Community and Housing,SOUTHPARK RESIDENTIAL HOME,922079,19-Jan-23,2965.2,0,19,Older People Placements - East,321017              Nursing & Residential Care Homes,A,2022,10
6,"Children, Schools and Family",MORE HOUSE SCHOOL,LEUTERTOLIVER,20-Jan-23,6912,0,345,Non-Delegated Statements,170000              Education,A,2022,10
7,"Children, Schools and Family",MORE HOUSE SCHOOL,29827,30-Jan-23,6912,0,345,Non-Delegated Statements,170000              Education,A,2022,10
8,"Children, Schools and Family",MORE HOUSE SCHOOL,EMBER 2022MERT,20-Jan-23,6093,0,345,Non-Delegated Statements,170000              Education,A,2022,10
9,"Children, Schools and Family",MORE HOUSE SCHOOL,29657,20-Jan-23,6295,0,345,Non-Delegated Statements,170000              Education,A,2022,10
10,"Children, Schools and Family",MORE HOUSE SCHOOL,29661,20-Jan-23,6295,0,345,Non-Delegated Statements,170000              Education,A,2022,10
11,"Children, Schools and Family",MORE HOUSE SCHOOL,29686,20-Jan-23,6912,0,345,Non-Delegated Statements,170000              Education,A,2022,10
12,"Children, Schools and Family",MORE HOUSE SCHOOL,29408,20-Jan-23,6295,0,345,Non-Delegated Statements,170000              Education,A,2022,10
13,"Children, Schools and Family",MORE HOUSE SCHOOL,29708,20-Jan-23,9932,0,345,SEN Residential (DSG),170000              Education,A,2022,10
14,"Children, Schools and Family",MORE HOUSE SCHOOL,29650,20-Jan-23,9932,0,345,SEN Residential (DSG),170000              Education,A,2022,10
15,Community and Housing,ST TERESA`S HOME FOR THE ELDERLY,922064,19-Jan-23,2443.16,0,362,Older People Placements - East,321017              Nursing & Residential Care Homes,A,2022,10
16,Community and Housing,THE WHITE HOUSE NURSING HOME,922057,19-Jan-23,3396,0,611,Older People Placements - East,321000              Social Community Care Supplies & Services - Adult,A,2022,10
17,"Children, Schools and Family",BLOSSOM HOUSE SCHOOL,P3 23 UPFRONT,20-Jan-23,1040.26,0,777,EARLY YEARS NURSERY GRANTS,170000              Education,A,2022,10
18,"Children, Schools and Family",BLOSSOM HOUSE SCHOOL,8938,16-Jan-23,15950,0,777,Non-Delegated Statements,170000              Education,A,2022,10
19,"Children, Schools and Family",BLOSSOM HOUSE SCHOOL,8945,16-Jan-23,15950,0,777,Non-Delegated Statements,170000              Education,A,2022,10
20,"Children, Schools and Family",BLOSSOM HOUSE SCHOOL,8952,16-Jan-23,12750,0,777,Non-Delegated Statements,170000              Education,A,2022,10
21,"Children, Schools and Family",BLOSSOM HOUSE SCHOOL,8959,16-Jan-23,12350,0,777,Non-Delegated Statements,170000              Education,A,2022,10
22,"Children, Schools and Family",BLOSSOM HOUSE SCHOOL,8967,16-Jan-23,17250,0,777,Non-Delegated Statements,170000              Education,A,2022,10
23,"Children, Schools and Family",BLOSSOM HOUSE SCHOOL,8937,16-Jan-23,13150,0,777,Non-Delegated Statements,170000              Education,A,2022,10
24,"Children, Schools and Family",BLOSSOM HOUSE SCHOOL,8944,16-Jan-23,15950,0,777,Non-Delegated Statements,170000              Education,A,2022,10
25,"Children, Schools and Family",BLOSSOM HOUSE SCHOOL,8951,16-Jan-23,13750,0,777,Non-Delegated Statements,170000              Education,A,2022,10
26,"Children, Schools and Family",BLOSSOM HOUSE SCHOOL,8958,16-Jan-23,15250,0,777,Non-Delegated Statements,170000              Education,A,2022,10
27,"Children, Schools and Family",BLOSSOM HOUSE SCHOOL,8966,16-Jan-23,13150,0,777,Non-Delegated Statements,170000              Education,A,2022,10
28,"Children, Schools and Family",BLOSSOM HOUSE SCHOOL,8936,16-Jan-23,12350,0,777,Non-Delegated Statements,170000              Education,A,2022,10
29,"Children, Schools and Family",BLOSSOM HOUSE SCHOOL,8943,16-Jan-23,16750,0,777,Non-Delegated Statements,170000              Education,A,2022,10
30,"Children, Schools and Family",BLOSSOM HOUSE SCHOOL,8950,16-Jan-23,11878,0,777,Non-Delegated Statements,170000              Education,A,2022,10
31,"Children, Schools and Family",BLOSSOM HOUSE SCHOOL,8957,16-Jan-23,17250,0,777,Non-Delegated Statements,170000              Education,A,2022,10
32,"Children, Schools and Family",BLOSSOM HOUSE SCHOOL,8965,16-Jan-23,15250,0,777,Non-Delegated Statements,170000              Education,A,2022,10
33,"Children, Schools and Family",BLOSSOM HOUSE SCHOOL,8942,16-Jan-23,14450,0,777,Non-Delegated Statements,170000              Education,A,2022,10
34,"Children, Schools and Family",BLOSSOM HOUSE SCHOOL,8949,16-Jan-23,14850,0,777,Non-Delegated Statements,170000              Education,A,2022,10
35,"Children, Schools and Family",BLOSSOM HOUSE SCHOOL,8956,16-Jan-23,12750,0,777,Non-Delegated Statements,170000              Education,A,2022,10
36,"Children, Schools and Family",BLOSSOM HOUSE SCHOOL,8964,16-Jan-23,16750,0,777,Non-Delegated Statements,170000              Education,A,2022,10
37,"Children, Schools and Family",BLOSSOM HOUSE SCHOOL,8941,16-Jan-23,15250,0,777,Non-Delegated Statements,170000              Education,A,2022,10
38,"Children, Schools and Family",BLOSSOM HOUSE SCHOOL,8948,16-Jan-23,16750,0,777,Non-Delegated Statements,170000              Education,A,2022,10
39,"Children, Schools and Family",BLOSSOM HOUSE SCHOOL,8955,16-Jan-23,16750,0,777,Non-Delegated Statements,170000              Education,A,2022,10
40,"Children, Schools and Family",BLOSSOM HOUSE SCHOOL,8962,16-Jan-23,15950,0,777,Non-Delegated Statements,170000              Education,A,2022,10
41,"Children, Schools and Family",BLOSSOM HOUSE SCHOOL,8940,16-Jan-23,15250,0,777,Non-Delegated Statements,170000              Education,A,2022,10
42,"Children, Schools and Family",BLOSSOM HOUSE SCHOOL,8947,16-Jan-23,14850,0,777,Non-Delegated Statements,170000              Education,A,2022,10
43,"Children, Schools and Family",BLOSSOM HOUSE SCHOOL,8954,16-Jan-23,12350,0,777,Non-Delegated Statements,170000              Education,A,2022,10
44,"Children, Schools and Family",BLOSSOM HOUSE SCHOOL,8961,16-Jan-23,14450,0,777,Non-Delegated Statements,170000              Education,A,2022,10
45,"Children, Schools and Family",BLOSSOM HOUSE SCHOOL,8939,16-Jan-23,17250,0,777,Non-Delegated Statements,170000              Education,A,2022,10
46,"Children, Schools and Family",BLOSSOM HOUSE SCHOOL,8946,16-Jan-23,16750,0,777,Non-Delegated Statements,170000              Education,A,2022,10
47,"Children, Schools and Family",BLOSSOM HOUSE SCHOOL,8953,16-Jan-23,15250,0,777,Non-Delegated Statements,170000              Education,A,2022,10
48,"Children, Schools and Family",BLOSSOM HOUSE SCHOOL,8960,16-Jan-23,16750,0,777,Non-Delegated Statements,170000              Education,A,2022,10
49,"Children, Schools and Family",BLOSSOM HOUSE SCHOOL,8968,16-Jan-23,15950,0,777,Non-Delegated Statements,170000              Education,A,2022,10
50,"Children, Schools and Family",BLOSSOM HOUSE SCHOOL,8983,16-Jan-23,20583.33,0,777,Non-Delegated Statements,170000              Education,A,2022,10
51,"Children, Schools and Family",BLOSSOM HOUSE SCHOOL,8990,16-Jan-23,14850,0,777,Non-Delegated Statements,170000              Education,A,2022,10
52,"Children, Schools and Family",BLOSSOM HOUSE SCHOOL,8997,16-Jan-23,20000,0,777,Non-Delegated Statements,170000              Education,A,2022,10
53,"Children, Schools and Family",BLOSSOM HOUSE SCHOOL,8975,16-Jan-23,15250,0,777,Non-Delegated Statements,170000              Education,A,2022,10
54,"Children, Schools and Family",BLOSSOM HOUSE SCHOOL,8982,16-Jan-23,12350,0,777,Non-Delegated Statements,170000              Education,A,2022,10
55,"Children, Schools and Family",BLOSSOM HOUSE SCHOOL,8989,16-Jan-23,14450,0,777,Non-Delegated Statements,170000              Education,A,2022,10
56,"Children, Schools and Family",BLOSSOM HOUSE SCHOOL,8996,16-Jan-23,15250,0,777,Non-Delegated Statements,170000              Education,A,2022,10
57,"Children, Schools and Family",BLOSSOM HOUSE SCHOOL,8974,16-Jan-23,14350,0,777,Non-Delegated Statements,170000              Education,A,2022,10
58,"Children, Schools and Family",BLOSSOM HOUSE SCHOOL,8981,16-Jan-23,15950,0,777,Non-Delegated Statements,170000              Education,A,2022,10
59,"Children, Schools and Family",BLOSSOM HOUSE SCHOOL,8988,16-Jan-23,16750,0,777,Non-Delegated Statements,170000              Education,A,2022,10
60,"Children, Schools and Family",BLOSSOM HOUSE SCHOOL,8995,16-Jan-23,17250,0,777,Non-Delegated Statements,170000              Education,A,2022,10
61,"Children, Schools and Family",BLOSSOM HOUSE SCHOOL,8973,16-Jan-23,15950,0,777,Non-Delegated Statements,170000              Education,A,2022,10
62,"Children, Schools and Family",BLOSSOM HOUSE SCHOOL,8980,16-Jan-23,13150,0,777,Non-Delegated Statements,170000              Education,A,2022,10
63,"Children, Schools and Family",BLOSSOM HOUSE SCHOOL,8987,16-Jan-23,22500,0,777,Non-Delegated Statements,170000              Education,A,2022,10
64,"Children, Schools and Family",BLOSSOM HOUSE SCHOOL,8994,16-Jan-23,13150,0,777,Non-Delegated Statements,170000              Education,A,2022,10
65,"Children, Schools and Family",BLOSSOM HOUSE SCHOOL,8972,16-Jan-23,12350,0,777,Non-Delegated Statements,170000              Education,A,2022,10
66,"Children, Schools and Family",BLOSSOM HOUSE SCHOOL,8979,16-Jan-23,11950,0,777,Non-Delegated Statements,170000              Education,A,2022,10
67,"Children, Schools and Family",BLOSSOM HOUSE SCHOOL,8986,16-Jan-23,17250,0,777,Non-Delegated Statements,170000              Education,A,2022,10
68,"Children, Schools and Family",BLOSSOM HOUSE SCHOOL,8993,16-Jan-23,16750,0,777,Non-Delegated Statements,170000              Education,A,2022,10
69,"Children, Schools and Family",BLOSSOM HOUSE SCHOOL,9000,16-Jan-23,15950,0,777,Non-Delegated Statements,170000              Education,A,2022,10
70,"Children, Schools and Family",BLOSSOM HOUSE SCHOOL,8971,16-Jan-23,15250,0,777,Non-Delegated Statements,170000              Education,A,2022,10
71,"Children, Schools and Family",BLOSSOM HOUSE SCHOOL,8978,16-Jan-23,14450,0,777,Non-Delegated Statements,170000              Education,A,2022,10
72,"Children, Schools and Family",BLOSSOM HOUSE SCHOOL,8985,16-Jan-23,15950,0,777,Non-Delegated Statements,170000              Education,A,2022,10
73,"Children, Schools and Family",BLOSSOM HOUSE SCHOOL,8992,16-Jan-23,13150,0,777,Non-Delegated Statements,170000              Education,A,2022,10
74,"Children, Schools and Family",BLOSSOM HOUSE SCHOOL,8999,16-Jan-23,13150,0,777,Non-Delegated Statements,170000              Education,A,2022,10
75,"Children, Schools and Family",BLOSSOM HOUSE SCHOOL,8969,16-Jan-23,17250,0,777,Non-Delegated Statements,170000              Education,A,2022,10
76,"Children, Schools and Family",BLOSSOM HOUSE SCHOOL,8977,16-Jan-23,16750,0,777,Non-Delegated Statements,170000              Education,A,2022,10
77,"Children, Schools and Family",BLOSSOM HOUSE SCHOOL,8984,16-Jan-23,16750,0,777,Non-Delegated Statements,170000              Education,A,2022,10
78,"Children, Schools and Family",BLOSSOM HOUSE SCHOOL,8991,16-Jan-23,20000,0,777,Non-Delegated Statements,170000              Education,A,2022,10
79,"Children, Schools and Family",BLOSSOM HOUSE SCHOOL,8998,16-Jan-23,17250,0,777,Non-Delegated Statements,170000              Education,A,2022,10
80,"Children, Schools and Family",BLOSSOM HOUSE SCHOOL,8976,16-Jan-23,15950,0,777,Non-Delegated Statements,170000              Education,A,2022,10
81,"Children, Schools and Family",BLOSSOM HOUSE SCHOOL,9005,16-Jan-23,16750,0,777,Non-Delegated Statements,170000              Education,A,2022,10
82,"Children, Schools and Family",BLOSSOM HOUSE SCHOOL,9004,16-Jan-23,12350,0,777,Non-Delegated Statements,170000              Education,A,2022,10
83,"Children, Schools and Family",BLOSSOM HOUSE SCHOOL,9003,16-Jan-23,12750,0,777,Non-Delegated Statements,170000              Education,A,2022,10
84,"Children, Schools and Family",BLOSSOM HOUSE SCHOOL,9002,16-Jan-23,13150,0,777,Non-Delegated Statements,170000              Education,A,2022,10
85,"Children, Schools and Family",BLOSSOM HOUSE SCHOOL,9009,16-Jan-23,17250,0,777,Non-Delegated Statements,170000              Education,A,2022,10
86,"Children, Schools and Family",BLOSSOM HOUSE SCHOOL,9008,16-Jan-23,17250,0,777,Non-Delegated Statements,170000              Education,A,2022,10
87,"Children, Schools and Family",BLOSSOM HOUSE SCHOOL,9007,16-Jan-23,17250,0,777,Non-Delegated Statements,170000              Education,A,2022,10
88,"Children, Schools and Family",BLOSSOM HOUSE SCHOOL,9006,16-Jan-23,17250,0,777,Non-Delegated Statements,170000              Education,A,2022,10
89,"Children, Schools and Family",BLOSSOM HOUSE SCHOOL,9161,17-Jan-23,7166.66,0,777,Non-Delegated Statements,170000              Education,A,2022,10
90,"Children, Schools and Family",BLOSSOM HOUSE SCHOOL,8970,17-Jan-23,19575,0,777,Non-Delegated Statements,170000              Education,A,2022,10
91,Corporate Services,Quadient,807646134,19-Jan-23,1925.07,0,793,Legal Shared Service,300000              Mail Services,A,2022,10
92,Corporate Services,Quadient,92973784,18-Jan-23,854.9,142.48,793,Electoral Registration,300000              Mail Services,A,2022,10
93,Unassigned,PERSEID SCHOOL,SCHOOLS 2223/10,06-Jan-23,795160.75,0,983,Schools,170000              Education,A,2022,10
94,"Children, Schools and Family",PERSEID SCHOOL,PER10CFADVANCE,19-Jan-23,200000,0,983,Delegated Special Schools,170000              Education,A,2022,10
95,Community and Housing,MOUNT CARMEL HOSTEL,917673,17-Jan-23,2430,0,1053,Substance Misuse Placements,321017              Nursing & Residential Care Homes,A,2022,10
96,Community and Housing,MOUNT CARMEL HOSTEL,921971,19-Jan-23,3240,0,1053,Substance Misuse Placements,321017              Nursing & Residential Care Homes,A,2022,10
97,Community and Housing,SUTTON NURSING HOMES LTD,921675,19-Jan-23,3056.44,0,1208,Older People Placements - East,321017              Nursing & Residential Care Homes,A,2022,10
98,Community and Housing,SUTTON NURSING HOMES LTD,921759,19-Jan-23,3087.16,0,1208,Older People Placements - East,321017              Nursing & Residential Care Homes,A,2022,10
99,Environment and Regeneration,LONDON BOROUGH OF CROYDON,3019812,16-Jan-23,457428.22,74765.58,1258,PARK OPERATIONS,OLA,A,2022,10
100,Environment and Regeneration,RICS BUSINESS SERVICE LTD,0103243 2023,09-Jan-23,539,0,1350,Property Mgt & Review,200000              Financial Services,A,2022,10
101,Environment and Regeneration,RICS BUSINESS SERVICE LTD,1123493 2023,09-Jan-23,539,0,1350,Property Mgt & Review,200000              Financial Services,A,2022,10
102,Corporate Services,L.B OF RICHMOND UPON THAMES,RC376792128MO9D,23-Jan-23,3522.2,0,1353,SLLP Client Income,OLA,A,2022,10
103,Unassigned,MELROSE SPECIAL SCHOOL,SCHOOLS 2223/10,06-Jan-23,575859.25,0,1393,Schools,170000              Education,A,2022,10
104,Unassigned,WILLIAM MORRIS PRIMARY SCHOOL,SCHOOLS 2223/10,06-Jan-23,290964.62,0,1416,Schools,170000              Education,A,2022,10
105,Unassigned,ST THOMAS OF CANTERBURY PRIMARY,SCHOOLS 2223/10,06-Jan-23,387948.35,0,1418,Schools,170000              Education,A,2022,10
106,Unassigned,ST THOMAS OF CANTERBURY PRIMARY,22LMPE000004,25-Jan-23,4119.01,0,1418,Corporate Services,170000              Education,A,2022,10
107,Unassigned,PRIORY C OF E MIDDLE SCHOOL,SCHOOLS 2223/10,06-Jan-23,188655.37,0,1420,Schools,170000              Education,A,2022,10
108,Unassigned,LIBERTY PRIMARY SCHOOL,SCHOOLS 2223/10,06-Jan-23,377981.53,0,1424,Schools,170000              Education,A,2022,10
109,Unassigned,HILLCROSS PRIMARY SCHOOL,SCHOOLS 2223/10,06-Jan-23,349350.98,0,1425,Schools,170000              Education,A,2022,10
110,Unassigned,CRANMER PRIMARY SCHOOL,SCHOOLS 2223/10,06-Jan-23,502198.15,0,1426,Schools,170000              Education,A,2022,10
111,Unassigned,WIMBLEDON COLLEGE SCHOOL,SCHOOLS 2223/10,06-Jan-23,1027313.64,0,1428,Schools,170000              Education,A,2022,10
112,Unassigned,URSULINE HIGH SCHOOL,SCHOOLS 2223/10,06-Jan-23,1158841.57,0,1429,Schools,170000              Education,A,2022,10
113,"Children, Schools and Family",URSULINE HIGH SCHOOL,HAFAUT22-HCP1,17-Jan-23,1380,0,1429,Holiday Act Food Prog grntfnd,170000              Education,A,2022,10
114,Unassigned,RUTLISH SCHOOL,SCHOOLS 2223/10,06-Jan-23,1308156.33,0,1431,Schools,170000              Education,A,2022,10
115,Unassigned,RICARDS LODGE SECONDARY SCHOOL,SCHOOLS 2223/10,06-Jan-23,1288845.16,0,1433,Schools,170000              Education,A,2022,10
116,Unassigned,WIMBLEDON PARK PRIMARY SCHOOL,SCHOOLS 2223/10,06-Jan-23,406558.32,0,1436,Schools,170000              Education,A,2022,10
117,Unassigned,ST TERESA'S R C PRIMARY SCHOOL,SCHOOLS 2223/10,06-Jan-23,333250.34,0,1438,Schools,170000              Education,A,2022,10
118,Unassigned,ST MARYS CATHOLIC PRIMARY SCHOOL,SCHOOLS 2223/10,06-Jan-23,289050.99,0,1439,Schools,170000              Education,A,2022,10
119,Unassigned,ST MARKS PRIMARY SCHOOL,SCHOOLS 2223/10,06-Jan-23,218256.25,0,1440,Schools,170000              Education,A,2022,10
120,Unassigned,ST JOHN FISHER RC PRIMARY SCH.,SCHOOLS 2223/10,06-Jan-23,290860.41,0,1441,Schools,170000              Education,A,2022,10
121,Unassigned,SINGLEGATE PRIMARY SCHOOL,SCHOOLS 2223/10,06-Jan-23,478570.41,0,1442,Schools,170000              Education,A,2022,10
122,Unassigned,SHERWOOD PRIMARY SCHOOL,SCHOOLS 2223/10,06-Jan-23,300980.55,0,1443,Schools,170000              Education,A,2022,10
123,Unassigned,POPLAR PRIMARY SCHOOL,SCHOOLS 2223/10,06-Jan-23,516620.05,0,1444,Schools,170000              Education,A,2022,10
124,"Children, Schools and Family",POPLAR PRIMARY SCHOOL,POP04/1122AMEND,31-Jan-23,904.66,0,1444,School Improvement GeneralFund,170000              Education,A,2022,10
125,Unassigned,PELHAM PRIMARY SCHOOL,SCHOOLS 2223/10,06-Jan-23,314561.54,0,1445,Schools,170000              Education,A,2022,10
126,"Children, Schools and Family",PELHAM PRIMARY SCHOOL,EPERRYWARD110123,11-Jan-23,565,0,1445,PupilPremium- Virtual School,170000              Education,A,2022,10
127,Unassigned,MORDEN PRIMARY SCHOOL,SCHOOLS 2223/10,06-Jan-23,213149.44,0,1446,Schools,170000              Education,A,2022,10
128,Unassigned,MERTON PARK PRIMARY SCHOOL,SCHOOLS 2223/10,06-Jan-23,166038.07,0,1447,Schools,170000              Education,A,2022,10
129,Unassigned,MERTON ABBEY PRIMARY SCHOOL,SCHOOLS 2223/10,06-Jan-23,206554,0,1448,Schools,170000              Education,A,2022,10
130,Unassigned,LONESOME PRIMARY SCHOOL,SCHOOLS 2223/10,06-Jan-23,334409.95,0,1450,Schools,170000              Education,A,2022,10
131,Unassigned,LINKS PRIMARY SCHOOL,SCHOOLS 2223/10,06-Jan-23,320406.48,0,1451,Schools,170000              Education,A,2022,10
132,Unassigned,JOSEPH HOOD PRIMARY SCHOOL,SCHOOLS 2223/10,06-Jan-23,307597.67,0,1452,Schools,170000              Education,A,2022,10
133,"Children, Schools and Family",JOSEPH HOOD PRIMARY SCHOOL,JH-22/23-26,30-Jan-23,866,0,1452,MIASS Info Advice and Support,170000              Education,A,2022,10
134,Unassigned,HOLY TRINITY C OF E PRIMARY SCHOOL,SCHOOLS 2223/10,06-Jan-23,289121.43,0,1453,Schools,170000              Education,A,2022,10
135,Unassigned,HOLLYMOUNT PRIMARY SCHOOL,SCHOOLS 2223/10,06-Jan-23,299680.75,0,1454,Schools,170000              Education,A,2022,10
136,Unassigned,HATFEILD PRIMARY SCHOOL,SCHOOLS 2223/10,06-Jan-23,394400.74,0,1455,Schools,170000              Education,A,2022,10
137,Unassigned,HASLEMERE PRIMARY SCHOOL,SCHOOLS 2223/10,06-Jan-23,359260.7,0,1456,Schools,170000              Education,A,2022,10
138,Unassigned,GARFIELD PRIMARY SCHOOL,SCHOOLS 2223/10,06-Jan-23,278118.6,0,1460,Schools,170000              Education,A,2022,10
139,Unassigned,BOND PRIMARY SCHOOL,SCHOOLS 2223/10,06-Jan-23,347311.41,0,1462,Schools,170000              Education,A,2022,10
140,Unassigned,BISHOP GILPIN C OF E PRIMARY,SCHOOLS 2223/10,06-Jan-23,287139.25,0,1463,Schools,170000              Education,A,2022,10
141,Unassigned,ABBOTSBURY PRIMARY SCHOOL,SCHOOLS 2223/10,06-Jan-23,360576.29,0,1467,Schools,170000              Education,A,2022,10
142,Unassigned,WIMBLEDON CHASE PRIMARY SCHOOL,SCHOOLS 2223/10,06-Jan-23,503786.31,0,1469,Schools,170000              Education,A,2022,10
143,Unassigned,GORRINGE PARK PRIMARY SCHOOL,SCHOOLS 2223/10,06-Jan-23,346880.88,0,1470,Schools,170000              Education,A,2022,10
144,Unassigned,RAYNES PARK SECONDARY SCHOOL,SCHOOLS 2223/10,06-Jan-23,1305817.06,0,1471,Schools,170000              Education,A,2022,10
145,Unassigned,SS PETER AND PAUL RC PRIMARY SCH,SCHOOLS 2223/10,06-Jan-23,270575.78,0,1472,Schools,170000              Education,A,2022,10
146,Unassigned,DUNDONALD PRIMARY SCHOOL,SCHOOLS 2223/10,06-Jan-23,335204.04,0,1473,Schools,170000              Education,A,2022,10
147,Unassigned,ALL SAINTS C OF E PRIMARY SCH,SCHOOLS 2223/10,06-Jan-23,282475.87,0,1680,Schools,170000              Education,A,2022,10
148,"Children, Schools and Family",REDACTED PERSONAL DATA,916393,06-Jan-23,514.75,0,1801,Placements Under 18,321100              Social Community Care Supplies & Services - Children,R,2022,10
149,"Children, Schools and Family",REDACTED PERSONAL DATA,916448,06-Jan-23,514.75,0,1801,Placements Under 18,321100              Social Community Care Supplies & Services - Children,R,2022,10
150,"Children, Schools and Family",REDACTED PERSONAL DATA,920280,13-Jan-23,514.75,0,1801,Placements Under 18,321100              Social Community Care Supplies & Services - Children,R,2022,10
151,"Children, Schools and Family",REDACTED PERSONAL DATA,920335,13-Jan-23,514.75,0,1801,Placements Under 18,321100              Social Community Care Supplies & Services - Children,R,2022,10
152,"Children, Schools and Family",REDACTED PERSONAL DATA,924256,20-Jan-23,514.75,0,1801,Placements Under 18,321100              Social Community Care Supplies & Services - Children,R,2022,10
153,"Children, Schools and Family",REDACTED PERSONAL DATA,924312,20-Jan-23,514.75,0,1801,Placements Under 18,321100              Social Community Care Supplies & Services - Children,R,2022,10
154,"Children, Schools and Family",REDACTED PERSONAL DATA,927126,27-Jan-23,514.75,0,1801,Placements Under 18,321100              Social Community Care Supplies & Services - Children,R,2022,10
155,"Children, Schools and Family",REDACTED PERSONAL DATA,927183,27-Jan-23,614.75,0,1801,Placements Under 18,321100              Social Community Care Supplies & Services - Children,R,2022,10
156,"Children, Schools and Family",THE CHILDRENS TRUST,5462,23-Jan-23,5927.82,0,1980,Non-Delegated Statements,170000              Education,A,2022,10
157,"Children, Schools and Family",THE CHILDRENS TRUST,5466,23-Jan-23,7805.18,0,1980,Non-Delegated Statements,170000              Education,A,2022,10
158,"Children, Schools and Family",THE CHILDRENS TRUST,5468,24-Jan-23,6149.78,0,1980,Non-Delegated Statements,170000              Education,A,2022,10
159,"Children, Schools and Family",THE CHILDRENS TRUST,5467,24-Jan-23,3237.33,0,1980,Non-Delegated Statements,170000              Education,A,2022,10
160,Community and Housing,THE FRANCES TAYLOR FOUNDATION,921743,19-Jan-23,3812.04,0,2011,Learning Disabilities Placemnt,321017              Nursing & Residential Care Homes,A,2022,10
161,"Children, Schools and Family",ST JOSEPHS SCHOOL,T0003419,16-Jan-23,38038.33,0,2017,Non-Delegated Statements,170000              Education,A,2022,10
162,"Children, Schools and Family",ST JOSEPHS SCHOOL,T0003475,16-Jan-23,37837.67,0,2017,Non-Delegated Statements,170000              Education,A,2022,10
163,Unassigned,SACRED HEART R C PRIMARY SCH.,SCHOOLS 2223/10,06-Jan-23,226612.75,0,2076,Schools,170000              Education,A,2022,10
164,Corporate Services,CANON UK LIMITED,2.2088E+12,11-Jan-23,1911.6,318.6,2181,Business Systems,340000              Stationery,A,2022,10
165,Unassigned,LONDON BOROUGH OF SUTTON,CADETCENTRE,10-Jan-23,1000,0,2313,Corporate Services,OLA,A,2022,10
166,Corporate Services,LONDON BOROUGH OF SUTTON,SLLPINCOMEM0922,11-Jan-23,1600,0,2313,SLLP Client Income,OLA,A,2022,10
167,Corporate Services,LONDON BOROUGH OF SUTTON,3190538928,24-Jan-23,15402,2567,2313,Learning and Development,OLA,A,2022,10
168,"Children, Schools and Family",THE LINK SECONDARY SCHOOL,DI118104667,20-Jan-23,83447.64,0,2324,Non-Delegated Statements,170000              Education,A,2022,10
169,"Children, Schools and Family",The Link Primary School,DI118140669,12-Jan-23,16392.66,0,2329,Non-Delegated Statements,200000              Financial Services,A,2022,10
170,"Children, Schools and Family",The Link Primary School,DI118104668,12-Jan-23,16392.66,0,2329,Non-Delegated Statements,200000              Financial Services,A,2022,10
171,"Children, Schools and Family",The Link Primary School,DI118104670,12-Jan-23,6854.33,0,2329,Non-Delegated Statements,200000              Financial Services,A,2022,10
172,"Children, Schools and Family",The Link Primary School,DI118104671,13-Jan-23,57845.99,0,2329,Non-Delegated Statements,200000              Financial Services,A,2022,10
173,"Children, Schools and Family",PJ HARVEY AND CO LTD,SI-69606,26-Jan-23,1134.94,189.16,2439,Steers Mead BuildingManagement,190000              Facilities & Management Services,A,2022,10
174,Corporate Services,GREENHAM TRADING LTD,07/476151,25-Jan-23,1293.12,215.52,2445,Facilities,130000              Cleaning & Janitorial,A,2022,10
175,Community and Housing,FREEWAYS TRUST LTD,921655,19-Jan-23,3229.2,0,2474,Learning Disabilities Placemnt,321017              Nursing & Residential Care Homes,A,2022,10
176,Environment and Regeneration,THAMES WATER UTILITIES LTD,900064053158NOV2,04-Jan-23,516.62,0,10691,Other Misc Props,370000              Utilities,A,2022,10
177,Community and Housing,CLOYDA LTD,921928,19-Jan-23,3294.48,0,10762,Older People Placements - East,321017              Nursing & Residential Care Homes,A,2022,10
178,Community and Housing,CHEGWORTH N.H. (BAYSWIFT LTD),921883,19-Jan-23,3056.4,0,11057,Learning Disabilities Placemnt,321000              Social Community Care Supplies & Services - Adult,A,2022,10
179,"Children, Schools and Family",REDACTED PERSONAL DATA,916400,06-Jan-23,580.36,0,11130,Placements Under 18,321100              Social Community Care Supplies & Services - Children,R,2022,10
180,"Children, Schools and Family",REDACTED PERSONAL DATA,920287,13-Jan-23,580.36,0,11130,Placements Under 18,321100              Social Community Care Supplies & Services - Children,R,2022,10
181,"Children, Schools and Family",REDACTED PERSONAL DATA,924264,20-Jan-23,580.36,0,11130,Placements Under 18,321100              Social Community Care Supplies & Services - Children,R,2022,10
182,"Children, Schools and Family",REDACTED PERSONAL DATA,927134,27-Jan-23,580.36,0,11130,Placements Under 18,321100              Social Community Care Supplies & Services - Children,R,2022,10
183,Community and Housing,ASHCROFT CARE SERVICES,921882,19-Jan-23,6161.24,0,13287,Learning Disabilities Placemnt,321017              Nursing & Residential Care Homes,A,2022,10
184,Community and Housing,SHARE COMMUNITY LTD,231327,12-Jan-23,750,0,13487,Learning Disabilities Placemnt,321017              Nursing & Residential Care Homes,A,2022,10
185,Community and Housing,SHARE COMMUNITY LTD,231329,12-Jan-23,1050,0,13487,Learning Disabilities Placemnt,321017              Nursing & Residential Care Homes,A,2022,10
186,Community and Housing,SHARE COMMUNITY LTD,231334,12-Jan-23,700,0,13487,Learning Disabilities Placemnt,321017              Nursing & Residential Care Homes,A,2022,10
187,Community and Housing,SHARE COMMUNITY LTD,231339,12-Jan-23,1050,0,13487,Learning Disabilities Placemnt,321017              Nursing & Residential Care Homes,A,2022,10
188,Community and Housing,SHARE COMMUNITY LTD,231353,12-Jan-23,1125,0,13487,Learning Disabilities Placemnt,321017              Nursing & Residential Care Homes,A,2022,10
189,Community and Housing,SHARE COMMUNITY LTD,231342,12-Jan-23,1400,0,13487,Learning Disabilities Placemnt,321017              Nursing & Residential Care Homes,A,2022,10
190,Community and Housing,SHARE COMMUNITY LTD,231474,31-Jan-23,600,0,13487,Learning Disabilities Placemnt,321017              Nursing & Residential Care Homes,A,2022,10
191,Community and Housing,SHARE COMMUNITY LTD,231500,31-Jan-23,900,0,13487,Learning Disabilities Placemnt,321017              Nursing & Residential Care Homes,A,2022,10
192,Community and Housing,SHARE COMMUNITY LTD,231476,31-Jan-23,840,0,13487,Learning Disabilities Placemnt,321017              Nursing & Residential Care Homes,A,2022,10
193,Community and Housing,SHARE COMMUNITY LTD,231481,31-Jan-23,560,0,13487,Learning Disabilities Placemnt,321017              Nursing & Residential Care Homes,A,2022,10
194,Community and Housing,SHARE COMMUNITY LTD,231486,31-Jan-23,840,0,13487,Learning Disabilities Placemnt,321017              Nursing & Residential Care Homes,A,2022,10
195,Community and Housing,SHARE COMMUNITY LTD,231489,31-Jan-23,1120,0,13487,Learning Disabilities Placemnt,321017              Nursing & Residential Care Homes,A,2022,10
196,Community and Housing,FITZROY SUPPORT,922001,19-Jan-23,8304.28,0,13535,Learning Disabilities Placemnt,321017              Nursing & Residential Care Homes,A,2022,10
197,Community and Housing,CANTERBURY OAST TRUST LTD,921668,19-Jan-23,2541.24,0,13566,Learning Disabilities Placemnt,321017              Nursing & Residential Care Homes,A,2022,10
198,Community and Housing,MACINTYRE,921681,19-Jan-23,5776,0,13585,Learning Disabilities Placemnt,321017              Nursing & Residential Care Homes,A,2022,10
199,Community and Housing,MACINTYRE,921855,19-Jan-23,5641.36,0,13585,Learning Disabilities Placemnt,321017              Nursing & Residential Care Homes,A,2022,10
200,Community and Housing,MACINTYRE,921966,19-Jan-23,5641.36,0,13585,Older People Placements - East,321017              Nursing & Residential Care Homes,A,2022,10
201,Community and Housing,MACINTYRE,921999,19-Jan-23,4825.24,0,13585,Learning Disabilities Placemnt,321017              Nursing & Residential Care Homes,A,2022,10
202,Community and Housing,KENT AUTISTIC TRUST,921976,19-Jan-23,7494.72,0,13670,Learning Disabilities Placemnt,321017              Nursing & Residential Care Homes,A,2022,10
203,Environment and Regeneration,WIMBLEDON TREE SURGEONS,INV-0516,13-Jan-23,780,130,14038,Street Lighting,240000              Horticultural,A,2022,10
204,Environment and Regeneration,ROBERT MORGAN AND SONS LTD,RENTQDEC2022,12-Jan-23,4125,0,14355,Other Misc Props,200000              Financial Services,A,2022,10
205,Community and Housing,WANDLE HOUSING ASSOCIATION LTD,AIN10231,17-Jan-23,1333.93,0,14419,LD Fieldwork SW,250000              Housing Management,A,2022,10
206,Community and Housing,UNITED RESPONSE,VSMR810362RH,31-Jan-23,4134.62,689.1,14616,Learning Disabilities Placemnt,321000              Social Community Care Supplies & Services - Adult,A,2022,10
207,Community and Housing,UNITED RESPONSE,VSMR810362DH,31-Jan-23,3842.88,640.48,14616,Learning Disabilities Placemnt,321000              Social Community Care Supplies & Services - Adult,A,2022,10
208,Community and Housing,UNITED RESPONSE,VSMR810362HM,31-Jan-23,4572.24,762.04,14616,Learning Disabilities Placemnt,321000              Social Community Care Supplies & Services - Adult,A,2022,10
209,Community and Housing,UNITED RESPONSE,VSMR810362BS,31-Jan-23,4086.05,681.01,14616,Learning Disabilities Placemnt,321000              Social Community Care Supplies & Services - Adult,A,2022,10
210,Community and Housing,UNITED RESPONSE,VSMR810362CW,31-Jan-23,4766.4,794.4,14616,Learning Disabilities Placemnt,321000              Social Community Care Supplies & Services - Adult,A,2022,10
211,Community and Housing,SPECTRUM PLASTICS,INV-55780,13-Jan-23,1579.2,263.2,15550,Libraries Service-Civic Centre,170000              Education,A,2022,10
212,"Children, Schools and Family",MARY HARE GRAMMAR SCHOOL,INV29394,23-Jan-23,29030,0,20429,SEN Residential (DSG),170000              Education,A,2022,10
213,"Children, Schools and Family",THE MAKATON CHARITY,15262,24-Jan-23,1600,0,20569, Information & Systems Team,260000              Human Resources,A,2022,10
214,Corporate Services,KINGSTON CORPORATION,37430221,09-Jan-23,22838.4,3806.4,21573,Learning and Development,180000              Environmental Services,A,2022,10
215,Environment and Regeneration,KINGSTON CORPORATION,37429932,16-Jan-23,113419.34,18903.22,21573,Waste Disposal,180000              Environmental Services,A,2022,10
216,Environment and Regeneration,KINGSTON CORPORATION,37429924,16-Jan-23,237715.86,39619.31,21573,Garden Waste Service,180000              Environmental Services,A,2022,10
217,Environment and Regeneration,KINGSTON CORPORATION,37429738,16-Jan-23,145314.4,24219.06,21573,Food Waste Service,180000              Environmental Services,A,2022,10
218,Corporate Services,KINGSTON CORPORATION,M09LEGAL22/23,11-Jan-23,8268.71,0,21573,SLLP Client Income,180000              Environmental Services,A,2022,10
219,Corporate Services,I J BEIM AND ASSOCIATES LTD,12749,19-Jan-23,672.36,112.06,24949,SLLP - Disbursements,280000              Legal Services,A,2022,10
220,Corporate Services,I J BEIM AND ASSOCIATES LTD,12880,25-Jan-23,511.2,85.2,24949,SLLP - Disbursements,280000              Legal Services,A,2022,10
221,Community and Housing,TRINITY COURT NURSING HOME,921719,19-Jan-23,2861.6,0,30306,Older People Placements - East,321017              Nursing & Residential Care Homes,A,2022,10
222,Community and Housing,TRINITY COURT NURSING HOME,921856,19-Jan-23,2985.6,0,30306,Older People Placements - East,321017              Nursing & Residential Care Homes,A,2022,10
223,Community and Housing,TRINITY COURT NURSING HOME,921889,19-Jan-23,3063.24,0,30306,Older People Placements - East,321017              Nursing & Residential Care Homes,A,2022,10
224,Community and Housing,TRINITY COURT NURSING HOME,921903,19-Jan-23,3313.84,0,30306,Phys/Sens Placements - East,321017              Nursing & Residential Care Homes,A,2022,10
225,Community and Housing,TRINITY COURT NURSING HOME,921914,19-Jan-23,3986.36,0,30306,Older People Placements - East,321017              Nursing & Residential Care Homes,A,2022,10
226,Community and Housing,TRINITY COURT NURSING HOME,921931,19-Jan-23,3135.72,0,30306,Older People Placements - East,321017              Nursing & Residential Care Homes,A,2022,10
227,Community and Housing,TRINITY COURT NURSING HOME,921974,19-Jan-23,2985.6,0,30306,Older People Placements - East,321017              Nursing & Residential Care Homes,A,2022,10
228,Community and Housing,TRINITY COURT NURSING HOME,921981,19-Jan-23,2861.6,0,30306,Older People Placements - East,321017              Nursing & Residential Care Homes,A,2022,10
229,Community and Housing,TRINITY COURT NURSING HOME,921992,19-Jan-23,3063.24,0,30306,Older People Placements - East,321017              Nursing & Residential Care Homes,A,2022,10
230,Community and Housing,TRINITY COURT NURSING HOME,922054,19-Jan-23,2985.6,0,30306,Older People Placements - East,321017              Nursing & Residential Care Homes,A,2022,10
231,Community and Housing,TRINITY COURT NURSING HOME,922083,19-Jan-23,2876.32,0,30306,Older People Placements - East,321017              Nursing & Residential Care Homes,A,2022,10
232,Community and Housing,TRINITY COURT NURSING HOME,922085,19-Jan-23,3149.6,0,30306,Older People Placements - East,321017              Nursing & Residential Care Homes,A,2022,10
233,Community and Housing,TRINITY COURT NURSING HOME,922087,19-Jan-23,2521.12,0,30306,Older People Placements - East,321017              Nursing & Residential Care Homes,A,2022,10
234,Community and Housing,HAYDON PARK LODGE,921674,19-Jan-23,4680,0,31434,Learning Disabilities Placemnt,321017              Nursing & Residential Care Homes,A,2022,10
235,Community and Housing,HAYDON PARK LODGE,921806,19-Jan-23,3485,0,31434,Learning Disabilities Placemnt,321017              Nursing & Residential Care Homes,A,2022,10
236,Community and Housing,HAYDON PARK LODGE,921832,19-Jan-23,4591.44,0,31434,Learning Disabilities Placemnt,321017              Nursing & Residential Care Homes,A,2022,10
237,Community and Housing,HAYDON PARK LODGE,921915,19-Jan-23,5070.76,0,31434,Learning Disabilities Placemnt,321017              Nursing & Residential Care Homes,A,2022,10
238,Community and Housing,HAYDON PARK LODGE,921960,19-Jan-23,4420.08,0,31434,Learning Disabilities Placemnt,321017              Nursing & Residential Care Homes,A,2022,10
239,Community and Housing,Barchester Healthcare Wimbledon Beaumont,921650,18-Jan-23,23692.36,0,33384,Older People Placements - East,321017              Nursing & Residential Care Homes,A,2022,10
240,Community and Housing,Barchester Healthcare Wimbledon Beaumont,921748,19-Jan-23,4056,0,33384,Older People Placements - East,321017              Nursing & Residential Care Homes,A,2022,10
241,Community and Housing,Barchester Healthcare Wimbledon Beaumont,921768,19-Jan-23,3000,0,33384,Older People Placements - East,321017              Nursing & Residential Care Homes,A,2022,10
242,Community and Housing,Barchester Healthcare Wimbledon Beaumont,922073,19-Jan-23,3220.32,0,33384,Older People Placements - East,321017              Nursing & Residential Care Homes,A,2022,10
243,Community and Housing,COMFORT CARE SERVICES (UK) LTD,SU0266/1419,04-Jan-23,2380,0,34932,Mental Health Placements,321000              Social Community Care Supplies & Services - Adult,A,2022,10
244,Community and Housing,COMFORT CARE SERVICES (UK) LTD,SU0201/1372,04-Jan-23,2380,0,34932,Mental Health Placements,321000              Social Community Care Supplies & Services - Adult,A,2022,10
245,Community and Housing,COMFORT CARE SERVICES (UK) LTD,SU0133/1064,04-Jan-23,2380,0,34932,Mental Health Placements,321000              Social Community Care Supplies & Services - Adult,A,2022,10
246,Community and Housing,COMFORT CARE SERVICES (UK) LTD,SU1102/1496,04-Jan-23,2380,0,34932,Mental Health Placements,321000              Social Community Care Supplies & Services - Adult,A,2022,10
247,Community and Housing,COMFORT CARE SERVICES (UK) LTD,SU0298/933,04-Jan-23,2380,0,34932,Mental Health Placements,321000              Social Community Care Supplies & Services - Adult,A,2022,10
248,Community and Housing,COMFORT CARE SERVICES (UK) LTD,SU1051/1184-85,04-Jan-23,3295,0,34932,Mental Health Placements,321000              Social Community Care Supplies & Services - Adult,A,2022,10
249,Community and Housing,COMFORT CARE SERVICES (UK) LTD,SU0210/1065,04-Jan-23,2380,0,34932,Mental Health Placements,321000              Social Community Care Supplies & Services - Adult,A,2022,10
250,Community and Housing,COMFORT CARE SERVICES (UK) LTD,SU0184/932,04-Jan-23,2380,0,34932,Mental Health Placements,321000              Social Community Care Supplies & Services - Adult,A,2022,10
251,Community and Housing,COMFORT CARE SERVICES (UK) LTD,SU0146/1371,04-Jan-23,2380,0,34932,Mental Health Placements,321000              Social Community Care Supplies & Services - Adult,A,2022,10
252,Community and Housing,COMFORT CARE SERVICES (UK) LTD,SU0208/1495,04-Jan-23,2380,0,34932,Mental Health Placements,321000              Social Community Care Supplies & Services - Adult,A,2022,10
253,Community and Housing,COMFORT CARE SERVICES (UK) LTD,SU0291/1066,04-Jan-23,2380,0,34932,Mental Health Placements,321000              Social Community Care Supplies & Services - Adult,A,2022,10
254,Community and Housing,COMFORT CARE SERVICES (UK) LTD,SU0294/1477,09-Jan-23,2380,0,34932,Mental Health Placements,321000              Social Community Care Supplies & Services - Adult,A,2022,10
255,Community and Housing,COMFORT CARE SERVICES (UK) LTD,SU1051/1187-88,30-Jan-23,3295,0,34932,Mental Health Placements,321000              Social Community Care Supplies & Services - Adult,A,2022,10
256,Community and Housing,COMFORT CARE SERVICES (UK) LTD,SU1102/1499,30-Jan-23,2380,0,34932,Mental Health Placements,321000              Social Community Care Supplies & Services - Adult,A,2022,10
257,Community and Housing,COMFORT CARE SERVICES (UK) LTD,SU0266/1422,30-Jan-23,2380,0,34932,Mental Health Placements,321000              Social Community Care Supplies & Services - Adult,A,2022,10
258,Community and Housing,COMFORT CARE SERVICES (UK) LTD,SU0291/1050,06-Jan-23,2380,0,34932,Mental Health Placements,321000              Social Community Care Supplies & Services - Adult,A,2022,10
259,Community and Housing,COMFORT CARE SERVICES (UK) LTD,SU1041/809,27-Jan-23,1632.15,0,34932,Mental Health Placements,321000              Social Community Care Supplies & Services - Adult,A,2022,10
260,"Children, Schools and Family",CASTLE KINDERGARTEN,P3 23 UPFRONT,10-Jan-23,33342.94,0,35082,EARLY YEARS NURSERY GRANTS,170000              Education,A,2022,10
261,"Children, Schools and Family",CROWN KINDERGARTEN,P3 23 UPFRONT,10-Jan-23,7430.4,0,35084,EARLY YEARS NURSERY GRANTS,170000              Education,A,2022,10
262,"Children, Schools and Family",JIGSAW DAY NURSERY,P3 23 UPFRONT,10-Jan-23,22116.96,0,35097,EARLY YEARS NURSERY GRANTS,170000              Education,A,2022,10
263,"Children, Schools and Family",NURSERY ON THE GREEN,P3 23 UPFRONT,10-Jan-23,8052.24,0,35101,EARLY YEARS NURSERY GRANTS,170000              Education,A,2022,10
264,"Children, Schools and Family",URSULINE PREPARATORY SCHOOL,P3 23 UPFRONT,10-Jan-23,23826.82,0,35109,EARLY YEARS NURSERY GRANTS,170000              Education,A,2022,10
265,"Children, Schools and Family",WILLINGTON SCH.FOUNDATION LTD,P3 23 UPFRONT,10-Jan-23,11591.42,0,35111,EARLY YEARS NURSERY GRANTS,170000              Education,A,2022,10
266,"Children, Schools and Family",BUSY BEES DAY NURSERY - MORDEN,P3 23 UPFRONT,10-Jan-23,14860.8,0,35564,EARLY YEARS NURSERY GRANTS,170000              Education,A,2022,10
267,Unassigned,ST MATTHEW'S C OF E PRIMARY,SCHOOLS 2223/10,06-Jan-23,147422.88,0,36050,Schools,170000              Education,A,2022,10
268,Unassigned,ST MATTHEW'S C OF E PRIMARY,21PRE000008,06-Jan-23,2300,0,36050,Corporate Services,170000              Education,A,2022,10
269,Community and Housing,AGE UK MERTON,HOSPITAL DISCHAR,12-Jan-23,52220,0,37401,Hospital Discharge Grant,190000              Facilities & Management Services,A,2022,10
270,Community and Housing,AGE UK MERTON,12982,30-Jan-23,99810.5,0,37401,Physical/Sensory Contracts,190000              Facilities & Management Services,A,2022,10
271,"Children, Schools and Family",LITTLE LEARNERS,P3 23 UPFRONT,10-Jan-23,4713.9,0,39413,EARLY YEARS NURSERY GRANTS,170000              Education,A,2022,10
272,Unassigned,LITTLE LEARNERS,A/R REFUND,17-Jan-23,1243.75,0,39413,Corporate Accountancy,170000              Education,A,2022,10
273,Community and Housing,JESMUND CARE LTD,921912,19-Jan-23,4000,0,46751,Older People Placements - East,321017              Nursing & Residential Care Homes,A,2022,10
274,Community and Housing,JESMUND CARE LTD,922040,19-Jan-23,3600,0,46751,Older People Placements - East,321017              Nursing & Residential Care Homes,A,2022,10
275,Community and Housing,REDACTED PERSONAL DATA,914162,04-Jan-23,4900.28,0,50448,Older People Placements - East,DIRECT PAYMENTS,R,2022,10
276,Community and Housing,REDACTED PERSONAL DATA,926498,31-Jan-23,4900.28,0,50448,Older People Placements - East,DIRECT PAYMENTS,R,2022,10
277,Community and Housing,LINKAGE COMMUNITY TR.LONG-STAY,921950,19-Jan-23,3340.08,0,52552,Learning Disabilities Placemnt,321017              Nursing & Residential Care Homes,A,2022,10
278,Community and Housing,RUTLAND HOUSE CARE HOME,921825,19-Jan-23,3156,0,53424,Older People Placements - East,321017              Nursing & Residential Care Homes,A,2022,10
279,Community and Housing,RUTLAND HOUSE CARE HOME,921941,19-Jan-23,3200,0,53424,Older People Placements - East,321017              Nursing & Residential Care Homes,A,2022,10
280,"Children, Schools and Family",HASLEMERE HOUSE DAY NURSERY,P3 23 UPFRONT,10-Jan-23,25771.68,0,55612,EARLY YEARS NURSERY GRANTS,170000              Education,A,2022,10
281,Community and Housing,PARK LODGE,921791,19-Jan-23,2940,0,56878,Learning Disabilities Placemnt,321017              Nursing & Residential Care Homes,A,2022,10
282,Community and Housing,PARK LODGE,921887,19-Jan-23,3026.8,0,56878,Learning Disabilities Placemnt,321017              Nursing & Residential Care Homes,A,2022,10
283,Unassigned,CRICKET GREEN SCHOOL,SCHOOLS 2223/10,06-Jan-23,806192.45,0,57057,Schools,170000              Education,A,2022,10
284,Community and Housing,KENWARD TRUST,921660,19-Jan-23,3196,0,57058,Substance Misuse Placements,321100              Social Community Care Supplies & Services - Children,A,2022,10
285,Community and Housing,KENWARD TRUST,922004,19-Jan-23,3196,0,57058,Substance Misuse Placements,321100              Social Community Care Supplies & Services - Children,A,2022,10
286,"Children, Schools and Family",PEARSON EDUCATION LTD.,3692656,30-Jan-23,714.9,119.15,57285,Language & Learning Service,170000              Education,A,2022,10
287,Corporate Services,JADE SECURITY SERVICE LTD,4783,23-Jan-23,1938.9,323.15,57563,Cash Collections,200000              Financial Services,A,2022,10
288,"Children, Schools and Family",CANBURY SCHOOL LIMITED,4291,17-Jan-23,7425.34,0,57830,Non-Delegated Statements,170000              Education,A,2022,10
289,"Children, Schools and Family",CANBURY SCHOOL LIMITED,4290,17-Jan-23,10145,0,57830,Non-Delegated Statements,170000              Education,A,2022,10
290,"Children, Schools and Family",CANBURY SCHOOL LIMITED,4287,17-Jan-23,11882.49,0,57830,Non-Delegated Statements,170000              Education,A,2022,10
291,"Children, Schools and Family",CANBURY SCHOOL LIMITED,4276,17-Jan-23,9345,0,57830,Non-Delegated Statements,170000              Education,A,2022,10
292,"Children, Schools and Family",CANBURY SCHOOL LIMITED,4271,17-Jan-23,9578.33,0,57830,Non-Delegated Statements,170000              Education,A,2022,10
293,"Children, Schools and Family",CANBURY SCHOOL LIMITED,4279,17-Jan-23,12151.66,0,57830,Non-Delegated Statements,170000              Education,A,2022,10
294,"Children, Schools and Family",CANBURY SCHOOL LIMITED,4281,17-Jan-23,6080,0,57830,Non-Delegated Statements,170000              Education,A,2022,10
295,"Children, Schools and Family",CANBURY SCHOOL LIMITED,4260,17-Jan-23,8972.88,0,57830,Non-Delegated Statements,170000              Education,A,2022,10
296,"Children, Schools and Family",CANBURY SCHOOL LIMITED,4273,17-Jan-23,5100.83,0,57830,Non-Delegated Statements,170000              Education,A,2022,10
297,"Children, Schools and Family",CANBURY SCHOOL LIMITED,4284,19-Jan-23,12208.33,0,57830,Non-Delegated Statements,170000              Education,A,2022,10
298,"Children, Schools and Family",CANBURY SCHOOL LIMITED,4269,19-Jan-23,11068.84,0,57830,Non-Delegated Statements,170000              Education,A,2022,10
299,"Children, Schools and Family",CANBURY SCHOOL LIMITED,4272,19-Jan-23,10195,0,57830,Non-Delegated Statements,170000              Education,A,2022,10
300,"Children, Schools and Family",CANBURY SCHOOL LIMITED,4275,19-Jan-23,12915,0,57830,Non-Delegated Statements,170000              Education,A,2022,10
301,"Children, Schools and Family",CANBURY SCHOOL LIMITED,4278,19-Jan-23,11641.66,0,57830,Non-Delegated Statements,170000              Education,A,2022,10
302,"Children, Schools and Family",CANBURY SCHOOL LIMITED,4270,19-Jan-23,10818.33,0,57830,Non-Delegated Statements,170000              Education,A,2022,10
303,"Children, Schools and Family",CANBURY SCHOOL LIMITED,4280,19-Jan-23,8608.33,0,57830,Non-Delegated Statements,170000              Education,A,2022,10
304,Community and Housing,WALSINGHAM,921760,19-Jan-23,5486.52,0,58466,Learning Disabilities Placemnt,321017              Nursing & Residential Care Homes,A,2022,10
305,Community and Housing,WALSINGHAM,921948,19-Jan-23,5486.4,0,58466,Learning Disabilities Placemnt,321017              Nursing & Residential Care Homes,A,2022,10
306,Community and Housing,WALSINGHAM,922011,19-Jan-23,7171.39,0,58466,Learning Disabilities Placemnt,321017              Nursing & Residential Care Homes,A,2022,10
307,Community and Housing,WALSINGHAM,922016,19-Jan-23,5476.12,0,58466,Learning Disabilities Placemnt,321017              Nursing & Residential Care Homes,A,2022,10
308,Community and Housing,CARE UK,921653,19-Jan-23,3229.52,0,58851,Older People Placements - East,321017              Nursing & Residential Care Homes,A,2022,10
309,Community and Housing,CARE UK,921672,19-Jan-23,3800,0,58851,Older People Placements - East,321017              Nursing & Residential Care Homes,A,2022,10
310,Community and Housing,CARE UK,921738,19-Jan-23,3963.24,0,58851,Older People Placements - East,321017              Nursing & Residential Care Homes,A,2022,10
311,Community and Housing,CARE UK,921830,19-Jan-23,3264.32,0,58851,Older People Placements - East,321017              Nursing & Residential Care Homes,A,2022,10
312,Community and Housing,CARE UK,921942,19-Jan-23,3229.52,0,58851,Older People Placements - East,321017              Nursing & Residential Care Homes,A,2022,10
313,Community and Housing,CARE UK,921964,19-Jan-23,3723.24,0,58851,Older People Placements - East,321017              Nursing & Residential Care Homes,A,2022,10
314,Community and Housing,CARE UK,922023,19-Jan-23,3736,0,58851,Older People Placements - East,321017              Nursing & Residential Care Homes,A,2022,10
315,Community and Housing,CARE UK,922034,19-Jan-23,4000,0,58851,Older People Placements - East,321017              Nursing & Residential Care Homes,A,2022,10
316,Community and Housing,CARE UK,922037,19-Jan-23,3229.52,0,58851,Older People Placements - East,321017              Nursing & Residential Care Homes,A,2022,10
317,Community and Housing,CARE UK,922044,19-Jan-23,3143.16,0,58851,Older People Placements - East,321017              Nursing & Residential Care Homes,A,2022,10
318,"Children, Schools and Family",ST MICHAEL'S FELLOWSHIP,C3047B/2100,13-Jan-23,3416,0,59560,Placements Under 18,280000              Legal Services,A,2022,10
319,Environment and Regeneration,EDE'S (U.K.) LTD,INV25000,18-Jan-23,1263.6,210.6,62345,Parks & Recreation Grounds,190000              Facilities & Management Services,A,2022,10
320,Corporate Services,EDE'S (U.K.) LTD,INV25028,31-Jan-23,564.05,94.01,62345,Recovery Modernisation Progrm,190000              Facilities & Management Services,A,2022,10
321,Community and Housing,BARONS LODGE NURSING HOME,916102,05-Jan-23,1401.43,0,62371,Older People Placements - East,321017              Nursing & Residential Care Homes,A,2022,10
322,Community and Housing,BARONS LODGE NURSING HOME,921714,19-Jan-23,1716,0,62371,Mental Health Placements,321017              Nursing & Residential Care Homes,A,2022,10
323,Community and Housing,BARONS LODGE NURSING HOME,921906,19-Jan-23,3502,0,62371,Mental Health Placements,321017              Nursing & Residential Care Homes,A,2022,10
324,Community and Housing,BARONS LODGE NURSING HOME,921919,19-Jan-23,4200,0,62371,Mental Health Placements,321017              Nursing & Residential Care Homes,A,2022,10
325,Community and Housing,BARONS LODGE NURSING HOME,921980,19-Jan-23,2678,0,62371,Learning Disabilities Placemnt,321017              Nursing & Residential Care Homes,A,2022,10
326,Community and Housing,BARONS LODGE NURSING HOME,921986,19-Jan-23,4360,0,62371,Mental Health Placements,321017              Nursing & Residential Care Homes,A,2022,10
327,Community and Housing,BARONS LODGE NURSING HOME,921994,19-Jan-23,4360,0,62371,Older People Placements - East,321017              Nursing & Residential Care Homes,A,2022,10
328,Community and Housing,BARONS LODGE NURSING HOME,921995,19-Jan-23,3807.2,0,62371,Learning Disabilities Placemnt,321017              Nursing & Residential Care Homes,A,2022,10
329,Community and Housing,BARONS LODGE NURSING HOME,922029,19-Jan-23,3502,0,62371,Older People Placements - East,321017              Nursing & Residential Care Homes,A,2022,10
330,Community and Housing,BARONS LODGE NURSING HOME,922062,19-Jan-23,3581.43,0,62371,Older People Placements - East,321017              Nursing & Residential Care Homes,A,2022,10
331,Corporate Services,MASTERS LEGAL COSTS SERV'S LLP,74326,23-Jan-23,1620,270,63103,SLLP - Disbursements,280000              Legal Services                                                                            Confirmed,A,2022,10
332,Community and Housing,SANCTUARY CARE LTD,921683,19-Jan-23,3117.52,0,63458,Learning Disabilities Placemnt,321017              Nursing & Residential Care Homes,A,2022,10
333,Community and Housing,THE REGARD PARTNERSHIP LTD,921667,19-Jan-23,6220.72,0,63796,Learning Disabilities Placemnt,321017              Nursing & Residential Care Homes,A,2022,10
334,Community and Housing,THE REGARD PARTNERSHIP LTD,921758,19-Jan-23,6010.48,0,63796,Learning Disabilities Placemnt,321017              Nursing & Residential Care Homes,A,2022,10
335,Community and Housing,THE REGARD PARTNERSHIP LTD,921776,19-Jan-23,9681.96,0,63796,Learning Disabilities Placemnt,321017              Nursing & Residential Care Homes,A,2022,10
336,Community and Housing,THE REGARD PARTNERSHIP LTD,921789,19-Jan-23,5765,0,63796,Learning Disabilities Placemnt,321017              Nursing & Residential Care Homes,A,2022,10
337,Community and Housing,THE REGARD PARTNERSHIP LTD,921893,19-Jan-23,6126.52,0,63796,Learning Disabilities Placemnt,321017              Nursing & Residential Care Homes,A,2022,10
338,Community and Housing,THE REGARD PARTNERSHIP LTD,922012,19-Jan-23,4901.24,0,63796,Learning Disabilities Placemnt,321017              Nursing & Residential Care Homes,A,2022,10
339,"Children, Schools and Family",CAROUSEL DAY NURSERY,P3 23 UPFRONT,10-Jan-23,29092.32,0,66990,EARLY YEARS NURSERY GRANTS,170000              Education,A,2022,10
340,"Children, Schools and Family",PLAYDAYS DAY NURSERY,P3 23 UPFRONT,10-Jan-23,6687.36,0,66992,EARLY YEARS NURSERY GRANTS,170000              Education,A,2022,10
341,Community and Housing,NEEDHAM AND SAUNDERS,2583,31-Jan-23,630,0,68089,Occupational Therapy,"390000              Works - Construction, Repair & Maintenance",A,2022,10
342,Community and Housing,NEEDHAM AND SAUNDERS,2584,31-Jan-23,860,0,68089,Occupational Therapy,"390000              Works - Construction, Repair & Maintenance",A,2022,10
343,Community and Housing,NEEDHAM AND SAUNDERS,2585,31-Jan-23,745,0,68089,Occupational Therapy,"390000              Works - Construction, Repair & Maintenance",A,2022,10
344,Community and Housing,NEEDHAM AND SAUNDERS,2581,31-Jan-23,765,0,68089,Occupational Therapy,"390000              Works - Construction, Repair & Maintenance",A,2022,10
345,Community and Housing,NEEDHAM AND SAUNDERS,2582,31-Jan-23,825,0,68089,Occupational Therapy,"390000              Works - Construction, Repair & Maintenance",A,2022,10
346,Community and Housing,NAS SERVICES LIMITED,ASU2386375,04-Jan-23,4546.8,757.8,68929,Mental Health Placements,321100              Social Community Care Supplies & Services - Children,A,2022,10
347,Community and Housing,NAS SERVICES LIMITED,ACR2387610,13-Jan-23,1420.2,236.7,68929,Mental Health Placements,321100              Social Community Care Supplies & Services - Children,A,2022,10
348,"Children, Schools and Family",HOTEL DU VIN TRADING,HDVWIM23859702,09-Jan-23,1602.2,0,69161,Fostering Support,260000              Human Resources,A,2022,10
349,Environment and Regeneration,POLKA THEATRE FOR CHILDREN,1741,23-Jan-23,10000,0,69287,Theatres,290000              Arts & Leisure Services,A,2022,10
350,"Children, Schools and Family",MITCHAM BELLE COACHES,INV-3613,26-Jan-23,3500,0,71475, Youth Service,290000              Arts & Leisure Services,A,2022,10
351,"Children, Schools and Family",ETHELBERT SPECIALIST HOMES LTD,LL/1222/918,05-Jan-23,14675.31,0,72942,Placements Under 18,321100              Social Community Care Supplies & Services - Children,A,2022,10
352,"Children, Schools and Family",JANCETT CHILDCARE AND  JACE TRNG,1810,09-Jan-23,2693.33,0,75578,Non-Delegated Statements,260000              Human Resources,A,2022,10
353,"Children, Schools and Family",JANCETT CHILDCARE AND  JACE TRNG,P3 23 UPFRONT,10-Jan-23,22982.98,0,75578,EARLY YEARS NURSERY GRANTS,260000              Human Resources,A,2022,10
354,Corporate Services,LGIU,306227,25-Jan-23,18618,3103,75831,Chief Executive,260000              Human Resources,A,2022,10
355,Community and Housing,BRANDON TRUST,921677,19-Jan-23,4054,0,76126,Learning Disabilities Placemnt,321017              Nursing & Residential Care Homes,A,2022,10
356,"Children, Schools and Family",DICKY BIRDS PRE SCHOOL NURSERY,P3 23 UPFRONT,10-Jan-23,32297.47,0,76508,EARLY YEARS NURSERY GRANTS,170000              Education,A,2022,10
357,"Children, Schools and Family",NESCOT,328661|,24-Jan-23,929.94,0,76517,Non-Maintained Post 16 SEN,170000              Education,A,2022,10
358,"Children, Schools and Family",NESCOT,328662,24-Jan-23,929.94,0,76517,Non-Maintained Post 16 SEN,170000              Education,A,2022,10
359,"Children, Schools and Family",NESCOT,328663,24-Jan-23,1487.99,0,76517,Non-Maintained Post 16 SEN,170000              Education,A,2022,10
360,"Children, Schools and Family",NESCOT,328664,24-Jan-23,1487.99,0,76517,Non-Maintained Post 16 SEN,170000              Education,A,2022,10
361,"Children, Schools and Family",NESCOT,328665,24-Jan-23,929.94,0,76517,Non-Maintained Post 16 SEN,170000              Education,A,2022,10
362,"Children, Schools and Family",NESCOT,328667,24-Jan-23,1487.99,0,76517,Non-Maintained Post 16 SEN,170000              Education,A,2022,10
363,"Children, Schools and Family",NESCOT,328672,24-Jan-23,2144.14,0,76517,Non-Maintained Post 16 SEN,170000              Education,A,2022,10
364,"Children, Schools and Family",NESCOT,328674,24-Jan-23,2193.38,0,76517,Non-Maintained Post 16 SEN,170000              Education,A,2022,10
365,"Children, Schools and Family",NESCOT,328670,24-Jan-23,2371.54,0,76517,Non-Maintained Post 16 SEN,170000              Education,A,2022,10
366,"Children, Schools and Family",NESCOT,328669,24-Jan-23,2144.14,0,76517,Non-Maintained Post 16 SEN,170000              Education,A,2022,10
367,"Children, Schools and Family",NESCOT,328671,24-Jan-23,979.18,0,76517,Non-Maintained Post 16 SEN,170000              Education,A,2022,10
368,"Children, Schools and Family",NESCOT,328677,24-Jan-23,929.94,0,76517,Non-Maintained Post 16 SEN,170000              Education,A,2022,10
369,"Children, Schools and Family",NESCOT,328678,24-Jan-23,929.94,0,76517,Non-Maintained Post 16 SEN,170000              Education,A,2022,10
370,"Children, Schools and Family",NESCOT,328675,24-Jan-23,929.94,0,76517,Non-Maintained Post 16 SEN,170000              Education,A,2022,10
371,Unassigned,LONDON BOROUGH OF SUTTON,BAILIFFDEC2022,06-Jan-23,89993.13,0,76615,Corporate Services,OLA,A,2022,10
372,Community and Housing,BRITISH GAS TRADING LTD,8.5005E+13,05-Jan-23,609.59,32.17,76976,Supported Living Team,370000              Utilities,A,2022,10
373,Unassigned,POST OFFICE LTD,MERTON22/23PO19,11-Jan-23,17112.35,0,77066,Adults Social Care,200000              Financial Services,A,2022,10
374,Unassigned,POST OFFICE LTD,MERTON22/23PO20,25-Jan-23,17816.55,0,77066,Adults Social Care,200000              Financial Services,A,2022,10
375,Community and Housing,ABBEY HOUSE RESIDENTIAL HOMES,916087,05-Jan-23,2695.49,0,78937,Older People Placements - East,321017              Nursing & Residential Care Homes,A,2022,10
376,Community and Housing,ABBEY HOUSE RESIDENTIAL HOMES,916088,05-Jan-23,1858.92,0,78937,Older People Placements - East,321017              Nursing & Residential Care Homes,A,2022,10
377,Community and Housing,ABBEY HOUSE RESIDENTIAL HOMES,921678,19-Jan-23,4400,0,78937,Older People Placements - East,321017              Nursing & Residential Care Homes,A,2022,10
378,Community and Housing,ABBEY HOUSE RESIDENTIAL HOMES,921699,19-Jan-23,4400,0,78937,Older People Placements - East,321017              Nursing & Residential Care Homes,A,2022,10
379,Community and Housing,ABBEY HOUSE RESIDENTIAL HOMES,921701,19-Jan-23,5520,0,78937,Mental Health Placements,321017              Nursing & Residential Care Homes,A,2022,10
380,"Children, Schools and Family",GLS EDUCATIONAL SUPPLIES LTD,98272070,25-Jan-23,837.25,138.21,79201, Children's Centres Support,170000              Education,A,2022,10
381,Community and Housing,REDACTED PERSONAL DATA,913989,04-Jan-23,5088.12,0,81639,Older People Placements - East,DIRECT PAYMENTS,R,2022,10
382,Community and Housing,REDACTED PERSONAL DATA,928143,31-Jan-23,3904.6,0,81639,Older People Placements - East,DIRECT PAYMENTS,R,2022,10
383,"Children, Schools and Family",DEE'S DAY NURSERY,P3 23 UPFRONT,10-Jan-23,5387.04,0,82343,EARLY YEARS NURSERY GRANTS,170000              Education,A,2022,10
384,Corporate Services,IRON MOUNTAIN (UK) LTD,17148115,23-Jan-23,665.21,110.87,82409,IT-Telecomms,270000              Information Communication Technology,A,2022,10
385,Corporate Services,REDACTED PERSONAL DATA,INVJD163,05-Jan-23,666,111,83383,SLLP - Disbursements,280000              Legal Services,R,2022,10
386,Unassigned,MALMESBURY PRIMARY SCHOOL,SCHOOLS 2223/10,06-Jan-23,407247.94,0,83593,Schools,170000              Education,A,2022,10
387,Community and Housing,YOUNG EPILEPSY,INV010741,26-Jan-23,21227.08,0,84094,Learning Disabilities Placemnt,170000              Education,A,2022,10
388,Environment and Regeneration,NEWSQUEST MEDIA GROUP LTD,41724000,19-Jan-23,1565.57,260.93,85566,TRAF & HWYS CAPITAL PROJECTS,190000              Facilities & Management Services,A,2022,10
389,Community and Housing,LONDON AND QUADRANT HOUS. TRUST,QAGYINVU27129,23-Jan-23,1640.66,0,87000,Meadowsweet Res Home,250000              Housing Management,A,2022,10
390,"Children, Schools and Family",CENTRE ACADEMY LONDON,SP23-12,24-Jan-23,13600,0,88689,Non-Delegated Statements,170000              Education,A,2022,10
391,"Children, Schools and Family",CENTRE ACADEMY LONDON,SP23-15,24-Jan-23,14300,0,88689,Non-Delegated Statements,170000              Education,A,2022,10
392,"Children, Schools and Family",CENTRE ACADEMY LONDON,SP231392,24-Jan-23,14300,0,88689,Non-Delegated Statements,170000              Education,A,2022,10
393,"Children, Schools and Family",CENTRE ACADEMY LONDON,SP2314,24-Jan-23,14300,0,88689,Non-Delegated Statements,170000              Education,A,2022,10
394,Community and Housing,SUPREME CARE SERVICES LIMITED,9435,23-Jan-23,510.41,0,91840,Older People Placements - East,321000              Social Community Care Supplies & Services - Adult,A,2022,10
395,Community and Housing,SUPREME CARE SERVICES LIMITED,85597,25-Jan-23,728.19,0,91840,Older People Placements - East,321000              Social Community Care Supplies & Services - Adult,A,2022,10
396,Community and Housing,SUPREME CARE SERVICES LIMITED,85588,26-Jan-23,720.36,0,91840,Older People Placements - East,321000              Social Community Care Supplies & Services - Adult,A,2022,10
397,Community and Housing,SUPREME CARE SERVICES LIMITED,85595,31-Jan-23,923.33,0,91840,Older People Placements - East,321000              Social Community Care Supplies & Services - Adult,A,2022,10
398,Community and Housing,SUPREME CARE SERVICES LIMITED,85586,31-Jan-23,2988.16,0,91840,Older People Placements - East,321000              Social Community Care Supplies & Services - Adult,A,2022,10
399,Community and Housing,THE GARWOOD FOUNDATION,MWDFJAN23,13-Jan-23,767,0,92268,Older People Placements - East,321000              Social Community Care Supplies & Services - Adult,A,2022,10
400,Community and Housing,Allied Healthcare,1301/54,18-Jan-23,615.18,0,92896,Older People Placements - East,321000              Social Community Care Supplies & Services - Adult,A,2022,10
401,Community and Housing,Allied Healthcare,1301/16,18-Jan-23,719.34,0,92896,Learning Disabilities Placemnt,321000              Social Community Care Supplies & Services - Adult,A,2022,10
402,Community and Housing,Allied Healthcare,1301/37,18-Jan-23,1066.42,0,92896,Phys/Sens Placements - East,321000              Social Community Care Supplies & Services - Adult,A,2022,10
403,Community and Housing,Allied Healthcare,1301/47,18-Jan-23,545.43,0,92896,Older People Placements - East,321000              Social Community Care Supplies & Services - Adult,A,2022,10
404,Community and Housing,Allied Healthcare,1301/48,18-Jan-23,939.71,0,92896,Older People Placements - East,321000              Social Community Care Supplies & Services - Adult,A,2022,10
405,Community and Housing,Allied Healthcare,1301/32,18-Jan-23,901,0,92896,Older People Placements - East,321000              Social Community Care Supplies & Services - Adult,A,2022,10
406,Community and Housing,Allied Healthcare,1301/18,18-Jan-23,758.97,0,92896,Older People Placements - East,321000              Social Community Care Supplies & Services - Adult,A,2022,10
407,Community and Housing,Allied Healthcare,1301/28,18-Jan-23,571.83,0,92896,Learning Disabilities Placemnt,321000              Social Community Care Supplies & Services - Adult,A,2022,10
408,Community and Housing,Allied Healthcare,1301/36,18-Jan-23,2778.63,0,92896,Older People Placements - East,321000              Social Community Care Supplies & Services - Adult,A,2022,10
409,Community and Housing,Allied Healthcare,1301/5,18-Jan-23,1027.48,0,92896,Older People Placements - East,321000              Social Community Care Supplies & Services - Adult,A,2022,10
410,Community and Housing,Allied Healthcare,1301/20,18-Jan-23,2757.87,0,92896,Older People Placements - East,321000              Social Community Care Supplies & Services - Adult,A,2022,10
411,Community and Housing,Allied Healthcare,1301/41,18-Jan-23,2020.38,0,92896,Older People Placements - East,321000              Social Community Care Supplies & Services - Adult,A,2022,10
412,Community and Housing,Allied Healthcare,1301/30,18-Jan-23,2188.22,0,92896,Older People Placements - East,321000              Social Community Care Supplies & Services - Adult,A,2022,10
413,Community and Housing,Allied Healthcare,1301/21,18-Jan-23,1812.89,0,92896,Learning Disabilities Placemnt,321000              Social Community Care Supplies & Services - Adult,A,2022,10
414,Community and Housing,Allied Healthcare,1301/34,18-Jan-23,2851.09,0,92896,Older People Placements - East,321000              Social Community Care Supplies & Services - Adult,A,2022,10
415,Community and Housing,Allied Healthcare,1301/4,18-Jan-23,1700.08,0,92896,Older People Placements - East,321000              Social Community Care Supplies & Services - Adult,A,2022,10
416,Community and Housing,Allied Healthcare,1301/43,18-Jan-23,663.69,0,92896,Older People Placements - East,321000              Social Community Care Supplies & Services - Adult,A,2022,10
417,Community and Housing,Allied Healthcare,1301/25,18-Jan-23,2677.67,0,92896,Older People Placements - East,321000              Social Community Care Supplies & Services - Adult,A,2022,10
418,Community and Housing,Allied Healthcare,1301/57,18-Jan-23,2698.43,0,92896,Older People Placements - East,321000              Social Community Care Supplies & Services - Adult,A,2022,10
419,Community and Housing,Allied Healthcare,1301/10,18-Jan-23,1393.92,0,92896,Older People Placements - East,321000              Social Community Care Supplies & Services - Adult,A,2022,10
420,Community and Housing,Allied Healthcare,1301/33,18-Jan-23,612.82,0,92896,Older People Placements - East,321000              Social Community Care Supplies & Services - Adult,A,2022,10
421,Community and Housing,Allied Healthcare,1301/50,18-Jan-23,2612.86,0,92896,Older People Placements - East,321000              Social Community Care Supplies & Services - Adult,A,2022,10
422,Community and Housing,Allied Healthcare,1301/26,18-Jan-23,586.72,0,92896,Older People Placements - East,321000              Social Community Care Supplies & Services - Adult,A,2022,10
423,Community and Housing,Allied Healthcare,1301/3,18-Jan-23,1605.84,0,92896,Older People Placements - East,321000              Social Community Care Supplies & Services - Adult,A,2022,10
424,Community and Housing,Allied Healthcare,1301/31,18-Jan-23,681.48,0,92896,Learning Disabilities Placemnt,321000              Social Community Care Supplies & Services - Adult,A,2022,10
425,Community and Housing,Allied Healthcare,1301/35,18-Jan-23,2465.09,0,92896,Phys/Sens Placements - East,321000              Social Community Care Supplies & Services - Adult,A,2022,10
426,Community and Housing,Allied Healthcare,1301/17,18-Jan-23,733.62,0,92896,Older People Placements - East,321000              Social Community Care Supplies & Services - Adult,A,2022,10
427,Community and Housing,Allied Healthcare,1301/64,18-Jan-23,1404.61,0,92896,Older People Placements - East,321000              Social Community Care Supplies & Services - Adult,A,2022,10
428,Community and Housing,Allied Healthcare,1301/40,18-Jan-23,520.9,0,92896,Older People Placements - East,321000              Social Community Care Supplies & Services - Adult,A,2022,10
429,Community and Housing,Allied Healthcare,1301/12,18-Jan-23,530.04,0,92896,Older People Placements - East,321000              Social Community Care Supplies & Services - Adult,A,2022,10
430,Community and Housing,Allied Healthcare,1301/45,18-Jan-23,694.33,0,92896,Older People Placements - East,321000              Social Community Care Supplies & Services - Adult,A,2022,10
431,Community and Housing,Allied Healthcare,1301/24,18-Jan-23,1846.31,0,92896,Older People Placements - East,321000              Social Community Care Supplies & Services - Adult,A,2022,10
432,Community and Housing,Allied Healthcare,1301/6,18-Jan-23,2978.13,0,92896,Older People Placements - East,321000              Social Community Care Supplies & Services - Adult,A,2022,10
433,Community and Housing,Allied Healthcare,1301/56,18-Jan-23,1465.75,0,92896,Older People Placements - East,321000              Social Community Care Supplies & Services - Adult,A,2022,10
434,Community and Housing,Allied Healthcare,1301/61,18-Jan-23,767.12,0,92896,Older People Placements - East,321000              Social Community Care Supplies & Services - Adult,A,2022,10
435,Community and Housing,Allied Healthcare,1301/49,18-Jan-23,571.65,0,92896,Older People Placements - East,321000              Social Community Care Supplies & Services - Adult,A,2022,10
436,Community and Housing,Allied Healthcare,1301/60,18-Jan-23,2718.2,0,92896,Older People Placements - East,321000              Social Community Care Supplies & Services - Adult,A,2022,10
437,Community and Housing,Allied Healthcare,1301/22,18-Jan-23,1180.19,0,92896,Older People Placements - East,321000              Social Community Care Supplies & Services - Adult,A,2022,10
438,Community and Housing,Allied Healthcare,1301/53,18-Jan-23,1099.13,0,92896,Older People Placements - East,321000              Social Community Care Supplies & Services - Adult,A,2022,10
439,Community and Housing,Allied Healthcare,1301/7,18-Jan-23,2131.75,0,92896,Older People Placements - East,321000              Social Community Care Supplies & Services - Adult,A,2022,10
440,Community and Housing,Allied Healthcare,1301/2,18-Jan-23,651.1,0,92896,Older People Placements - East,321000              Social Community Care Supplies & Services - Adult,A,2022,10
441,Community and Housing,Allied Healthcare,1301/63,18-Jan-23,998.33,0,92896,Older People Placements - East,321000              Social Community Care Supplies & Services - Adult,A,2022,10
442,Community and Housing,Allied Healthcare,RF/264/1064375,27-Jan-23,896.09,0,92896,Older People Placements - East,321000              Social Community Care Supplies & Services - Adult,A,2022,10
443,Community and Housing,Allied Healthcare,B/HOLIDAY251222,30-Jan-23,632.04,0,92896,Older People Placements - East,321000              Social Community Care Supplies & Services - Adult,A,2022,10
444,"Children, Schools and Family",BUILDING BLOCKS NURSERY,P3 23 UPFRONT,10-Jan-23,27740.16,0,93437,EARLY YEARS NURSERY GRANTS,170000              Education,A,2022,10
445,Community and Housing,CARE MANAGEMENT GROUP,397000662,04-Jan-23,4961.72,0,93533,Learning Disabilities Placemnt,321017              Nursing & Residential Care Homes,A,2022,10
446,Community and Housing,CARE MANAGEMENT GROUP,255001478,04-Jan-23,8725.64,0,93533,Learning Disabilities Placemnt,321017              Nursing & Residential Care Homes,A,2022,10
447,Community and Housing,CARE MANAGEMENT GROUP,613000619,06-Jan-23,6353.48,0,93533,Learning Disabilities Placemnt,321017              Nursing & Residential Care Homes,A,2022,10
448,Community and Housing,CARE MANAGEMENT GROUP,921661,19-Jan-23,4593.88,0,93533,Mental Health Placements,321017              Nursing & Residential Care Homes,A,2022,10
449,Community and Housing,CARE MANAGEMENT GROUP,921709,19-Jan-23,6572.16,0,93533,Learning Disabilities Placemnt,321017              Nursing & Residential Care Homes,A,2022,10
450,Community and Housing,CARE MANAGEMENT GROUP,921725,19-Jan-23,6279.2,0,93533,Learning Disabilities Placemnt,321017              Nursing & Residential Care Homes,A,2022,10
451,Community and Housing,CARE MANAGEMENT GROUP,921828,19-Jan-23,5936.6,0,93533,Learning Disabilities Placemnt,321017              Nursing & Residential Care Homes,A,2022,10
452,Community and Housing,CARE MANAGEMENT GROUP,921874,19-Jan-23,8733.64,0,93533,Phys/Sens Placements - East,321017              Nursing & Residential Care Homes,A,2022,10
453,Community and Housing,CARE MANAGEMENT GROUP,921909,19-Jan-23,7712.12,0,93533,Learning Disabilities Placemnt,321017              Nursing & Residential Care Homes,A,2022,10
454,Community and Housing,CARE MANAGEMENT GROUP,922047,19-Jan-23,7974.36,0,93533,Learning Disabilities Placemnt,321017              Nursing & Residential Care Homes,A,2022,10
455,"Children, Schools and Family",ST OLAVES NURSERY,P3 23 UPFRONT,10-Jan-23,12343.68,0,94303,EARLY YEARS NURSERY GRANTS,170000              Education,A,2022,10
456,Community and Housing,A AND R CARE LTD,921713,19-Jan-23,3763.24,0,94357,Older People Placements - East,321017              Nursing & Residential Care Homes,A,2022,10
457,Community and Housing,A AND R CARE LTD,921718,19-Jan-23,3300,0,94357,Older People Placements - East,321017              Nursing & Residential Care Homes,A,2022,10
458,Community and Housing,A AND R CARE LTD,921836,19-Jan-23,3763.24,0,94357,Older People Placements - East,321017              Nursing & Residential Care Homes,A,2022,10
459,Community and Housing,A AND R CARE LTD,921977,19-Jan-23,3400,0,94357,Older People Placements - East,321017              Nursing & Residential Care Homes,A,2022,10
460,Community and Housing,A AND R CARE LTD,922076,19-Jan-23,3824.32,0,94357,Phys/Sens Placements - East,321017              Nursing & Residential Care Homes,A,2022,10
461,"Children, Schools and Family",CARERS SUPPORT MERTON,457,05-Jan-23,18750,0,95795, Centralised Commiss Services,290000              Arts & Leisure Services,A,2022,10
462,Community and Housing,CARERS SUPPORT MERTON,HOSPITAL DISCHAR,06-Jan-23,48766,0,95795,Hospital Discharge Grant,290000              Arts & Leisure Services,A,2022,10
463,"Children, Schools and Family",THE FOSTERING NETWORK,RINV/00007766,27-Jan-23,3680,0,95846,Fostering Support,260000              Human Resources,A,2022,10
464,"Children, Schools and Family",THE FOSTERING NETWORK,RINV/00008964,27-Jan-23,720,120,95846,Fostering Support,260000              Human Resources,A,2022,10
465,Community and Housing,Aspens Charities Ltd,36100,11-Jan-23,17318.36,0,96019,Learning Disabilities Placemnt,321017              Nursing & Residential Care Homes,A,2022,10
466,Community and Housing,Aspens Charities Ltd,921854,19-Jan-23,8954.28,0,96019,Learning Disabilities Placemnt,321017              Nursing & Residential Care Homes,A,2022,10
467,Community and Housing,REDACTED PERSONAL DATA,913995,04-Jan-23,4260.16,0,96859,Learning Disabilities Placemnt,DIRECT PAYMENTS,R,2022,10
468,Community and Housing,REDACTED PERSONAL DATA,926327,31-Jan-23,4260.16,0,96859,Learning Disabilities Placemnt,DIRECT PAYMENTS,R,2022,10
469,Community and Housing,THE ABBEYFIELD SOCIETY,921996,19-Jan-23,4000,0,97539,Older People Placements - East,321000              Social Community Care Supplies & Services - Adult,A,2022,10
470,Community and Housing,EL-SHADDAI,916608,09-Jan-23,1052.08,0,97709,MH Housing Support Placements,321000              Social Community Care Supplies & Services - Adult,A,2022,10
471,Community and Housing,EL-SHADDAI,916634,09-Jan-23,1315.04,0,97709,Learning Disabilities Placemnt,321000              Social Community Care Supplies & Services - Adult,A,2022,10
472,Community and Housing,EL-SHADDAI,916640,09-Jan-23,1052.08,0,97709,Learning Disabilities Placemnt,321000              Social Community Care Supplies & Services - Adult,A,2022,10
473,Community and Housing,EL-SHADDAI,916631,10-Jan-23,2240,0,97709,Hospital To Home,321000              Social Community Care Supplies & Services - Adult,A,2022,10
474,Community and Housing,Rosenmanor Ltd,921848,19-Jan-23,2924.24,0,97808,Mental Health Placements,321017              Nursing & Residential Care Homes,A,2022,10
475,Community and Housing,MERTON COMMUNITY TRANSPORT,16853,13-Jan-23,907.2,151.2,98164,Learning Disabilities Placemnt,360000              Passenger Transport,A,2022,10
476,Community and Housing,MERTON COMMUNITY TRANSPORT,16840,16-Jan-23,1056,176,98164,Learning Disabilities Placemnt,360000              Passenger Transport,A,2022,10
477,Unassigned,BEECHOLME PRIMARY ACADEMY,SCHOOLS 2223/10,06-Jan-23,7428,0,98168,Schools,170000              Education,A,2022,10
478,Community and Housing,Evolve Housing + Support,3209,05-Jan-23,24985.25,0,98536,Supporting People (HRS),321000              Social Community Care Supplies & Services - Adult,A,2022,10
479,Community and Housing,Evolve Housing + Support,3210,05-Jan-23,22732.75,0,98536,Supporting People (HRS),321000              Social Community Care Supplies & Services - Adult,A,2022,10
480,"Children, Schools and Family",Evolve Housing + Support,3086,06-Jan-23,2886.57,0,98536,UASC Care Leavers Over 18,321000              Social Community Care Supplies & Services - Adult,A,2022,10
481,"Children, Schools and Family",Evolve Housing + Support,3125,06-Jan-23,1603.65,0,98536,UASC Care Leavers Over 18,321000              Social Community Care Supplies & Services - Adult,A,2022,10
482,"Children, Schools and Family",Evolve Housing + Support,3156,06-Jan-23,1282.92,0,98536,UASC Care Leavers Over 18,321000              Social Community Care Supplies & Services - Adult,A,2022,10
483,"Children, Schools and Family",Evolve Housing + Support,3176,06-Jan-23,1282.92,0,98536,UASC Care Leavers Over 18,321000              Social Community Care Supplies & Services - Adult,A,2022,10
484,"Children, Schools and Family",Evolve Housing + Support,3088,09-Jan-23,2886.57,0,98536,UASC Care Leavers Over 18,321000              Social Community Care Supplies & Services - Adult,A,2022,10
485,"Children, Schools and Family",Evolve Housing + Support,3127,09-Jan-23,1603.65,0,98536,UASC Care Leavers Over 18,321000              Social Community Care Supplies & Services - Adult,A,2022,10
486,"Children, Schools and Family",Evolve Housing + Support,3180,09-Jan-23,1282.92,0,98536,UASC Care Leavers Over 18,321000              Social Community Care Supplies & Services - Adult,A,2022,10
487,"Children, Schools and Family",Evolve Housing + Support,3090,09-Jan-23,2886.57,0,98536,UASC Care Leavers Over 18,321000              Social Community Care Supplies & Services - Adult,A,2022,10
488,"Children, Schools and Family",Evolve Housing + Support,3129,09-Jan-23,1603.65,0,98536,UASC Care Leavers Over 18,321000              Social Community Care Supplies & Services - Adult,A,2022,10
489,"Children, Schools and Family",Evolve Housing + Support,3179,09-Jan-23,1282.92,0,98536,UASC Care Leavers Over 18,321000              Social Community Care Supplies & Services - Adult,A,2022,10
490,"Children, Schools and Family",Evolve Housing + Support,3159,09-Jan-23,1282.92,0,98536,UASC Care Leavers Over 18,321000              Social Community Care Supplies & Services - Adult,A,2022,10
491,"Children, Schools and Family",Evolve Housing + Support,3066,09-Jan-23,554,0,98536,Placements Under 18,321000              Social Community Care Supplies & Services - Adult,A,2022,10
492,"Children, Schools and Family",Evolve Housing + Support,3126,09-Jan-23,1603.65,0,98536,Placements Over 18,321000              Social Community Care Supplies & Services - Adult,A,2022,10
493,"Children, Schools and Family",Evolve Housing + Support,3087,09-Jan-23,2886.57,0,98536,Placements Over 18,321000              Social Community Care Supplies & Services - Adult,A,2022,10
494,"Children, Schools and Family",Evolve Housing + Support,3158,09-Jan-23,1282.92,0,98536,Placements Over 18,321000              Social Community Care Supplies & Services - Adult,A,2022,10
495,"Children, Schools and Family",Evolve Housing + Support,3178,09-Jan-23,1282.92,0,98536,Placements Over 18,321000              Social Community Care Supplies & Services - Adult,A,2022,10
496,"Children, Schools and Family",Evolve Housing + Support,3089,09-Jan-23,2886.57,0,98536,UASC Care Leavers Over 18,321000              Social Community Care Supplies & Services - Adult,A,2022,10
497,"Children, Schools and Family",Evolve Housing + Support,3157,09-Jan-23,1282.92,0,98536,UASC Care Leavers Over 18,321000              Social Community Care Supplies & Services - Adult,A,2022,10
498,"Children, Schools and Family",Evolve Housing + Support,3128,09-Jan-23,1603.65,0,98536,UASC Care Leavers Over 18,321000              Social Community Care Supplies & Services - Adult,A,2022,10
499,"Children, Schools and Family",Evolve Housing + Support,3177,09-Jan-23,1282.92,0,98536,UASC Care Leavers Over 18,321000              Social Community Care Supplies & Services - Adult,A,2022,10
500,"Children, Schools and Family",Evolve Housing + Support,3160,10-Jan-23,1282.92,0,98536,UASC Care Leavers Over 18,321000              Social Community Care Supplies & Services - Adult,A,2022,10
501,"Children, Schools and Family",Evolve Housing + Support,3223,23-Jan-23,8140,0,98536,Placements Over 18,321000              Social Community Care Supplies & Services - Adult,A,2022,10
502,"Children, Schools and Family",Evolve Housing + Support,3221,23-Jan-23,2886.57,0,98536,Placements Over 18,321000              Social Community Care Supplies & Services - Adult,A,2022,10
503,"Children, Schools and Family",Evolve Housing + Support,3220,23-Jan-23,2886.57,0,98536,UASC Care Leavers Over 18,321000              Social Community Care Supplies & Services - Adult,A,2022,10
504,"Children, Schools and Family",Evolve Housing + Support,3219,23-Jan-23,2886.57,0,98536,UASC Care Leavers Over 18,321000              Social Community Care Supplies & Services - Adult,A,2022,10
505,"Children, Schools and Family",Evolve Housing + Support,3218,23-Jan-23,3330,0,98536,UASC Care Leavers Over 18,321000              Social Community Care Supplies & Services - Adult,A,2022,10
506,"Children, Schools and Family",Evolve Housing + Support,3217,23-Jan-23,3330,0,98536,Placements Over 18,321000              Social Community Care Supplies & Services - Adult,A,2022,10
507,"Children, Schools and Family",Evolve Housing + Support,3216,23-Jan-23,4950,0,98536,UASC Care Leavers Over 18,321000              Social Community Care Supplies & Services - Adult,A,2022,10
508,"Children, Schools and Family",Evolve Housing + Support,3222,25-Jan-23,2886.57,0,98536,UASC Care Leavers Over 18,321000              Social Community Care Supplies & Services - Adult,A,2022,10
509,"Children, Schools and Family",Evolve Housing + Support,3189 /655,25-Jan-23,1786.92,0,98536,UASC Care Leavers Over 18,321000              Social Community Care Supplies & Services - Adult,A,2022,10
510,"Children, Schools and Family",Evolve Housing + Support,3050,25-Jan-23,1850,0,98536,Placements Over 18,321000              Social Community Care Supplies & Services - Adult,A,2022,10
511,"Children, Schools and Family",Evolve Housing + Support,3022,25-Jan-23,687.16,0,98536,Placements Over 18,321000              Social Community Care Supplies & Services - Adult,A,2022,10
512,"Children, Schools and Family",Evolve Housing + Support,3173A,25-Jan-23,1885.71,0,98536,UASC Care Leavers Over 18,321000              Social Community Care Supplies & Services - Adult,A,2022,10
513,"Children, Schools and Family",Evolve Housing + Support,3174,25-Jan-23,1480,0,98536,UASC Care Leavers Over 18,321000              Social Community Care Supplies & Services - Adult,A,2022,10
514,"Children, Schools and Family",Evolve Housing + Support,3175,25-Jan-23,1480,0,98536,Placements Over 18,321000              Social Community Care Supplies & Services - Adult,A,2022,10
515,"Children, Schools and Family",Evolve Housing + Support,3215,25-Jan-23,4950,0,98536,UASC Care Leavers Over 18,321000              Social Community Care Supplies & Services - Adult,A,2022,10
516,Community and Housing,ROYAL MENCAP SOCIETY,3738121,18-Jan-23,2290.96,0,98713,Learning Disabilities Placemnt,321000              Social Community Care Supplies & Services - Adult,A,2022,10
517,Community and Housing,ROYAL MENCAP SOCIETY,3738122,18-Jan-23,2613.96,0,98713,Learning Disabilities Placemnt,321000              Social Community Care Supplies & Services - Adult,A,2022,10
518,Capital,AQUANEED LIMITED,SI22121,20-Jan-23,9703.7,0,100408,Disabled Facilities Grant,200000              Financial Services,A,2022,10
519,"Children, Schools and Family",REDACTED PERSONAL DATA,916702,09-Jan-23,634.75,0,101120,Fostering Recruit/Assessment,290000              Arts & Leisure Services,R,2022,10
520,Unassigned,WEST WIMBLEDON PRIMARY SCHOOL,SCHOOLS 2223/10,06-Jan-23,433521,0,101674,Schools,170000              Education,A,2022,10
521,"Children, Schools and Family",DEE'S DAYS NURSERY,P3 23 UPFRONT,10-Jan-23,7430.4,0,103590,EARLY YEARS NURSERY GRANTS,170000              Education,A,2022,10
522,Community and Housing,HILLDALE AND NORTHVIEW,921809,19-Jan-23,2072.52,0,103592,Older People Placements - East,321000              Social Community Care Supplies & Services - Adult,A,2022,10
523,Community and Housing,BUPA CARE HOMES,918624,10-Jan-23,6930.9,0,105027,Older People Placements - East,321017              Nursing & Residential Care Homes,A,2022,10
524,Community and Housing,BUPA CARE HOMES,921684,19-Jan-23,3154.12,0,105027,Older People Placements - East,321017              Nursing & Residential Care Homes,A,2022,10
525,Community and Housing,BUPA CARE HOMES,921689,19-Jan-23,3289.24,0,105027,Older People Placements - East,321017              Nursing & Residential Care Homes,A,2022,10
526,Community and Housing,BUPA CARE HOMES,921691,19-Jan-23,3289.24,0,105027,Older People Placements - East,321017              Nursing & Residential Care Homes,A,2022,10
527,Community and Housing,BUPA CARE HOMES,921717,19-Jan-23,3154.12,0,105027,Older People Placements - East,321017              Nursing & Residential Care Homes,A,2022,10
528,Community and Housing,BUPA CARE HOMES,921764,19-Jan-23,3289.24,0,105027,Older People Placements - East,321017              Nursing & Residential Care Homes,A,2022,10
529,Community and Housing,BUPA CARE HOMES,921781,19-Jan-23,3154.12,0,105027,Older People Placements - East,321017              Nursing & Residential Care Homes,A,2022,10
530,Community and Housing,BUPA CARE HOMES,921797,19-Jan-23,3154.12,0,105027,Older People Placements - East,321017              Nursing & Residential Care Homes,A,2022,10
531,Community and Housing,BUPA CARE HOMES,921811,19-Jan-23,3289.24,0,105027,Older People Placements - East,321017              Nursing & Residential Care Homes,A,2022,10
532,Community and Housing,BUPA CARE HOMES,921820,19-Jan-23,3154.12,0,105027,Older People Placements - East,321017              Nursing & Residential Care Homes,A,2022,10
533,Community and Housing,BUPA CARE HOMES,921870,19-Jan-23,3289.24,0,105027,Older People Placements - East,321017              Nursing & Residential Care Homes,A,2022,10
534,Community and Housing,BUPA CARE HOMES,921881,19-Jan-23,3154.12,0,105027,Older People Placements - East,321017              Nursing & Residential Care Homes,A,2022,10
535,Community and Housing,BUPA CARE HOMES,921894,19-Jan-23,3289.24,0,105027,Older People Placements - East,321017              Nursing & Residential Care Homes,A,2022,10
536,Community and Housing,BUPA CARE HOMES,921897,19-Jan-23,3154.12,0,105027,Older People Placements - East,321017              Nursing & Residential Care Homes,A,2022,10
537,Community and Housing,BUPA CARE HOMES,921908,19-Jan-23,3289.24,0,105027,Older People Placements - East,321017              Nursing & Residential Care Homes,A,2022,10
538,Community and Housing,BUPA CARE HOMES,921946,19-Jan-23,3289.24,0,105027,Older People Placements - East,321017              Nursing & Residential Care Homes,A,2022,10
539,Community and Housing,BUPA CARE HOMES,921954,19-Jan-23,4321.08,0,105027,Phys/Sens Placements - East,321017              Nursing & Residential Care Homes,A,2022,10
540,Community and Housing,BUPA CARE HOMES,921970,19-Jan-23,3569.4,0,105027,Older People Placements - East,321017              Nursing & Residential Care Homes,A,2022,10
541,Community and Housing,BUPA CARE HOMES,922005,19-Jan-23,3154.12,0,105027,Older People Placements - East,321017              Nursing & Residential Care Homes,A,2022,10
542,Community and Housing,BUPA CARE HOMES,922038,19-Jan-23,3289.24,0,105027,Older People Placements - East,321017              Nursing & Residential Care Homes,A,2022,10
543,Community and Housing,BUPA CARE HOMES,922075,19-Jan-23,3289.24,0,105027,Older People Placements - East,321017              Nursing & Residential Care Homes,A,2022,10
544,Community and Housing,BUPA CARE HOMES,922095,19-Jan-23,3154.12,0,105027,Older People Placements - East,321017              Nursing & Residential Care Homes,A,2022,10
545,Community and Housing,REDACTED PERSONAL DATA,914199,04-Jan-23,2689.24,0,105300,Learning Disabilities Placemnt,DIRECT PAYMENTS,R,2022,10
546,Community and Housing,REDACTED PERSONAL DATA,926536,31-Jan-23,2689.24,0,105300,Learning Disabilities Placemnt,DIRECT PAYMENTS,R,2022,10
547,Capital,ASCENDIT LIFTS LTD,39242,20-Jan-23,6777,0,107196,Disabled Facilities Grant,"390000              Works - Construction, Repair & Maintenance",A,2022,10
548,"Children, Schools and Family",The Eveline Day and Nursery Schools Ltd,P3 23 UPFRONT,10-Jan-23,25263.36,0,108282,EARLY YEARS NURSERY GRANTS,170000              Education,A,2022,10
549,Community and Housing,REDACTED PERSONAL DATA,916597,09-Jan-23,789.04,0,110403,MH Housing Support Placements,321000              Social Community Care Supplies & Services - Adult,R,2022,10
550,Community and Housing,REDACTED PERSONAL DATA,916599,09-Jan-23,1052.04,0,110403,Learning Disabilities Placemnt,321000              Social Community Care Supplies & Services - Adult,R,2022,10
551,Community and Housing,REDACTED PERSONAL DATA,916600,09-Jan-23,780.68,0,110403,MH Housing Support Placements,321000              Social Community Care Supplies & Services - Adult,R,2022,10
552,Community and Housing,REDACTED PERSONAL DATA,916611,09-Jan-23,780.68,0,110403,MH Housing Support Placements,321000              Social Community Care Supplies & Services - Adult,R,2022,10
553,Community and Housing,REDACTED PERSONAL DATA,916612,09-Jan-23,789.04,0,110403,MH Housing Support Placements,321000              Social Community Care Supplies & Services - Adult,R,2022,10
554,Community and Housing,REDACTED PERSONAL DATA,916618,09-Jan-23,1235.28,0,110403,Phys/Sens Placements - East,321000              Social Community Care Supplies & Services - Adult,R,2022,10
555,Community and Housing,REDACTED PERSONAL DATA,916619,09-Jan-23,1658.48,0,110403,Mental Health Placements,321000              Social Community Care Supplies & Services - Adult,R,2022,10
556,Community and Housing,REDACTED PERSONAL DATA,916621,09-Jan-23,780.68,0,110403,Mental Health Placements,321000              Social Community Care Supplies & Services - Adult,R,2022,10
557,Community and Housing,REDACTED PERSONAL DATA,916625,09-Jan-23,780.68,0,110403,MH Housing Support Placements,321000              Social Community Care Supplies & Services - Adult,R,2022,10
558,Community and Housing,REDACTED PERSONAL DATA,916636,09-Jan-23,780.68,0,110403,MH Housing Support Placements,321000              Social Community Care Supplies & Services - Adult,R,2022,10
559,Community and Housing,REDACTED PERSONAL DATA,916637,09-Jan-23,780.68,0,110403,Mental Health Placements,321000              Social Community Care Supplies & Services - Adult,R,2022,10
560,Community and Housing,REDACTED PERSONAL DATA,916638,09-Jan-23,520.48,0,110403,MH Housing Support Placements,321000              Social Community Care Supplies & Services - Adult,R,2022,10
561,Community and Housing,REDACTED PERSONAL DATA,916604,09-Jan-23,780.68,0,110406,LD Housing Support Placements,321000              Social Community Care Supplies & Services - Adult,R,2022,10
562,Environment and Regeneration,ANDREW SCOTT ROBERTSON,15314VR,30-Jan-23,3000,500,111834,Pks Rec Grds (Unloc),150000              Consultancy,A,2022,10
563,Community and Housing,MEADBANK NURSING CENTRE,918617,19-Jan-23,1987.69,0,113139,Older People Placements - East,321017              Nursing & Residential Care Homes,A,2022,10
564,Community and Housing,MEADBANK NURSING CENTRE,918621,19-Jan-23,3039.99,0,113139,Older People Placements - East,321017              Nursing & Residential Care Homes,A,2022,10
565,Community and Housing,MEADBANK NURSING CENTRE,921734,19-Jan-23,1286.15,0,113139,Older People Placements - East,321017              Nursing & Residential Care Homes,A,2022,10
566,Community and Housing,MEADBANK NURSING CENTRE,922018,19-Jan-23,3273.84,0,113139,Older People Placements - East,321017              Nursing & Residential Care Homes,A,2022,10
567,Community and Housing,MEADBANK NURSING CENTRE,922072,19-Jan-23,2995.28,0,113139,Older People Placements - East,321017              Nursing & Residential Care Homes,A,2022,10
568,Community and Housing,MEADBANK NURSING CENTRE,922246,25-Jan-23,1027.65,0,113139,Phys/Sens Placements - East,321017              Nursing & Residential Care Homes,A,2022,10
569,Community and Housing,REDACTED PERSONAL DATA,913976,04-Jan-23,14250.4,0,113331,Learning Disabilities Placemnt,DIRECT PAYMENTS,R,2022,10
570,Environment and Regeneration,JIGSAW4U,2968,23-Jan-23,1500,0,113501,HLF Canons,321100              Social Community Care Supplies & Services - Children,A,2022,10
571,"Children, Schools and Family",Dicky Birds Pre Sch. Nurseries Dundonald,P3 23 UPFRONT,10-Jan-23,18427.39,0,114041,EARLY YEARS NURSERY GRANTS,170000              Education,A,2022,10
572,Corporate Services,POST OFFICE LTD,1000/90062248,25-Jan-23,928.4,0,114362,Client Finance Affairs,200000              Financial Services,A,2022,10
573,Community and Housing,MIHOMECARE LIMITED,LIVE1W-269448,06-Jan-23,1113.7,0,114370,Learning Disabilities Placemnt,321000              Social Community Care Supplies & Services - Adult,A,2022,10
574,Community and Housing,MIHOMECARE LIMITED,LIVE1W-269450,06-Jan-23,1113.7,0,114370,Learning Disabilities Placemnt,321000              Social Community Care Supplies & Services - Adult,A,2022,10
575,Community and Housing,MIHOMECARE LIMITED,LIVE1W-269479,06-Jan-23,1113.7,0,114370,Learning Disabilities Placemnt,321000              Social Community Care Supplies & Services - Adult,A,2022,10
576,Community and Housing,MIHOMECARE LIMITED,LIVE1W-269483,06-Jan-23,1113.7,0,114370,Learning Disabilities Placemnt,321000              Social Community Care Supplies & Services - Adult,A,2022,10
577,Community and Housing,MIHOMECARE LIMITED,LIVE1W-269442,06-Jan-23,1113.7,0,114370,Learning Disabilities Placemnt,321000              Social Community Care Supplies & Services - Adult,A,2022,10
578,Community and Housing,MIHOMECARE LIMITED,LIVE1W-269526,06-Jan-23,1113.7,0,114370,Learning Disabilities Placemnt,321000              Social Community Care Supplies & Services - Adult,A,2022,10
579,Community and Housing,MIHOMECARE LIMITED,LIVE1W-269545,06-Jan-23,1113.7,0,114370,Learning Disabilities Placemnt,321000              Social Community Care Supplies & Services - Adult,A,2022,10
580,Community and Housing,MIHOMECARE LIMITED,LIVE1W-269552,11-Jan-23,1113.7,0,114370,Learning Disabilities Placemnt,321000              Social Community Care Supplies & Services - Adult,A,2022,10
581,Community and Housing,REDACTED PERSONAL DATA,916605,09-Jan-23,780.68,0,114970,MH Housing Support Placements,321000              Social Community Care Supplies & Services - Adult,R,2022,10
582,Community and Housing,REDACTED PERSONAL DATA,916607,09-Jan-23,1857.56,0,114970,Mental Health Placements,321000              Social Community Care Supplies & Services - Adult,R,2022,10
583,Community and Housing,REDACTED PERSONAL DATA,916632,09-Jan-23,1052.08,0,114970,MH Housing Support Placements,321000              Social Community Care Supplies & Services - Adult,R,2022,10
584,Community and Housing,REDACTED PERSONAL DATA,916643,09-Jan-23,1586.2,0,114970,Mental Health Placements,321000              Social Community Care Supplies & Services - Adult,R,2022,10
585,Community and Housing,REDACTED PERSONAL DATA,916620,10-Jan-23,1040.92,0,114970,Hospital To Home,321000              Social Community Care Supplies & Services - Adult,R,2022,10
586,Community and Housing,ASTRA HOMES,EC/02/23,11-Jan-23,2071.68,0,114991,Mental Health Placements,321000              Social Community Care Supplies & Services - Adult,A,2022,10
587,Community and Housing,ASTRA HOMES,MJ/02/23,11-Jan-23,1816.76,0,114991,Mental Health Placements,321000              Social Community Care Supplies & Services - Adult,A,2022,10
588,Community and Housing,ASTRA HOMES,AK/02/23,11-Jan-23,2034.24,0,114991,Mental Health Placements,321000              Social Community Care Supplies & Services - Adult,A,2022,10
589,Community and Housing,ASTRA HOMES,GB/02/23,26-Jan-23,1978.12,0,114991,Mental Health Placements,321000              Social Community Care Supplies & Services - Adult,A,2022,10
590,"Children, Schools and Family",The Eveline Day Nursery Grand Drive,P3 23 UPFRONT,10-Jan-23,34293.6,0,116784,EARLY YEARS NURSERY GRANTS,170000              Education,A,2022,10
591,Unassigned,AFC WIMBLEDON LIMITED,TFMC01,31-Jan-23,8190,1365,117665,Corporate Services,190000              Facilities & Management Services,A,2022,10
592,Community and Housing,GRANGE COTTAGE LIMITED,921724,19-Jan-23,2680,0,117931,Older People Placements - East,321017              Nursing & Residential Care Homes,A,2022,10
593,Community and Housing,GRANGE COTTAGE LIMITED,921778,19-Jan-23,2680,0,117931,Older People Placements - East,321017              Nursing & Residential Care Homes,A,2022,10
594,Community and Housing,GRANGE COTTAGE LIMITED,921783,19-Jan-23,3200,0,117931,Older People Placements - East,321017              Nursing & Residential Care Homes,A,2022,10
595,Community and Housing,GRANGE COTTAGE LIMITED,921891,19-Jan-23,3600,0,117931,Older People Placements - East,321017              Nursing & Residential Care Homes,A,2022,10
596,Community and Housing,GRANGE COTTAGE LIMITED,921991,19-Jan-23,2680,0,117931,Older People Placements - East,321017              Nursing & Residential Care Homes,A,2022,10
597,Community and Housing,REDACTED PERSONAL DATA,916602,09-Jan-23,789.04,0,117970,MH Housing Support Placements,321000              Social Community Care Supplies & Services - Adult,R,2022,10
598,Community and Housing,REDACTED PERSONAL DATA,916614,09-Jan-23,1052.08,0,117970,Mental Health Placements,321000              Social Community Care Supplies & Services - Adult,R,2022,10
599,Community and Housing,REDACTED PERSONAL DATA,916629,09-Jan-23,1052.08,0,117970,Mental Health Placements,321000              Social Community Care Supplies & Services - Adult,R,2022,10
600,Community and Housing,L'ARCHE,922020,19-Jan-23,3094.6,0,118483,Learning Disabilities Placemnt,321017              Nursing & Residential Care Homes,A,2022,10
601,Community and Housing,Alexander House,921739,19-Jan-23,3100,0,119109,Older People Placements - East,321017              Nursing & Residential Care Homes,A,2022,10
602,Community and Housing,Alexander House,921812,19-Jan-23,3220.32,0,119109,Older People Placements - East,321017              Nursing & Residential Care Homes,A,2022,10
603,Community and Housing,Alexander House,922032,19-Jan-23,4000,0,119109,Older People Placements - East,321017              Nursing & Residential Care Homes,A,2022,10
604,Community and Housing,Alexander House,922084,19-Jan-23,3840,0,119109,Older People Placements - East,321017              Nursing & Residential Care Homes,A,2022,10
605,Community and Housing,Alexander House,922099,19-Jan-23,3840,0,119109,Older People Placements - East,321017              Nursing & Residential Care Homes,A,2022,10
606,Environment and Regeneration,Flowbird Smart City UK Ltd,UK158364,16-Jan-23,770.4,128.4,119359,Operational Running Costs,350000              Street & Traffic Management,A,2022,10
607,"Children, Schools and Family",REDACTED PERSONAL DATA,P3 23 UPFRONT,10-Jan-23,829.44,0,119701,EARLY YEARS NURSERY GRANTS,200000              Financial Services,R,2022,10
608,"Children, Schools and Family",PLAYDAYS DAY NURSERY,P3 23 UPFRONT,10-Jan-23,13374.72,0,121668,EARLY YEARS NURSERY GRANTS,170000              Education,A,2022,10
609,"Children, Schools and Family",REDACTED PERSONAL DATA,P3 23 UPFRONT,10-Jan-23,1658.88,0,122848,EARLY YEARS NURSERY GRANTS,200000              Financial Services,R,2022,10
610,Environment and Regeneration,KINGDOM SECURITY LTD,SER-00037474INV,25-Jan-23,13707.14,2284.53,123458,Vestry Hall,260000              Human Resources,A,2022,10
611,Environment and Regeneration,KINGDOM SECURITY LTD,SER-00034930INV,24-Jan-23,10761.62,1793.61,123458,Vestry Hall,260000              Human Resources,A,2022,10
612,Community and Housing,REDACTED PERSONAL DATA,913899,04-Jan-23,1412.4,0,124097,Older People Placements - East,DIRECT PAYMENTS,R,2022,10
613,Community and Housing,REDACTED PERSONAL DATA,926231,31-Jan-23,1412.4,0,124097,Older People Placements - East,DIRECT PAYMENTS,R,2022,10
614,Community and Housing,UNITED RESPONSE,921697,19-Jan-23,7605.02,1267.5,125227,Learning Disabilities Placemnt,321000              Social Community Care Supplies & Services - Adult,A,2022,10
615,Community and Housing,UNITED RESPONSE,921731,19-Jan-23,7605.02,1267.5,125227,Learning Disabilities Placemnt,321000              Social Community Care Supplies & Services - Adult,A,2022,10
616,Community and Housing,UNITED RESPONSE,921747,19-Jan-23,7605.02,1267.5,125227,Learning Disabilities Placemnt,321000              Social Community Care Supplies & Services - Adult,A,2022,10
617,Community and Housing,UNITED RESPONSE,921804,19-Jan-23,7605.02,1267.5,125227,Learning Disabilities Placemnt,321000              Social Community Care Supplies & Services - Adult,A,2022,10
618,Community and Housing,UNITED RESPONSE,921845,19-Jan-23,7605.02,1267.5,125227,Learning Disabilities Placemnt,321000              Social Community Care Supplies & Services - Adult,A,2022,10
619,Community and Housing,UNITED RESPONSE,921967,19-Jan-23,7605.02,1267.5,125227,Learning Disabilities Placemnt,321000              Social Community Care Supplies & Services - Adult,A,2022,10
620,Community and Housing,REDACTED PERSONAL DATA,913942,04-Jan-23,1336.44,0,125642,Phys/Sens Placements - East,DIRECT PAYMENTS,R,2022,10
621,Community and Housing,REDACTED PERSONAL DATA,926274,31-Jan-23,1336.44,0,125642,Phys/Sens Placements - East,DIRECT PAYMENTS,R,2022,10
622,Community and Housing,REDACTED PERSONAL DATA,913974,04-Jan-23,890.96,0,126189,Older People Placements - East,DIRECT PAYMENTS,R,2022,10
623,Community and Housing,REDACTED PERSONAL DATA,926307,31-Jan-23,890.96,0,126189,Older People Placements - East,DIRECT PAYMENTS,R,2022,10
624,Community and Housing,KELSTONE COURT NURSING HOME,916100,05-Jan-23,642.86,0,126473,Older People Placements - East,321017              Nursing & Residential Care Homes,A,2022,10
625,Community and Housing,KELSTONE COURT NURSING HOME,915266,10-Jan-23,2571.43,0,126473,Older People Placements - East,321017              Nursing & Residential Care Homes,A,2022,10
626,Community and Housing,KELSTONE COURT NURSING HOME,921657,19-Jan-23,2920,0,126473,Older People Placements - East,321017              Nursing & Residential Care Homes,A,2022,10
627,Community and Housing,KELSTONE COURT NURSING HOME,921680,19-Jan-23,3000,0,126473,Older People Placements - East,321017              Nursing & Residential Care Homes,A,2022,10
628,Community and Housing,KELSTONE COURT NURSING HOME,921727,19-Jan-23,3000,0,126473,Older People Placements - East,321017              Nursing & Residential Care Homes,A,2022,10
629,Community and Housing,KELSTONE COURT NURSING HOME,921772,19-Jan-23,2920,0,126473,Older People Placements - East,321017              Nursing & Residential Care Homes,A,2022,10
630,Community and Housing,KELSTONE COURT NURSING HOME,921816,19-Jan-23,3000,0,126473,Older People Placements - East,321017              Nursing & Residential Care Homes,A,2022,10
631,Community and Housing,KELSTONE COURT NURSING HOME,921859,19-Jan-23,2920,0,126473,Older People Placements - East,321017              Nursing & Residential Care Homes,A,2022,10
632,Community and Housing,KELSTONE COURT NURSING HOME,921898,19-Jan-23,2920,0,126473,Older People Placements - East,321017              Nursing & Residential Care Homes,A,2022,10
633,Community and Housing,KELSTONE COURT NURSING HOME,921900,19-Jan-23,2920,0,126473,Older People Placements - East,321017              Nursing & Residential Care Homes,A,2022,10
634,Community and Housing,KELSTONE COURT NURSING HOME,921924,19-Jan-23,2464.29,0,126473,Older People Placements - East,321017              Nursing & Residential Care Homes,A,2022,10
635,Community and Housing,KELSTONE COURT NURSING HOME,921929,19-Jan-23,3000,0,126473,Older People Placements - East,321017              Nursing & Residential Care Homes,A,2022,10
636,Community and Housing,KELSTONE COURT NURSING HOME,921940,19-Jan-23,2944.32,0,126473,Older People Placements - East,321017              Nursing & Residential Care Homes,A,2022,10
637,Community and Housing,KELSTONE COURT NURSING HOME,921945,19-Jan-23,3000,0,126473,Older People Placements - East,321017              Nursing & Residential Care Homes,A,2022,10
638,Community and Housing,KELSTONE COURT NURSING HOME,921985,19-Jan-23,3756.76,0,126473,Older People Placements - East,321017              Nursing & Residential Care Homes,A,2022,10
639,Community and Housing,KELSTONE COURT NURSING HOME,921987,19-Jan-23,2920,0,126473,Older People Placements - East,321017              Nursing & Residential Care Homes,A,2022,10
640,Community and Housing,KELSTONE COURT NURSING HOME,922028,19-Jan-23,2920,0,126473,Older People Placements - East,321017              Nursing & Residential Care Homes,A,2022,10
641,Community and Housing,KELSTONE COURT NURSING HOME,922031,19-Jan-23,3000,0,126473,Older People Placements - East,321017              Nursing & Residential Care Homes,A,2022,10
642,Community and Housing,KELSTONE COURT NURSING HOME,922043,19-Jan-23,3000,0,126473,Older People Placements - East,321017              Nursing & Residential Care Homes,A,2022,10
643,Community and Housing,KELSTONE COURT NURSING HOME,922045,19-Jan-23,2920,0,126473,Older People Placements - East,321017              Nursing & Residential Care Homes,A,2022,10
644,Community and Housing,REDACTED PERSONAL DATA,913858,04-Jan-23,668.24,0,127266,Phys/Sens Placements - East,DIRECT PAYMENTS,R,2022,10
645,Community and Housing,REDACTED PERSONAL DATA,926188,31-Jan-23,668.24,0,127266,Phys/Sens Placements - East,DIRECT PAYMENTS,R,2022,10
646,Community and Housing,CHEQUERS ELECT'L AND BUILD'N SER,3385,10-Jan-23,893.76,148.96,128187,Occupational Therapy,"390000              Works - Construction, Repair & Maintenance",A,2022,10
647,"Children, Schools and Family",ENFIELD COUNCIL,85035640,12-Jan-23,8246.32,0,128379,Non-Delegated Statements,OLA,A,2022,10
648,Environment and Regeneration,TRL LIMITED,11617340,30-Jan-23,630.28,105.05,128700,Environmental Health-Pollution,180000              Environmental Services,A,2022,10
649,Environment and Regeneration,TRL LIMITED,11617341,30-Jan-23,1285.2,214.2,128700,LBR - Pollution,180000              Environmental Services,A,2022,10
650,Environment and Regeneration,TRL LIMITED,11617342,30-Jan-23,4345.04,724.17,128700,Wandsworth Air Quality,180000              Environmental Services,A,2022,10
651,Community and Housing,BUPA CARE HOMES,921696,19-Jan-23,6133.76,0,130491,Phys/Sens Placements - East,321017              Nursing & Residential Care Homes,A,2022,10
652,Community and Housing,BUPA CARE HOMES,921805,19-Jan-23,6050.76,0,130491,Phys/Sens Placements - East,321017              Nursing & Residential Care Homes,A,2022,10
653,"Children, Schools and Family",OAKTREE PRE-SCHOOL NURSERY,P3 23 UPFRONT,10-Jan-23,13374.72,0,131726,EARLY YEARS NURSERY GRANTS,170000              Education,A,2022,10
654,Community and Housing,VOYAGE CARE LTD,921769,19-Jan-23,6505.28,0,133700,Learning Disabilities Placemnt,321017              Nursing & Residential Care Homes,A,2022,10
655,Community and Housing,VOYAGE CARE LTD,921879,19-Jan-23,7721.6,0,133700,Learning Disabilities Placemnt,321017              Nursing & Residential Care Homes,A,2022,10
656,Community and Housing,VOYAGE CARE LTD,921965,19-Jan-23,7799.4,0,133700,Learning Disabilities Placemnt,321017              Nursing & Residential Care Homes,A,2022,10
657,"Children, Schools and Family",COMMUNITY PLAYTHINGS (UK) LTD,A574V-1,25-Jan-23,852,142,133985, Children's Centres Support,170000              Education,A,2022,10
658,Community and Housing,HOMECARE SERVICES LTD,28647,20-Jan-23,4454.8,0,134594,Phys/Sens Placements - East,321100              Social Community Care Supplies & Services - Children,A,2022,10
659,Community and Housing,Sunrise Rehabilitation Centre,921687,19-Jan-23,4923.4,0,135093,Learning Disabilities Placemnt,321017              Nursing & Residential Care Homes,A,2022,10
660,Community and Housing,Sunrise Rehabilitation Centre,921712,19-Jan-23,4923.4,0,135093,Learning Disabilities Placemnt,321017              Nursing & Residential Care Homes,A,2022,10
661,Community and Housing,Sunrise Rehabilitation Centre,921875,19-Jan-23,4873.96,0,135093,Learning Disabilities Placemnt,321017              Nursing & Residential Care Homes,A,2022,10
662,Community and Housing,Sunrise Rehabilitation Centre,922006,19-Jan-23,4762.72,0,135093,Learning Disabilities Placemnt,321017              Nursing & Residential Care Homes,A,2022,10
663,Community and Housing,Sunrise Rehabilitation Centre,922010,19-Jan-23,4886.32,0,135093,Learning Disabilities Placemnt,321017              Nursing & Residential Care Homes,A,2022,10
664,Community and Housing,Sunrise Rehabilitation Centre,922027,19-Jan-23,4923.4,0,135093,Learning Disabilities Placemnt,321017              Nursing & Residential Care Homes,A,2022,10
665,Community and Housing,Sunrise Rehabilitation Centre,922082,19-Jan-23,6102,0,135093,Learning Disabilities Placemnt,321017              Nursing & Residential Care Homes,A,2022,10
666,Community and Housing,Sunrise Rehabilitation Centre,922101,19-Jan-23,4120,0,135093,Learning Disabilities Placemnt,321017              Nursing & Residential Care Homes,A,2022,10
667,Community and Housing,SW LONDON ST GEORGES NHS TRUST,P0070551,26-Jan-23,413707.83,0,135195,Mental Health Team,310000              Healthcare,A,2022,10
668,Unassigned,DAC BEACHCROFT LLP,03-10176458,06-Jan-23,2202.5,0,135458,Corporate Accountancy,200000              Financial Services,A,2022,10
669,Community and Housing,REDACTED PERSONAL DATA,913968,04-Jan-23,1420,0,135784,Phys/Sens Placements - East,DIRECT PAYMENTS,R,2022,10
670,Community and Housing,REDACTED PERSONAL DATA,926300,31-Jan-23,1420,0,135784,Phys/Sens Placements - East,DIRECT PAYMENTS,R,2022,10
671,"Children, Schools and Family",Bright Horizons - Raynes Park,P3 23 UPFRONT,10-Jan-23,22192.13,0,136040,EARLY YEARS NURSERY GRANTS,170000              Education,A,2022,10
672,Unassigned,LB Wandsworth Pension Fund Account,CETV3,18-Jan-23,2416.99,0,137418,London Borough of Merton,PENSIONS,A,2022,10
673,Community and Housing,REDACTED PERSONAL DATA,914217,04-Jan-23,1463.72,0,137843,Phys/Sens Placements - East,DIRECT PAYMENTS,R,2022,10
674,Community and Housing,REDACTED PERSONAL DATA,926555,31-Jan-23,1463.72,0,137843,Phys/Sens Placements - East,DIRECT PAYMENTS,R,2022,10
675,Community and Housing,REDACTED PERSONAL DATA,913880,04-Jan-23,1078,0,139365,Phys/Sens Placements - East,DIRECT PAYMENTS,R,2022,10
676,Community and Housing,REDACTED PERSONAL DATA,926209,31-Jan-23,1078,0,139365,Phys/Sens Placements - East,DIRECT PAYMENTS,R,2022,10
677,"Children, Schools and Family",Building Blocks Childcare,P3 23 UPFRONT,10-Jan-23,11888.64,0,139778,EARLY YEARS NURSERY GRANTS,170000              Education,A,2022,10
678,Community and Housing,REDACTED PERSONAL DATA,914256,04-Jan-23,1272.8,0,140662,Phys/Sens Placements - East,DIRECT PAYMENTS,R,2022,10
679,Community and Housing,REDACTED PERSONAL DATA,926597,31-Jan-23,509.12,0,140662,Phys/Sens Placements - East,DIRECT PAYMENTS,R,2022,10
680,Community and Housing,REDACTED PERSONAL DATA,914022,04-Jan-23,4263.88,0,140759,Phys/Sens Placements - East,DIRECT PAYMENTS,R,2022,10
681,Community and Housing,REDACTED PERSONAL DATA,914072,04-Jan-23,792.32,0,140759,Phys/Sens Placements - East,DIRECT PAYMENTS,R,2022,10
682,Community and Housing,REDACTED PERSONAL DATA,926356,31-Jan-23,4263.88,0,140759,Phys/Sens Placements - East,DIRECT PAYMENTS,R,2022,10
683,Community and Housing,REDACTED PERSONAL DATA,926406,31-Jan-23,792.32,0,140759,Phys/Sens Placements - East,DIRECT PAYMENTS,R,2022,10
684,Community and Housing,SURREY AND BORDERS PARTNERSHIP,921835,19-Jan-23,11448.72,0,140911,Learning Disabilities Placemnt,321017              Nursing & Residential Care Homes,A,2022,10
685,Community and Housing,GARWOOD FOUNDATION,921720,19-Jan-23,2755.48,0,142358,Phys/Sens Placements - East,321017              Nursing & Residential Care Homes,A,2022,10
686,Community and Housing,GARWOOD FOUNDATION,921823,19-Jan-23,2755.48,0,142358,Older People Placements - East,321017              Nursing & Residential Care Homes,A,2022,10
687,"Children, Schools and Family",CHUBB FIRE AND SECURITY LTD,9466783,17-Jan-23,523.56,87.26,142411,Church Road Building,"390000              Works - Construction, Repair & Maintenance",A,2022,10
688,Community and Housing,CHHG LTD T/A GRETTON HOMES,922053,19-Jan-23,7961.72,0,142442,Learning Disabilities Placemnt,321017              Nursing & Residential Care Homes,A,2022,10
689,Community and Housing,EVERGREEN PARTNERSHIP,921762,19-Jan-23,9675,0,142455,Learning Disabilities Placemnt,321017              Nursing & Residential Care Homes,A,2022,10
690,Community and Housing,EVERGREEN PARTNERSHIP,921784,19-Jan-23,6629.16,0,142455,Learning Disabilities Placemnt,321017              Nursing & Residential Care Homes,A,2022,10
691,Community and Housing,REDACTED PERSONAL DATA,916615,09-Jan-23,1052.08,0,143597,MH Housing Support Placements,321000              Social Community Care Supplies & Services - Adult,R,2022,10
692,Community and Housing,REDACTED PERSONAL DATA,916626,09-Jan-23,1315.04,0,143597,LD Housing Support Placements,321000              Social Community Care Supplies & Services - Adult,R,2022,10
693,Community and Housing,REDACTED PERSONAL DATA,916645,09-Jan-23,1462.32,0,143597,Learning Disabilities Placemnt,321000              Social Community Care Supplies & Services - Adult,R,2022,10
694,Community and Housing,REDACTED PERSONAL DATA,914181,04-Jan-23,9329.3,0,144689,Learning Disabilities Placemnt,DIRECT PAYMENTS,R,2022,10
695,Community and Housing,REDACTED PERSONAL DATA,926518,31-Jan-23,3731.72,0,144689,Learning Disabilities Placemnt,DIRECT PAYMENTS,R,2022,10
696,Community and Housing,CRAEGMOOR FACILITIES - WINDSOR,921815,19-Jan-23,6834.88,0,145152,Learning Disabilities Placemnt,321017              Nursing & Residential Care Homes,A,2022,10
697,"Children, Schools and Family",DATE VALLEY SCHOOL,P3 23 UPFRONT,10-Jan-23,25411.97,0,145171,EARLY YEARS NURSERY GRANTS,170000              Education,A,2022,10
698,"Children, Schools and Family",DATE VALLEY SCHOOL,4341,17-Jan-23,3387,0,145171,Non-Delegated Statements,170000              Education,A,2022,10
699,Community and Housing,REDACTED PERSONAL DATA,914104,04-Jan-23,4454.8,0,145882,Learning Disabilities Placemnt,DIRECT PAYMENTS,R,2022,10
700,Community and Housing,REDACTED PERSONAL DATA,926304,31-Jan-23,15591.8,0,145882,Learning Disabilities Placemnt,DIRECT PAYMENTS,R,2022,10
701,"Children, Schools and Family",REDACTED PERSONAL DATA,P3 23 UPFRONT,10-Jan-23,1658.88,0,146388,EARLY YEARS NURSERY GRANTS,200000              Financial Services,R,2022,10
702,"Children, Schools and Family",CAMBIAN AUTISM SERVICES LTD,CUI0001092,20-Jan-23,54686.71,0,146682,SEN Residential (DSG),321100              Social Community Care Supplies & Services - Children,A,2022,10
703,"Children, Schools and Family",ACORN NURSERY,P3 23 UPFRONT,10-Jan-23,6513.12,0,147406,EARLY YEARS NURSERY GRANTS,200000              Financial Services,A,2022,10
704,"Children, Schools and Family",SPEECH CENTRE,110606,23-Jan-23,786,131,147920,Family Supp SafeGuard - Team,270000              Information Communication Technology,A,2022,10
705,"Children, Schools and Family",THE BEACON SCHOOL,BESI194,11-Jan-23,13721.24,0,148289,Non-Delegated Statements,170000              Education,A,2022,10
706,Community and Housing,GENERATE,10208,26-Jan-23,659.2,0,148332,Learning Disabilities Placemnt,321000              Social Community Care Supplies & Services - Adult,A,2022,10
707,Community and Housing,GENERATE,10207,26-Jan-23,545.4,0,148332,Learning Disabilities Placemnt,321000              Social Community Care Supplies & Services - Adult,A,2022,10
708,"Children, Schools and Family",Dicky Birds Pre Sch. Nurseries Queens Rd,P3 23 UPFRONT,10-Jan-23,35021.95,0,148567,EARLY YEARS NURSERY GRANTS,200000              Financial Services,A,2022,10
709,"Children, Schools and Family",MARIA MONTESSORI CHILDREN'S,P3 23 UPFRONT,10-Jan-23,17755.38,0,148568,EARLY YEARS NURSERY GRANTS,200000              Financial Services,A,2022,10
710,"Children, Schools and Family",REDACTED PERSONAL DATA,P3 23 UPFRONT,10-Jan-23,4976.64,0,149524,EARLY YEARS NURSERY GRANTS,321100              Social Community Care Supplies & Services - Children                                      Confirmed,R,2022,10
711,"Children, Schools and Family",DONHEAD SCHOOL,P3 23 UPFRONT,10-Jan-23,11368.51,0,149760,EARLY YEARS NURSERY GRANTS,170000              Education,A,2022,10
712,"Children, Schools and Family",DONHEAD SCHOOL,MCBRIEN23-L,24-Jan-23,3387,0,149760,Non-Delegated Statements,170000              Education,A,2022,10
713,"Children, Schools and Family",DONHEAD SCHOOL,OGIONWO23-1,24-Jan-23,1935,0,149760,Non-Delegated Statements,170000              Education,A,2022,10
714,"Children, Schools and Family",DONHEAD SCHOOL,OLIVER231,24-Jan-23,2661,0,149760,Non-Delegated Statements,170000              Education,A,2022,10
715,"Children, Schools and Family",DONHEAD SCHOOL,ORTON23-1,24-Jan-23,2661,0,149760,Non-Delegated Statements,170000              Education,A,2022,10
716,Community and Housing,YMCA St Pauls' Group,35456,05-Jan-23,89633.33,0,149961,Supporting People (HRS),321000              Social Community Care Supplies & Services - Adult,A,2022,10
717,Unassigned,Canterbury Campus,SCHOOLS 2223/10,06-Jan-23,355808.22,0,150054,Schools,170000              Education,A,2022,10
718,Community and Housing,REDACTED PERSONAL DATA,914001,04-Jan-23,2544.32,0,151002,Older People Placements - East,DIRECT PAYMENTS,R,2022,10
719,Community and Housing,REDACTED PERSONAL DATA,926334,31-Jan-23,2544.32,0,151002,Older People Placements - East,DIRECT PAYMENTS,R,2022,10
720,Community and Housing,AIMS CARE PARTNERSHIP,921766,19-Jan-23,10560,0,151592,Learning Disabilities Placemnt,321017              Nursing & Residential Care Homes,A,2022,10
721,Community and Housing,AIMS CARE PARTNERSHIP,921807,19-Jan-23,3114.72,0,151592,Learning Disabilities Placemnt,321017              Nursing & Residential Care Homes,A,2022,10
722,Community and Housing,REDACTED PERSONAL DATA,914089,04-Jan-23,5834,0,151790,Older People Placements - East,DIRECT PAYMENTS,R,2022,10
723,Community and Housing,REDACTED PERSONAL DATA,926422,31-Jan-23,2333.6,0,151790,Older People Placements - East,DIRECT PAYMENTS,R,2022,10
724,Community and Housing,HOLISTIC COMMUNITY CARE - FC,M222310/6,25-Jan-23,1003.31,0,151996,Older People Placements - East,321000              Social Community Care Supplies & Services - Adult,A,2022,10
725,Community and Housing,HOLISTIC COMMUNITY CARE - FC,M222310/25,25-Jan-23,747.38,0,151996,Older People Placements - East,321000              Social Community Care Supplies & Services - Adult,A,2022,10
726,Community and Housing,HOLISTIC COMMUNITY CARE - FC,M222310/8,25-Jan-23,642.32,0,151996,Older People Placements - East,321000              Social Community Care Supplies & Services - Adult,A,2022,10
727,Community and Housing,HOLISTIC COMMUNITY CARE - FC,M222310/13,25-Jan-23,812.74,0,151996,Older People Placements - East,321000              Social Community Care Supplies & Services - Adult,A,2022,10
728,Community and Housing,HOLISTIC COMMUNITY CARE - FC,M222310/3,25-Jan-23,950.49,0,151996,Older People Placements - East,321000              Social Community Care Supplies & Services - Adult,A,2022,10
729,Community and Housing,HOLISTIC COMMUNITY CARE - FC,M222310/1,25-Jan-23,3124.82,0,151996,Older People Placements - East,321000              Social Community Care Supplies & Services - Adult,A,2022,10
730,Community and Housing,HOLISTIC COMMUNITY CARE - FC,M222310/16,25-Jan-23,1311.67,0,151996,Older People Placements - East,321000              Social Community Care Supplies & Services - Adult,A,2022,10
731,Community and Housing,HOLISTIC COMMUNITY CARE - FC,M222310/2,25-Jan-23,2073.72,0,151996,Older People Placements - East,321000              Social Community Care Supplies & Services - Adult,A,2022,10
732,Community and Housing,HOLISTIC COMMUNITY CARE - FC,M222310/7,25-Jan-23,749.28,0,151996,Older People Placements - East,321000              Social Community Care Supplies & Services - Adult,A,2022,10
733,Community and Housing,HOLISTIC COMMUNITY CARE - FC,M222310/11,25-Jan-23,851.29,0,151996,Older People Placements - East,321000              Social Community Care Supplies & Services - Adult,A,2022,10
734,Community and Housing,HOLISTIC COMMUNITY CARE - FC,M222310/12,25-Jan-23,1360.53,0,151996,Older People Placements - East,321000              Social Community Care Supplies & Services - Adult,A,2022,10
735,Community and Housing,HOLISTIC COMMUNITY CARE - FC,M222310/20,25-Jan-23,736.41,0,151996,Older People Placements - East,321000              Social Community Care Supplies & Services - Adult,A,2022,10
736,Community and Housing,HOLISTIC COMMUNITY CARE - FC,M222310/26,25-Jan-23,1174.97,0,151996,Older People Placements - East,321000              Social Community Care Supplies & Services - Adult,A,2022,10
737,Community and Housing,HOLISTIC COMMUNITY CARE - FC,M222310/5,25-Jan-23,1706.7,0,151996,Older People Placements - East,321000              Social Community Care Supplies & Services - Adult,A,2022,10
738,Community and Housing,REDACTED PERSONAL DATA,914245,04-Jan-23,7434,0,152015,Older People Placements - East,321000              Social Community Care Supplies & Services - Adult,R,2022,10
739,Community and Housing,REDACTED PERSONAL DATA,926586,31-Jan-23,7434,0,152015,Older People Placements - East,321000              Social Community Care Supplies & Services - Adult,R,2022,10
740,Corporate Services,WANDSWORTH CORPORATION,WC376792128MO9D,23-Jan-23,1046.91,0,152180,SLLP Client Income,OLA,A,2022,10
741,Community and Housing,REDACTED PERSONAL DATA,914130,04-Jan-23,954.6,0,152709,Older People Placements - East,DIRECT PAYMENTS,R,2022,10
742,Community and Housing,REDACTED PERSONAL DATA,926467,31-Jan-23,954.6,0,152709,Older People Placements - East,DIRECT PAYMENTS,R,2022,10
743,Community and Housing,REDACTED PERSONAL DATA,913982,04-Jan-23,1909.2,0,152990,Learning Disabilities Placemnt,DIRECT PAYMENTS,R,2022,10
744,Community and Housing,REDACTED PERSONAL DATA,926315,31-Jan-23,1909.2,0,152990,Learning Disabilities Placemnt,DIRECT PAYMENTS,R,2022,10
745,Community and Housing,LYNTON HALL NURSING HOME,921666,23-Jan-23,3102.04,0,153795,Older People Placements - East,321017              Nursing & Residential Care Homes,A,2022,10
746,Community and Housing,LYNTON HALL NURSING HOME,921671,23-Jan-23,2988.48,0,153795,Older People Placements - East,321017              Nursing & Residential Care Homes,A,2022,10
747,Community and Housing,LYNTON HALL NURSING HOME,921843,23-Jan-23,3249.6,0,153795,Older People Placements - East,321017              Nursing & Residential Care Homes,A,2022,10
748,Unassigned,HARRIS ACADEMY MERTON,SCHOOLS 2223/10,06-Jan-23,13170,0,155274,Schools,170000              Education,A,2022,10
749,Unassigned,CFBT SCHOOLS TRUST,SCHOOLS 2223/10,06-Jan-23,10230,0,155275,Schools,170000              Education,A,2022,10
750,Community and Housing,REDACTED PERSONAL DATA,914134,04-Jan-23,614.16,0,155411,Learning Disabilities Placemnt,DIRECT PAYMENTS,R,2022,10
751,Community and Housing,REDACTED PERSONAL DATA,926470,31-Jan-23,614.16,0,155411,Learning Disabilities Placemnt,DIRECT PAYMENTS,R,2022,10
752,Community and Housing,REDACTED PERSONAL DATA,914164,04-Jan-23,9751.56,0,156181,Phys/Sens Placements - East,DIRECT PAYMENTS,R,2022,10
753,Community and Housing,REDACTED PERSONAL DATA,926500,31-Jan-23,9751.56,0,156181,Phys/Sens Placements - East,DIRECT PAYMENTS,R,2022,10
754,Community and Housing,REDACTED PERSONAL DATA,913955,04-Jan-23,979.36,0,159542,Phys/Sens Placements - East,DIRECT PAYMENTS,R,2022,10
755,Community and Housing,REDACTED PERSONAL DATA,926286,31-Jan-23,979.36,0,159542,Phys/Sens Placements - East,DIRECT PAYMENTS,R,2022,10
756,Community and Housing,REDACTED PERSONAL DATA,914186,04-Jan-23,3220,0,160044,Phys/Sens Placements - East,DIRECT PAYMENTS,R,2022,10
757,Community and Housing,REDACTED PERSONAL DATA,926523,31-Jan-23,3220,0,160044,Phys/Sens Placements - East,DIRECT PAYMENTS,R,2022,10
758,"Children, Schools and Family",REDACTED PERSONAL DATA,915656,04-Jan-23,1082.6,0,160147,Child Disabilities - Placement,CSF-DIRECT PAYMENTS,R,2022,10
759,"Children, Schools and Family",REDACTED PERSONAL DATA,927846,31-Jan-23,1082.6,0,160147,Child Disabilities - Placement,CSF-DIRECT PAYMENTS,R,2022,10
760,Community and Housing,REDACTED PERSONAL DATA,914090,04-Jan-23,1272.8,0,160244,Phys/Sens Placements - East,DIRECT PAYMENTS,R,2022,10
761,Community and Housing,REDACTED PERSONAL DATA,926423,31-Jan-23,1272.8,0,160244,Phys/Sens Placements - East,DIRECT PAYMENTS,R,2022,10
762,Community and Housing,REDACTED PERSONAL DATA,914095,04-Jan-23,604.6,0,160273,Learning Disabilities Placemnt,DIRECT PAYMENTS,R,2022,10
763,Community and Housing,REDACTED PERSONAL DATA,926427,31-Jan-23,604.6,0,160273,Learning Disabilities Placemnt,DIRECT PAYMENTS,R,2022,10
764,Community and Housing,REDACTED PERSONAL DATA,913998,04-Jan-23,1018.24,0,160279,Phys/Sens Placements - East,DIRECT PAYMENTS,R,2022,10
765,Community and Housing,REDACTED PERSONAL DATA,926331,31-Jan-23,1018.24,0,160279,Phys/Sens Placements - East,DIRECT PAYMENTS,R,2022,10
766,"Children, Schools and Family",Fleet Educ.Services Ltd T/A Fleet Tutors,19839,11-Jan-23,1922.4,320.4,160300,Non-Delegated Statements,260000              Human Resources,A,2022,10
767,"Children, Schools and Family",THE NATIONAL FOSTERING AGENCY,424772,23-Jan-23,5703.38,0,160464,Placements Under 18,321100              Social Community Care Supplies & Services - Children,A,2022,10
768,"Children, Schools and Family",THE NATIONAL FOSTERING AGENCY,424771,23-Jan-23,5703.38,0,160464,Placements Under 18,321100              Social Community Care Supplies & Services - Children,A,2022,10
769,"Children, Schools and Family",THE NATIONAL FOSTERING AGENCY,399464,13-Jan-23,3247.35,0,160464,Placements Under 18,321100              Social Community Care Supplies & Services - Children,A,2022,10
770,"Children, Schools and Family",THE NATIONAL FOSTERING AGENCY,394036,13-Jan-23,1152.29,0,160464,Placements Under 18,321100              Social Community Care Supplies & Services - Children,A,2022,10
771,"Children, Schools and Family",THE NATIONAL FOSTERING AGENCY,404837,13-Jan-23,3247.35,0,160464,Placements Under 18,321100              Social Community Care Supplies & Services - Children,A,2022,10
772,"Children, Schools and Family",THE NATIONAL FOSTERING AGENCY,409878,13-Jan-23,3142.6,0,160464,Placements Under 18,321100              Social Community Care Supplies & Services - Children,A,2022,10
773,"Children, Schools and Family",THE NATIONAL FOSTERING AGENCY,415048,13-Jan-23,3247.35,0,160464,Placements Under 18,321100              Social Community Care Supplies & Services - Children,A,2022,10
774,"Children, Schools and Family",THE NATIONAL FOSTERING AGENCY,419850,13-Jan-23,3142.6,0,160464,Placements Under 18,321100              Social Community Care Supplies & Services - Children,A,2022,10
775,"Children, Schools and Family",THE NATIONAL FOSTERING AGENCY,424773,23-Jan-23,3247.35,0,160464,Placements Under 18,321100              Social Community Care Supplies & Services - Children,A,2022,10
776,Environment and Regeneration,CITY OF LONDON CORPORATION,4328448,27-Jan-23,5761.18,960.2,160895,Licensing - RSP,180000              Environmental Services,A,2022,10
777,Community and Housing,REDACTED PERSONAL DATA,914240,04-Jan-23,540.96,0,160909,Older People Placements - East,DIRECT PAYMENTS,R,2022,10
778,Community and Housing,REDACTED PERSONAL DATA,926580,31-Jan-23,540.96,0,160909,Older People Placements - East,DIRECT PAYMENTS,R,2022,10
779,"Children, Schools and Family",REDACTED PERSONAL DATA,916349,06-Jan-23,514.75,0,161094,UASC LAC Under 18,321100              Social Community Care Supplies & Services - Children,R,2022,10
780,"Children, Schools and Family",REDACTED PERSONAL DATA,920235,13-Jan-23,514.75,0,161094,UASC LAC Under 18,321100              Social Community Care Supplies & Services - Children,R,2022,10
781,"Children, Schools and Family",REDACTED PERSONAL DATA,924213,20-Jan-23,514.75,0,161094,UASC LAC Under 18,321100              Social Community Care Supplies & Services - Children,R,2022,10
782,"Children, Schools and Family",REDACTED PERSONAL DATA,927082,27-Jan-23,514.75,0,161094,UASC LAC Under 18,321100              Social Community Care Supplies & Services - Children,R,2022,10
783,"Children, Schools and Family",REDACTED PERSONAL DATA,927177,27-Jan-23,1589.08,0,161094,Placements Under 18,321100              Social Community Care Supplies & Services - Children,R,2022,10
784,Community and Housing,REDACTED PERSONAL DATA,926362,31-Jan-23,1253.7,0,161218,Mental Health Placements,DIRECT PAYMENTS,R,2022,10
785,Corporate Services,REDACTED PERSONAL DATA,INVJG514,19-Jan-23,848,141.33,162291,SLLP - Disbursements,280000              Legal Services                                                                            Confirmed,R,2022,10
786,"Children, Schools and Family",ELKLAN TRAINING LTD,INV-10059,30-Jan-23,1263.6,9.6,162625,Language & Learning Service,170000              Education,A,2022,10
787,Corporate Services,WALLINGTON CARS AND COURIERS LTD,294792,26-Jan-23,8975.35,1495.89,162637,PrintUnit-HighVolPhtcopying,300000              Mail Services,A,2022,10
788,Community and Housing,ST JOHNS NURSING HOME,918630,10-Jan-23,7360.31,0,163011,Older People Placements - East,321017              Nursing & Residential Care Homes,A,2022,10
789,Community and Housing,ST JOHNS NURSING HOME,921847,19-Jan-23,3963.24,0,163011,Older People Placements - East,321017              Nursing & Residential Care Homes,A,2022,10
790,Community and Housing,REDACTED PERSONAL DATA,913901,04-Jan-23,1562.56,0,163392,Learning Disabilities Placemnt,DIRECT PAYMENTS,R,2022,10
791,Community and Housing,REDACTED PERSONAL DATA,926233,31-Jan-23,1562.56,0,163392,Learning Disabilities Placemnt,DIRECT PAYMENTS,R,2022,10
792,Corporate Services,D N H PROPERTY MAINTENANCE,2193DNH,25-Jan-23,1140,190,163395,Buildings Maintenance,"390000              Works - Construction, Repair & Maintenance",C,2022,10
793,Corporate Services,D N H PROPERTY MAINTENANCE,2194DNH,25-Jan-23,780,130,163395,Leisure Buildings,"390000              Works - Construction, Repair & Maintenance",C,2022,10
794,"Children, Schools and Family",REDACTED PERSONAL DATA,916402,06-Jan-23,785.52,0,163471,Placements Under 18,200000              Financial Services,R,2022,10
795,"Children, Schools and Family",REDACTED PERSONAL DATA,916411,06-Jan-23,654.24,0,163471,Placements Under 18,200000              Financial Services,R,2022,10
796,"Children, Schools and Family",REDACTED PERSONAL DATA,920289,13-Jan-23,785.52,0,163471,Placements Under 18,200000              Financial Services,R,2022,10
797,"Children, Schools and Family",REDACTED PERSONAL DATA,920298,13-Jan-23,654.24,0,163471,Placements Under 18,200000              Financial Services,R,2022,10
798,"Children, Schools and Family",REDACTED PERSONAL DATA,924266,20-Jan-23,785.52,0,163471,Placements Under 18,200000              Financial Services,R,2022,10
799,"Children, Schools and Family",REDACTED PERSONAL DATA,924275,20-Jan-23,654.24,0,163471,Placements Under 18,200000              Financial Services,R,2022,10
800,"Children, Schools and Family",REDACTED PERSONAL DATA,927136,27-Jan-23,785.52,0,163471,Placements Under 18,200000              Financial Services,R,2022,10
801,"Children, Schools and Family",REDACTED PERSONAL DATA,927145,27-Jan-23,654.24,0,163471,Placements Under 18,200000              Financial Services,R,2022,10
802,"Children, Schools and Family",LA PETITE FLEUR PRE-SCHOOL,P3 23 UPFRONT,10-Jan-23,11600.64,0,163698,EARLY YEARS NURSERY GRANTS,200000              Financial Services,A,2022,10
803,Community and Housing,Active Prospects,921698,19-Jan-23,6103.76,0,163859,Learning Disabilities Placemnt,321017              Nursing & Residential Care Homes,A,2022,10
804,Community and Housing,REDACTED PERSONAL DATA,914234,04-Jan-23,1129.64,0,163971,Phys/Sens Placements - East,DIRECT PAYMENTS,R,2022,10
805,Community and Housing,REDACTED PERSONAL DATA,926574,31-Jan-23,1129.64,0,163971,Phys/Sens Placements - East,DIRECT PAYMENTS,R,2022,10
806,"Children, Schools and Family",BUMBLE BEES'S DAY NURSERY-COCC,P3 23 UPFRONT,10-Jan-23,21942.72,0,164240,EARLY YEARS NURSERY GRANTS,200000              Financial Services,A,2022,10
807,Corporate Services,LONDON COUNCILS,4330778,20-Jan-23,38230,0,164343,VOLUNTARY SECTOR COORDINATION,OLA,A,2022,10
808,Community and Housing,LONDON COUNCILS,4330917,31-Jan-23,7345,0,164343,Concessionary Fares,OLA,A,2022,10
809,Community and Housing,ENTERPRISE CARE SUPPORT LTD,20018,19-Jan-23,1095.64,0,164431,Older People Placements - East,321000              Social Community Care Supplies & Services - Adult,A,2022,10
810,Community and Housing,ENTERPRISE CARE SUPPORT LTD,20015,19-Jan-23,2850.12,0,164431,Older People Placements - East,321000              Social Community Care Supplies & Services - Adult,A,2022,10
811,Community and Housing,ENTERPRISE CARE SUPPORT LTD,20012,19-Jan-23,1095.64,0,164431,Older People Placements - East,321000              Social Community Care Supplies & Services - Adult,A,2022,10
812,Community and Housing,ENTERPRISE CARE SUPPORT LTD,20007,19-Jan-23,701.91,0,164431,Learning Disabilities Placemnt,321000              Social Community Care Supplies & Services - Adult,A,2022,10
813,Community and Housing,ENTERPRISE CARE SUPPORT LTD,20009,19-Jan-23,2191.28,0,164431,Older People Placements - East,321000              Social Community Care Supplies & Services - Adult,A,2022,10
814,Community and Housing,ENTERPRISE CARE SUPPORT LTD,20008,19-Jan-23,1095.64,0,164431,Older People Placements - East,321000              Social Community Care Supplies & Services - Adult,A,2022,10
815,Community and Housing,ENTERPRISE CARE SUPPORT LTD,20005,19-Jan-23,766.22,0,164431,Older People Placements - East,321000              Social Community Care Supplies & Services - Adult,A,2022,10
816,Community and Housing,ENTERPRISE CARE SUPPORT LTD,20004,19-Jan-23,766.22,0,164431,Older People Placements - East,321000              Social Community Care Supplies & Services - Adult,A,2022,10
817,Community and Housing,ENTERPRISE CARE SUPPORT LTD,20003,19-Jan-23,695.1,0,164431,Older People Placements - East,321000              Social Community Care Supplies & Services - Adult,A,2022,10
818,Community and Housing,ENTERPRISE CARE SUPPORT LTD,20002,19-Jan-23,766.22,0,164431,Older People Placements - East,321000              Social Community Care Supplies & Services - Adult,A,2022,10
819,Community and Housing,ENTERPRISE CARE SUPPORT LTD,20000,19-Jan-23,3279.12,0,164431,Older People Placements - East,321000              Social Community Care Supplies & Services - Adult,A,2022,10
820,Community and Housing,ENTERPRISE CARE SUPPORT LTD,19999,19-Jan-23,552.78,0,164431,Older People Placements - East,321000              Social Community Care Supplies & Services - Adult,A,2022,10
821,Community and Housing,ENTERPRISE CARE SUPPORT LTD,19998,19-Jan-23,2850.12,0,164431,Older People Placements - East,321000              Social Community Care Supplies & Services - Adult,A,2022,10
822,Community and Housing,ENTERPRISE CARE SUPPORT LTD,19997,19-Jan-23,3564.43,0,164431,Older People Placements - East,321000              Social Community Care Supplies & Services - Adult,A,2022,10
823,Community and Housing,ENTERPRISE CARE SUPPORT LTD,20019,27-Jan-23,1354.46,0,164431,Older People Placements - East,321000              Social Community Care Supplies & Services - Adult,A,2022,10
824,"Children, Schools and Family",I CAN CHARITY,7950,17-Jan-23,9760.64,1626.77,164540,Non-Delegated Statements,170000              Education,A,2022,10
825,"Children, Schools and Family",I CAN CHARITY,7976,17-Jan-23,9220.87,1536.81,164540,Non-Delegated Statements,170000              Education,A,2022,10
826,Community and Housing,BUPA CARE SERVICES BACS RECEIP,921888,19-Jan-23,8538.76,0,164629,Older People Placements - East,321017              Nursing & Residential Care Homes,A,2022,10
827,Community and Housing,REDACTED PERSONAL DATA,914242,04-Jan-23,1272.8,0,164694,Phys/Sens Placements - East,DIRECT PAYMENTS,R,2022,10
828,Community and Housing,REDACTED PERSONAL DATA,926583,31-Jan-23,1272.8,0,164694,Phys/Sens Placements - East,DIRECT PAYMENTS,R,2022,10
829,Corporate Services,REDACTED PERSONAL DATA,INV672/GC27,12-Jan-23,900,150,164950,SLLP - Disbursements,280000              Legal Services                                                                            Confirmed,R,2022,10
830,Corporate Services,REDACTED PERSONAL DATA,111065/02,23-Jan-23,900,0,164950,SLLP - Disbursements,280000              Legal Services                                                                            Confirmed,R,2022,10
831,Corporate Services,REDACTED PERSONAL DATA,111065/03,23-Jan-23,900,0,164950,SLLP - Disbursements,280000              Legal Services                                                                            Confirmed,R,2022,10
832,Corporate Services,REDACTED PERSONAL DATA,111065/06,23-Jan-23,1098,0,164950,SLLP - Disbursements,280000              Legal Services                                                                            Confirmed,R,2022,10
833,Corporate Services,REDACTED PERSONAL DATA,111065/04,23-Jan-23,900,0,164950,SLLP - Disbursements,280000              Legal Services                                                                            Confirmed,R,2022,10
834,Corporate Services,REDACTED PERSONAL DATA,111065/05,23-Jan-23,900,0,164950,SLLP - Disbursements,280000              Legal Services                                                                            Confirmed,R,2022,10
835,Corporate Services,REDACTED PERSONAL DATA,INV673/GC28,12-Jan-23,900,150,164950,SLLP - Disbursements,280000              Legal Services                                                                            Confirmed,R,2022,10
836,Corporate Services,REDACTED PERSONAL DATA,INV674/GC29,25-Jan-23,900,150,164950,SLLP - Disbursements,280000              Legal Services                                                                            Confirmed,R,2022,10
837,Corporate Services,REDACTED PERSONAL DATA,111065/01,31-Jan-23,1800,0,164950,SLLP - Disbursements,280000              Legal Services                                                                            Confirmed,R,2022,10
838,"Children, Schools and Family",SYNERGY FOSTERING LTD,INV-4057,05-Jan-23,7944.68,0,165111,Placements Under 18,321100              Social Community Care Supplies & Services - Children,A,2022,10
839,Unassigned,MARSTON GROUP,62516,23-Jan-23,3511.41,0,165202,Corporate Accountancy,200000              Financial Services,A,2022,10
840,Corporate Services,DX NETWORK SERVICES LTD,83672620,11-Jan-23,570,95,165316,Legal Shared Service,300000              Mail Services,A,2022,10
841,"Children, Schools and Family",CHILDREN OF COLOUR,8071,05-Jan-23,4648.24,0,165365,Placements Under 18,321100              Social Community Care Supplies & Services - Children,A,2022,10
842,Community and Housing,REDACTED PERSONAL DATA,914179,04-Jan-23,1349.48,0,165602,Learning Disabilities Placemnt,DIRECT PAYMENTS,R,2022,10
843,Community and Housing,REDACTED PERSONAL DATA,926516,31-Jan-23,1349.48,0,165602,Learning Disabilities Placemnt,DIRECT PAYMENTS,R,2022,10
844,Community and Housing,REDACTED PERSONAL DATA,913954,04-Jan-23,2228.4,0,165619,Phys/Sens Placements - East,DIRECT PAYMENTS,R,2022,10
845,Community and Housing,REDACTED PERSONAL DATA,914047,04-Jan-23,3538.2,0,165619,Phys/Sens Placements - East,DIRECT PAYMENTS,R,2022,10
846,Community and Housing,REDACTED PERSONAL DATA,926285,31-Jan-23,2228.4,0,165619,Phys/Sens Placements - East,DIRECT PAYMENTS,R,2022,10
847,Community and Housing,REDACTED PERSONAL DATA,926382,31-Jan-23,3538.2,0,165619,Phys/Sens Placements - East,DIRECT PAYMENTS,R,2022,10
848,Community and Housing,BUPA CARE HOMES (ANS) LTD,922063,19-Jan-23,4749.4,0,165704,Older People Placements - East,321017              Nursing & Residential Care Homes,A,2022,10
849,Community and Housing,REDACTED PERSONAL DATA,914146,04-Jan-23,1032.8,0,165786,Older People Placements - East,DIRECT PAYMENTS,R,2022,10
850,Community and Housing,REDACTED PERSONAL DATA,926483,31-Jan-23,1032.8,0,165786,Older People Placements - East,DIRECT PAYMENTS,R,2022,10
851,Community and Housing,REDACTED PERSONAL DATA,914249,04-Jan-23,700.8,0,166085,Learning Disabilities Placemnt,DIRECT PAYMENTS,R,2022,10
852,Community and Housing,REDACTED PERSONAL DATA,926590,31-Jan-23,700.8,0,166085,Learning Disabilities Placemnt,DIRECT PAYMENTS,R,2022,10
853,Community and Housing,REDACTED PERSONAL DATA,914143,04-Jan-23,1588.64,0,166158,Phys/Sens Placements - East,DIRECT PAYMENTS,R,2022,10
854,Community and Housing,REDACTED PERSONAL DATA,926227,31-Jan-23,5791.24,0,166158,Phys/Sens Placements - East,DIRECT PAYMENTS,R,2022,10
855,Environment and Regeneration,COMPLETE ECOLOGY LTD,29/2223,05-Jan-23,1620,270,166208,Parks & Recreation Grounds,240000              Horticultural                                                                             Confirmed,A,2022,10
856,"Children, Schools and Family",REDACTED PERSONAL DATA,P3 23 UPFRONT,10-Jan-23,4976.64,0,166244,EARLY YEARS NURSERY GRANTS,200000              Financial Services,R,2022,10
857,Corporate Services,WEIGHTMANS LLP,2130661,31-Jan-23,1062,177,166459,SLLP - Disbursements,200000              Financial Services                                                                        confirmed,A,2022,10
858,Corporate Services,WEIGHTMANS LLP,2135479,31-Jan-23,2622,437,166459,SLLP - Disbursements,200000              Financial Services                                                                        confirmed,A,2022,10
859,Community and Housing,REDACTED PERSONAL DATA,913919,04-Jan-23,1209.16,0,166547,Learning Disabilities Placemnt,DIRECT PAYMENTS,R,2022,10
860,Community and Housing,REDACTED PERSONAL DATA,926251,31-Jan-23,1209.16,0,166547,Learning Disabilities Placemnt,DIRECT PAYMENTS,R,2022,10
861,"Children, Schools and Family",REDACTED PERSONAL DATA,916333,06-Jan-23,1295.53,0,166742,Placements Under 18,321100              Social Community Care Supplies & Services - Children,R,2022,10
862,"Children, Schools and Family",REDACTED PERSONAL DATA,920218,13-Jan-23,1295.53,0,166742,Placements Under 18,321100              Social Community Care Supplies & Services - Children,R,2022,10
863,"Children, Schools and Family",REDACTED PERSONAL DATA,924196,20-Jan-23,1295.53,0,166742,Placements Under 18,321100              Social Community Care Supplies & Services - Children,R,2022,10
864,"Children, Schools and Family",REDACTED PERSONAL DATA,927065,27-Jan-23,1295.53,0,166742,Placements Under 18,321100              Social Community Care Supplies & Services - Children,R,2022,10
865,Corporate Services,REDACTED PERSONAL DATA,0056419196484B,06-Jan-23,1483,0,166885,Client Finance Affairs,120000              Cemetery & Crematorium,R,2022,10
866,Corporate Services,REDACTED PERSONAL DATA,00564-19245832-B,06-Jan-23,1435,0,166885,Client Finance Affairs,120000              Cemetery & Crematorium,R,2022,10
867,Corporate Services,REDACTED PERSONAL DATA,0056419164310B,06-Jan-23,1401,0,166885,Client Finance Affairs,120000              Cemetery & Crematorium,R,2022,10
868,"Children, Schools and Family",UNIQUE OFFICE SOLUTIONS LTD,112299,23-Jan-23,834,139,166889,Head - Help & Family Assessmnt,210000              Furniture & Soft Furnishings,A,2022,10
869,Environment and Regeneration,UNIQUE OFFICE SOLUTIONS LTD,112152,23-Jan-23,5223.9,870.65,166889,Vestry Hall,210000              Furniture & Soft Furnishings,A,2022,10
870,"Children, Schools and Family",REDACTED PERSONAL DATA,915609,04-Jan-23,807.76,0,166972,Child Disabilities - Placement,CSF-DIRECT PAYMENTS,R,2022,10
871,"Children, Schools and Family",REDACTED PERSONAL DATA,927796,31-Jan-23,807.76,0,166972,Child Disabilities - Placement,CSF-DIRECT PAYMENTS,R,2022,10
872,Corporate Services,LNRS DATA SERVICES LTD,INV-00199444,09-Jan-23,6300,1050,167019,AD-Human Resources,260000              Human Resources,A,2022,10
873,"Children, Schools and Family",WIMBLEDON DAY NURSERY,P3 23 UPFRONT,10-Jan-23,22786.56,0,167298,EARLY YEARS NURSERY GRANTS,170000              Education,A,2022,10
874,Corporate Services,RAINBOW OFFICE SUPPLIES LTD,512015,25-Jan-23,675,112.5,167583,Printing,340000              Stationery,A,2022,10
875,Unassigned,LISTER WILDER LTD,522208,16-Jan-23,1035.6,172.6,167652,Mitcham Common Conservators,240000              Horticultural,A,2022,10
876,Environment and Regeneration,IMPERIAL CIVIL ENFORC.SOLUT.,INV0000006546,30-Jan-23,1879.2,313.2,167737,Operational Running Costs,270000              Information Communication Technology,A,2022,10
877,"Children, Schools and Family",REDACTED PERSONAL DATA,P3 23 UPFRONT,10-Jan-23,829.44,0,167790,EARLY YEARS NURSERY GRANTS,200000              Financial Services,R,2022,10
878,"Children, Schools and Family",RAINBOW FOSTERING SERVICES LTD,RF1716,05-Jan-23,3742.13,0,167793,Placements Under 18,321100              Social Community Care Supplies & Services - Children,A,2022,10
879,"Children, Schools and Family",BURLINGTON HOUSE SCHOOL,230150B,27-Jan-23,12274,0,167981,Non-Delegated Statements,200000              Financial Services,A,2022,10
880,"Children, Schools and Family",BURLINGTON HOUSE SCHOOL,220948B,27-Jan-23,12274,0,167981,Non-Delegated Statements,200000              Financial Services,A,2022,10
881,"Children, Schools and Family",BURLINGTON HOUSE SCHOOL,6230152,27-Jan-23,12728,0,167981,Non-Delegated Statements,200000              Financial Services,A,2022,10
882,"Children, Schools and Family",BURLINGTON HOUSE SCHOOL,230149B,27-Jan-23,12274,0,167981,Non-Delegated Statements,200000              Financial Services,A,2022,10
883,"Children, Schools and Family",BURLINGTON HOUSE SCHOOL,220944B,27-Jan-23,10660,0,167981,Non-Delegated Statements,200000              Financial Services,A,2022,10
884,"Children, Schools and Family",BURLINGTON HOUSE SCHOOL,230144B,27-Jan-23,10660,0,167981,Non-Delegated Statements,200000              Financial Services,A,2022,10
885,"Children, Schools and Family",BURLINGTON HOUSE SCHOOL,220949B,27-Jan-23,12274,0,167981,Non-Delegated Statements,200000              Financial Services,A,2022,10
886,"Children, Schools and Family",BURLINGTON HOUSE SCHOOL,220945B,27-Jan-23,11918,0,167981,Non-Delegated Statements,200000              Financial Services,A,2022,10
887,"Children, Schools and Family",BURLINGTON HOUSE SCHOOL,230146,27-Jan-23,11918,0,167981,Non-Delegated Statements,200000              Financial Services,A,2022,10
888,"Children, Schools and Family",BURLINGTON HOUSE SCHOOL,230147B,27-Jan-23,11918,0,167981,Non-Delegated Statements,200000              Financial Services,A,2022,10
889,"Children, Schools and Family",BURLINGTON HOUSE SCHOOL,230145B,27-Jan-23,11918,0,167981,Non-Delegated Statements,200000              Financial Services,A,2022,10
890,"Children, Schools and Family",BURLINGTON HOUSE SCHOOL,230151,27-Jan-23,12694,0,167981,Non-Delegated Statements,200000              Financial Services,A,2022,10
891,"Children, Schools and Family",BURLINGTON HOUSE SCHOOL,220950B,27-Jan-23,12274,0,167981,Non-Delegated Statements,200000              Financial Services,A,2022,10
892,"Children, Schools and Family",BURLINGTON HOUSE SCHOOL,230148B,27-Jan-23,12274,0,167981,Non-Delegated Statements,200000              Financial Services,A,2022,10
893,"Children, Schools and Family",BURLINGTON HOUSE SCHOOL,P230115,27-Jan-23,12694,0,167981,Non-Delegated Statements,200000              Financial Services,A,2022,10
894,"Children, Schools and Family",BURLINGTON HOUSE SCHOOL,220946B,27-Jan-23,11918,0,167981,Non-Delegated Statements,200000              Financial Services,A,2022,10
895,"Children, Schools and Family",BURLINGTON HOUSE SCHOOL,6230153,27-Jan-23,13110,0,167981,Non-Delegated Statements,200000              Financial Services,A,2022,10
896,"Children, Schools and Family",BURLINGTON HOUSE SCHOOL,230178,27-Jan-23,12694,0,167981,Non-Delegated Statements,200000              Financial Services,A,2022,10
897,"Children, Schools and Family",BURLINGTON HOUSE SCHOOL,P220914B,27-Jan-23,12694,0,167981,Non-Delegated Statements,200000              Financial Services,A,2022,10
898,"Children, Schools and Family",BURLINGTON HOUSE SCHOOL,P230114,27-Jan-23,12694,0,167981,Non-Delegated Statements,200000              Financial Services,A,2022,10
899,"Children, Schools and Family",BURLINGTON HOUSE SCHOOL,220947B,27-Jan-23,11918,0,167981,Non-Delegated Statements,200000              Financial Services,A,2022,10
900,Corporate Services,REDACTED PERSONAL DATA,10213352,09-Jan-23,73821.6,12303.6,168092,SLLP - Disbursements,280000              Legal Services,R,2022,10
901,Corporate Services,REDACTED PERSONAL DATA,10203194,11-Jan-23,2491.2,415.2,168092,SLLP - Disbursements,280000              Legal Services,R,2022,10
902,Corporate Services,REDACTED PERSONAL DATA,10210292,12-Jan-23,1320,220,168092,SLLP - Disbursements,280000              Legal Services,R,2022,10
903,Corporate Services,REDACTED PERSONAL DATA,10210297,12-Jan-23,1944,324,168092,SLLP - Disbursements,280000              Legal Services,R,2022,10
904,Corporate Services,REDACTED PERSONAL DATA,10210298,12-Jan-23,1390.8,231.8,168092,SLLP - Disbursements,280000              Legal Services,R,2022,10
905,Corporate Services,REDACTED PERSONAL DATA,10206883,19-Jan-23,956.4,159.4,168092,SLLP - Disbursements,280000              Legal Services,R,2022,10
906,Corporate Services,REDACTED PERSONAL DATA,10210311,16-Jan-23,543.6,90.6,168092,SLLP - Disbursements,280000              Legal Services,R,2022,10
907,Capital,CBS Adaptation Design,1712,20-Jan-23,1541.2,228.2,168147,Disabled Facilities Grant,200000              Financial Services,A,2022,10
908,Capital,CBS Adaptation Design,1709,20-Jan-23,782.19,101.03,168147,Disabled Facilities Grant,200000              Financial Services,A,2022,10
909,Capital,CBS Adaptation Design,1687,20-Jan-23,895.92,119.99,168147,Disabled Facilities Grant,200000              Financial Services,A,2022,10
910,Capital,CBS Adaptation Design,1719,23-Jan-23,1400.08,204.01,168147,Disabled Facilities Grant,200000              Financial Services,A,2022,10
911,Capital,CBS Adaptation Design,1693,27-Jan-23,988.6,135.43,168147,Disabled Facilities Grant,200000              Financial Services,A,2022,10
912,Capital,CBS Adaptation Design,1685,27-Jan-23,2065.42,314.9,168147,Disabled Facilities Grant,200000              Financial Services,A,2022,10
913,Capital,CBS Adaptation Design,1715,27-Jan-23,1039.51,143.92,168147,Disabled Facilities Grant,200000              Financial Services,A,2022,10
914,Capital,CBS Adaptation Design,1718,27-Jan-23,1665.37,189.56,168147,Disabled Facilities Grant,200000              Financial Services,A,2022,10
915,Corporate Services,LANGUAGE BANK,MTS-010123,20-Jan-23,903,150.5,168229,Translation Service,TRANSLATIONS,A,2022,10
916,Corporate Services,LANGUAGE BANK,MTS-060123,23-Jan-23,765,127.5,168229,Translation Service,TRANSLATIONS,A,2022,10
917,Corporate Services,LANGUAGE BANK,MTS-011222,19-Jan-23,910.2,151.7,168229,Translation Service,TRANSLATIONS,A,2022,10
918,Corporate Services,LANGUAGE BANK,MTS-090123,30-Jan-23,780,130,168229,Translation Service,TRANSLATIONS,A,2022,10
919,Community and Housing,REDACTED PERSONAL DATA,913970,04-Jan-23,572.76,0,168403,Learning Disabilities Placemnt,DIRECT PAYMENTS,R,2022,10
920,Community and Housing,REDACTED PERSONAL DATA,926302,31-Jan-23,572.76,0,168403,Learning Disabilities Placemnt,DIRECT PAYMENTS,R,2022,10
921,"Children, Schools and Family",REDACTED PERSONAL DATA,P3 23 UPFRONT,10-Jan-23,1382.4,0,168744,EARLY YEARS NURSERY GRANTS,200000              Financial Services,R,2022,10
922,"Children, Schools and Family",WILLOWS PRE SCHOOL,P3 23 UPFRONT,10-Jan-23,12440.96,0,168752,EARLY YEARS NURSERY GRANTS,170000              Education,A,2022,10
923,Community and Housing,HOUSING21,INV680003-675161,31-Jan-23,583.8,0,169230,Older People Placements - East,321000              Social Community Care Supplies & Services - Adult,A,2022,10
924,Community and Housing,HOUSING21,INV680003-82473,31-Jan-23,2681.31,0,169230,Older People Placements - East,321000              Social Community Care Supplies & Services - Adult,A,2022,10
925,Community and Housing,HOUSING21,INV680003-596014,31-Jan-23,867.36,0,169230,Older People Placements - East,321000              Social Community Care Supplies & Services - Adult,A,2022,10
926,Community and Housing,HOUSING21,INV680003-583114,31-Jan-23,4203.36,0,169230,Older People Placements - East,321000              Social Community Care Supplies & Services - Adult,A,2022,10
927,Community and Housing,HOUSING21,INV680003-534037,31-Jan-23,1155.09,0,169230,Older People Placements - East,321000              Social Community Care Supplies & Services - Adult,A,2022,10
928,Community and Housing,HOUSING21,INV680003-532662,31-Jan-23,1401.12,0,169230,Older People Placements - East,321000              Social Community Care Supplies & Services - Adult,A,2022,10
929,Community and Housing,HOUSING21,INV680003-512370,31-Jan-23,583.8,0,169230,Older People Placements - East,321000              Social Community Care Supplies & Services - Adult,A,2022,10
930,Community and Housing,HOUSING21,INV680003-934625,31-Jan-23,817.32,0,169230,Older People Placements - East,321000              Social Community Care Supplies & Services - Adult,A,2022,10
931,Community and Housing,HOUSING21,INV680003-507687,31-Jan-23,1801.44,0,169230,Phys/Sens Placements - East,321000              Social Community Care Supplies & Services - Adult,A,2022,10
932,Community and Housing,FITZROY SUPPORT,921728,19-Jan-23,6414.52,0,169400,Learning Disabilities Placemnt,321017              Nursing & Residential Care Homes,A,2022,10
933,"Children, Schools and Family",REDACTED PERSONAL DATA,915648,04-Jan-23,690.96,0,169403,Child Disabilities - Placement,CSF-DIRECT PAYMENTS,R,2022,10
934,"Children, Schools and Family",REDACTED PERSONAL DATA,927837,31-Jan-23,690.96,0,169403,Child Disabilities - Placement,CSF-DIRECT PAYMENTS,R,2022,10
935,Corporate Services,KC Services Group,40393,24-Jan-23,1392,232,169420,Buildings Maintenance,"390000              Works - Construction, Repair & Maintenance",A,2022,10
936,"Children, Schools and Family",REDACTED PERSONAL DATA,P3 23 UPFRONT,10-Jan-23,829.44,0,169972,EARLY YEARS NURSERY GRANTS,321100              Social Community Care Supplies & Services - Children,R,2022,10
937,"Children, Schools and Family",SENSATIONAL KIDS,INV-6341,20-Jan-23,570,0,170195,Non-Delegated Statements,321100              Social Community Care Supplies & Services - Children,A,2022,10
938,"Children, Schools and Family",SENSATIONAL KIDS,INV-6350,24-Jan-23,855,0,170195,Non-Delegated Statements,321100              Social Community Care Supplies & Services - Children,A,2022,10
939,"Children, Schools and Family",SENSATIONAL KIDS,INV-6347,24-Jan-23,855,0,170195,Non-Delegated Statements,321100              Social Community Care Supplies & Services - Children,A,2022,10
940,"Children, Schools and Family",SENSATIONAL KIDS,INV-6357,24-Jan-23,555,0,170195,Non-Delegated Statements,321100              Social Community Care Supplies & Services - Children,A,2022,10
941,Community and Housing,INDEPENDENCE HOMES LTD,CED00104,06-Jan-23,5662.72,0,170527,Learning Disabilities Placemnt,321017              Nursing & Residential Care Homes,A,2022,10
942,Community and Housing,INDEPENDENCE HOMES LTD,922002,19-Jan-23,7935.88,0,170527,Learning Disabilities Placemnt,321017              Nursing & Residential Care Homes,A,2022,10
943,"Children, Schools and Family",GREATER LONDON FOSTERING LTD,36605,23-Jan-23,3697.68,0,170596,Placements Under 18,321100              Social Community Care Supplies & Services - Children,A,2022,10
944,"Children, Schools and Family",GREATER LONDON FOSTERING LTD,36607,23-Jan-23,3448.13,0,170596,Placements Under 18,321100              Social Community Care Supplies & Services - Children,A,2022,10
945,"Children, Schools and Family",GREATER LONDON FOSTERING LTD,36606,23-Jan-23,3516.95,0,170596,Placements Under 18,321100              Social Community Care Supplies & Services - Children,A,2022,10
946,Community and Housing,REDACTED PERSONAL DATA,914035,04-Jan-23,1591,0,170878,Learning Disabilities Placemnt,DIRECT PAYMENTS,R,2022,10
947,Community and Housing,REDACTED PERSONAL DATA,926369,31-Jan-23,1591,0,170878,Learning Disabilities Placemnt,DIRECT PAYMENTS,R,2022,10
948,"Children, Schools and Family",LIVABILITY,A150/159736,30-Jan-23,19664.67,0,170900,Non-Maintained Post 16 SEN,170000              Education,A,2022,10
949,Community and Housing,REDACTED PERSONAL DATA,913975,04-Jan-23,1304.64,0,171056,Phys/Sens Placements - East,DIRECT PAYMENTS,R,2022,10
950,Community and Housing,REDACTED PERSONAL DATA,926308,31-Jan-23,1304.64,0,171056,Phys/Sens Placements - East,DIRECT PAYMENTS,R,2022,10
951,Community and Housing,ST GEORGES RES. CARE HOME,922051,19-Jan-23,4871.4,0,171491,Learning Disabilities Placemnt,321017              Nursing & Residential Care Homes,A,2022,10
952,Community and Housing,ST GEORGES RES. CARE HOME,922077,19-Jan-23,4024.2,0,171491,Learning Disabilities Placemnt,321017              Nursing & Residential Care Homes,A,2022,10
953,Capital,SSD LIMITED,SI-494,20-Jan-23,1590,265,171736,Works to other buildings,190000              Facilities & Management Services,A,2022,10
954,Corporate Services,SSD LIMITED,SI-495,16-Jan-23,612,102,171736,C & H Buildings,190000              Facilities & Management Services,A,2022,10
955,"Children, Schools and Family",SSD LIMITED,SI-496,17-Jan-23,562.8,93.8,171736, Children's Centres Support,190000              Facilities & Management Services,A,2022,10
956,"Children, Schools and Family",REDACTED PERSONAL DATA,915439,04-Jan-23,700.04,0,171943,Child Disabilities - Placement,CSF-DIRECT PAYMENTS,R,2022,10
957,"Children, Schools and Family",REDACTED PERSONAL DATA,927622,31-Jan-23,700.04,0,171943,Child Disabilities - Placement,CSF-DIRECT PAYMENTS,R,2022,10
958,Community and Housing,REDACTED PERSONAL DATA,913963,04-Jan-23,588.08,0,172070,Learning Disabilities Placemnt,DIRECT PAYMENTS,R,2022,10
959,Community and Housing,REDACTED PERSONAL DATA,926431,31-Jan-23,2058.28,0,172070,Learning Disabilities Placemnt,DIRECT PAYMENTS,R,2022,10
960,Community and Housing,NORBURY PROPERTY SERV LDN LTD,SL-8204,23-Jan-23,11524.87,0,172104,Bed & Breakfast - accomm,321000              Social Community Care Supplies & Services - Adult,A,2022,10
961,Community and Housing,EALING COUNCIL,17089659,06-Jan-23,20000,0,172129,Bed & Breakfast - accomm,OLA,A,2022,10
962,Community and Housing,EALING COUNCIL,921688,19-Jan-23,2985.92,0,172129,Mental Health Placements,OLA,A,2022,10
963,Community and Housing,CARRICKS BROOK,921702,19-Jan-23,6536.16,0,172297,Learning Disabilities Placemnt,321017              Nursing & Residential Care Homes,A,2022,10
964,Community and Housing,BROADHAM CARE LTD,921753,19-Jan-23,7386.96,0,172298,Learning Disabilities Placemnt,321017              Nursing & Residential Care Homes,A,2022,10
965,Community and Housing,BROADHAM CARE LTD,922033,19-Jan-23,7638.12,0,172298,Learning Disabilities Placemnt,321017              Nursing & Residential Care Homes,A,2022,10
966,Environment and Regeneration,PLAYSAFETY LIMITED,68255,30-Jan-23,4403.7,733.95,172454,Pks Rec Grds (Unloc),330000              Sports & Playground Equipment & Maintenance,A,2022,10
967,Unassigned,KENNEDYS,012100658801M890,06-Jan-23,1034.7,0,172486,Corporate Accountancy,280000              Legal Services,A,2022,10
968,Unassigned,KENNEDYS,012200063331M890,06-Jan-23,736.1,0,172486,Corporate Accountancy,280000              Legal Services,A,2022,10
969,Unassigned,KENNEDYS,012200787641M890,06-Jan-23,3080.38,0,172486,Corporate Accountancy,280000              Legal Services,A,2022,10
970,Unassigned,KENNEDYS,012300016101M890,30-Jan-23,2063.6,298.1,172486,Corporate Services,280000              Legal Services,A,2022,10
971,Unassigned,KENNEDYS,012300004231L0N1,30-Jan-23,1143,190.5,172486,Corporate Services,280000              Legal Services,A,2022,10
972,Environment and Regeneration,OPUS ENERGY LIMITED,73443813,23-Jan-23,744.63,35.46,172642,Other Misc Props,370000              Utilities,A,2022,10
973,"Children, Schools and Family",LINDEN LODGE SCHOOL,INV - 1111,20-Jan-23,75262,0,172798,Non-Delegated Statements,170000              Education,A,2022,10
974,"Children, Schools and Family",LINDEN LODGE SCHOOL,INV-1112,20-Jan-23,21256.76,0,172798,Non-Delegated Statements,170000              Education,A,2022,10
975,"Children, Schools and Family",LINDEN LODGE SCHOOL,INV-1113,23-Jan-23,16351.53,0,172798,Non-Delegated Statements,170000              Education,A,2022,10
976,Community and Housing,REDACTED PERSONAL DATA,914066,04-Jan-23,845.76,0,172912,Learning Disabilities Placemnt,DIRECT PAYMENTS,R,2022,10
977,Community and Housing,REDACTED PERSONAL DATA,926218,31-Jan-23,1748.54,0,172912,Learning Disabilities Placemnt,DIRECT PAYMENTS,R,2022,10
978,Community and Housing,REDACTED PERSONAL DATA,913986,04-Jan-23,890.96,0,172914,Learning Disabilities Placemnt,DIRECT PAYMENTS,R,2022,10
979,Community and Housing,REDACTED PERSONAL DATA,926319,31-Jan-23,890.96,0,172914,Learning Disabilities Placemnt,DIRECT PAYMENTS,R,2022,10
980,Community and Housing,REDACTED PERSONAL DATA,914262,04-Jan-23,636,0,172936,Phys/Sens Placements - East,DIRECT PAYMENTS,R,2022,10
981,Community and Housing,REDACTED PERSONAL DATA,926457,31-Jan-23,2561.58,0,172936,Phys/Sens Placements - East,DIRECT PAYMENTS,R,2022,10
982,Environment and Regeneration,GUARDIAN NEWS AND MEDIA LTD,1296678,17-Jan-23,1170,195,173136,Building Control,260000              Human Resources,A,2022,10
983,Community and Housing,HAVERING COURT NURSING HOME,921669,19-Jan-23,4954.12,0,173297,Older People Placements - East,321017              Nursing & Residential Care Homes,A,2022,10
984,Community and Housing,REDACTED PERSONAL DATA,913847,04-Jan-23,706.6,0,173308,Phys/Sens Placements - East,DIRECT PAYMENTS,R,2022,10
985,Community and Housing,REDACTED PERSONAL DATA,926456,31-Jan-23,2784.32,0,173308,Phys/Sens Placements - East,DIRECT PAYMENTS,R,2022,10
986,"Children, Schools and Family",REDACTED PERSONAL DATA,916398,06-Jan-23,512.5,0,173600,Placements Under 18,321100              Social Community Care Supplies & Services - Children,R,2022,10
987,"Children, Schools and Family",REDACTED PERSONAL DATA,920285,13-Jan-23,512.5,0,173600,Placements Under 18,321100              Social Community Care Supplies & Services - Children,R,2022,10
988,"Children, Schools and Family",REDACTED PERSONAL DATA,915565,04-Jan-23,3531.88,0,173793,Child Disabilities - Placement,CSF-DIRECT PAYMENTS,R,2022,10
989,"Children, Schools and Family",REDACTED PERSONAL DATA,927747,31-Jan-23,3531.88,0,173793,Child Disabilities - Placement,CSF-DIRECT PAYMENTS,R,2022,10
990,Environment and Regeneration,GRADKO INTERNATIONAL,219269,27-Jan-23,810.48,135.08,173815,LBR - Pollution,180000              Environmental Services,A,2022,10
991,Community and Housing,HARBOUR CARE (UK) LTD,921978,19-Jan-23,6448.68,0,173947,Learning Disabilities Placemnt,321017              Nursing & Residential Care Homes,A,2022,10
992,"Children, Schools and Family",REDACTED PERSONAL DATA,915478,04-Jan-23,2200,0,174212, Statementing-Transport,CSF-DIRECT PAYMENTS,R,2022,10
993,"Children, Schools and Family",REDACTED PERSONAL DATA,927658,31-Jan-23,2200,0,174212, Statementing-Transport,CSF-DIRECT PAYMENTS,R,2022,10
994,Community and Housing,ASHINGTON HOUSE,921723,19-Jan-23,4406.68,0,174259,Learning Disabilities Placemnt,321017              Nursing & Residential Care Homes,A,2022,10
995,Community and Housing,REDACTED PERSONAL DATA,913925,04-Jan-23,779.6,0,174449,Phys/Sens Placements - East,DIRECT PAYMENTS,R,2022,10
996,Community and Housing,REDACTED PERSONAL DATA,926257,31-Jan-23,779.6,0,174449,Phys/Sens Placements - East,DIRECT PAYMENTS,R,2022,10
997,Community and Housing,REDACTED PERSONAL DATA,914126,04-Jan-23,2702,0,174465,Older People Placements - East,DIRECT PAYMENTS,R,2022,10
998,Community and Housing,REDACTED PERSONAL DATA,926463,31-Jan-23,2702,0,174465,Older People Placements - East,DIRECT PAYMENTS,R,2022,10
999,Community and Housing,PRECIOUS HOMES LTD,VER002523,13-Jan-23,10423.35,0,174641,Learning Disabilities Placemnt,321017              Nursing & Residential Care Homes,A,2022,10
1000,Community and Housing,SUPREME HOMES,30202,13-Jan-23,3280,0,174758,Mental Health Placements,321017              Nursing & Residential Care Homes,A,2022,10
1001,Community and Housing,SUPREME HOMES,30231,13-Jan-23,3280,0,174758,Mental Health Placements,321017              Nursing & Residential Care Homes,A,2022,10
1002,Community and Housing,SUPREME HOMES,30262,13-Jan-23,3280,0,174758,Mental Health Placements,321017              Nursing & Residential Care Homes,A,2022,10
1003,Community and Housing,SUPREME HOMES,30173,13-Jan-23,3280,0,174758,Mental Health Placements,321017              Nursing & Residential Care Homes,A,2022,10
1004,Community and Housing,ALPENBEST LIMITED,1012023-963516,11-Jan-23,600.45,0,174789,Older People Placements - East,321000              Social Community Care Supplies & Services - Adult,A,2022,10
1005,Community and Housing,ALPENBEST LIMITED,1012023-994358,11-Jan-23,588.98,0,174789,Older People Placements - East,321000              Social Community Care Supplies & Services - Adult,A,2022,10
1006,Community and Housing,ALPENBEST LIMITED,18122022-963516,11-Jan-23,545.57,0,174789,Older People Placements - East,321000              Social Community Care Supplies & Services - Adult,A,2022,10
1007,Community and Housing,ALPENBEST LIMITED,18122022-994358,11-Jan-23,534.1,0,174789,Older People Placements - East,321000              Social Community Care Supplies & Services - Adult,A,2022,10
1008,Community and Housing,ALPENBEST LIMITED,25122022-963516,11-Jan-23,545.57,0,174789,Older People Placements - East,321000              Social Community Care Supplies & Services - Adult,A,2022,10
1009,Community and Housing,ALPENBEST LIMITED,25122022-994358,11-Jan-23,534.1,0,174789,Older People Placements - East,321000              Social Community Care Supplies & Services - Adult,A,2022,10
1010,Community and Housing,ALPENBEST LIMITED,11122022-963516,12-Jan-23,575.97,0,174789,Older People Placements - East,321000              Social Community Care Supplies & Services - Adult,A,2022,10
1011,Community and Housing,ALPENBEST LIMITED,11122022-994358,12-Jan-23,534.1,0,174789,Older People Placements - East,321000              Social Community Care Supplies & Services - Adult,A,2022,10
1012,Community and Housing,SUTTON COURT CARE CENTRE,921763,19-Jan-23,2827.36,0,174833,Older People Placements - East,321017              Nursing & Residential Care Homes,A,2022,10
1013,Community and Housing,SUTTON COURT CARE CENTRE,921777,19-Jan-23,656.4,0,174833,Older People Placements - East,321017              Nursing & Residential Care Homes,A,2022,10
1014,Community and Housing,SUTTON COURT CARE CENTRE,921863,19-Jan-23,3163.36,0,174833,Older People Placements - East,321017              Nursing & Residential Care Homes,A,2022,10
1015,Community and Housing,SUTTON COURT CARE CENTRE,921890,19-Jan-23,4049.6,0,174833,Phys/Sens Placements - East,321017              Nursing & Residential Care Homes,A,2022,10
1016,Community and Housing,SUTTON COURT CARE CENTRE,922056,19-Jan-23,4097.28,0,174833,Phys/Sens Placements - East,321017              Nursing & Residential Care Homes,A,2022,10
1017,Community and Housing,REDACTED PERSONAL DATA,914064,04-Jan-23,636.4,0,174975,Learning Disabilities Placemnt,DIRECT PAYMENTS,R,2022,10
1018,Community and Housing,REDACTED PERSONAL DATA,926397,31-Jan-23,636.4,0,174975,Learning Disabilities Placemnt,DIRECT PAYMENTS,R,2022,10
1019,"Children, Schools and Family",REDACTED PERSONAL DATA,915503,06-Jan-23,648.56,0,175042,CWD Placements,CSF-DIRECT PAYMENTS,R,2022,10
1020,"Children, Schools and Family",PROSPECT EDUC (TECH)TRUST LTD,PETTL1300,10-Jan-23,13100,0,175114,Non-Delegated Statements,170000              Education,A,2022,10
1021,"Children, Schools and Family",PROSPECT EDUC (TECH)TRUST LTD,PETTL1299,10-Jan-23,8288.61,0,175114,Non-Delegated Statements,170000              Education,A,2022,10
1022,"Children, Schools and Family",GLOBAL MEDIATION LTD,INV-94277,12-Jan-23,1320,220,175270,Non-Delegated Statements,260000              Human Resources                                                                           Confirmed,A,2022,10
1023,"Children, Schools and Family",GLOBAL MEDIATION LTD,INV-94328,27-Jan-23,1320,220,175270,Non-Delegated Statements,260000              Human Resources                                                                           Confirmed,A,2022,10
1024,Community and Housing,KISIMUL SCHOOL,918636,11-Jan-23,44091.2,0,175545,Learning Disabilities Placemnt,321017              Nursing & Residential Care Homes,A,2022,10
1025,Community and Housing,KISIMUL SCHOOL,921694,19-Jan-23,12524.72,0,175545,Learning Disabilities Placemnt,321017              Nursing & Residential Care Homes,A,2022,10
1026,Community and Housing,KISIMUL SCHOOL,921938,19-Jan-23,16304,0,175545,Learning Disabilities Placemnt,321017              Nursing & Residential Care Homes,A,2022,10
1027,Community and Housing,REDACTED PERSONAL DATA,913978,04-Jan-23,1781.92,0,175782,Phys/Sens Placements - East,DIRECT PAYMENTS,R,2022,10
1028,Community and Housing,REDACTED PERSONAL DATA,926311,31-Jan-23,1781.92,0,175782,Phys/Sens Placements - East,DIRECT PAYMENTS,R,2022,10
1029,Corporate Services,EDGE TRAINING AND CONS.LTD,8795,23-Jan-23,1050,175,175812,Learning and Development,260000              Human Resources,A,2022,10
1030,Corporate Services,EDGE TRAINING AND CONS.LTD,8794,23-Jan-23,1050,175,175812,Learning and Development,260000              Human Resources,A,2022,10
1031,Corporate Services,TWOFOLD LTD,10296,18-Jan-23,16055.17,2675.86,175861,Business Systems,270000              Information Communication Technology,A,2022,10
1032,Community and Housing,REDACTED PERSONAL DATA,914109,04-Jan-23,1336.44,0,175960,Learning Disabilities Placemnt,DIRECT PAYMENTS,R,2022,10
1033,Community and Housing,REDACTED PERSONAL DATA,926444,31-Jan-23,1336.44,0,175960,Learning Disabilities Placemnt,DIRECT PAYMENTS,R,2022,10
1034,Community and Housing,Care for Veterans,921961,19-Jan-23,4294.28,0,176384,Phys/Sens Placements - East,321017              Nursing & Residential Care Homes,A,2022,10
1035,"Children, Schools and Family",ST JOHN FISHER SCHOOL,JFS000238,11-Jan-23,11310.55,0,176388,Non-Delegated Statements,170000              Education,A,2022,10
1036,Community and Housing,REDACTED PERSONAL DATA,913861,04-Jan-23,572.76,0,176619,Phys/Sens Placements - East,DIRECT PAYMENTS,R,2022,10
1037,Community and Housing,REDACTED PERSONAL DATA,926191,31-Jan-23,572.76,0,176619,Phys/Sens Placements - East,DIRECT PAYMENTS,R,2022,10
1038,Community and Housing,REDACTED PERSONAL DATA,914243,04-Jan-23,5345.76,0,176783,Phys/Sens Placements - East,DIRECT PAYMENTS,R,2022,10
1039,Community and Housing,REDACTED PERSONAL DATA,926584,31-Jan-23,5345.76,0,176783,Phys/Sens Placements - East,DIRECT PAYMENTS,R,2022,10
1040,"Children, Schools and Family",THE PRE-SCHOOL GROUP LTD,P3 23 UPFRONT,10-Jan-23,31758.1,0,176785,EARLY YEARS NURSERY GRANTS,200000              Financial Services,A,2022,10
1041,Community and Housing,REDACTED PERSONAL DATA,914213,04-Jan-23,1813.76,0,176868,Phys/Sens Placements - East,DIRECT PAYMENTS,R,2022,10
1042,Community and Housing,REDACTED PERSONAL DATA,926551,31-Jan-23,1813.76,0,176868,Phys/Sens Placements - East,DIRECT PAYMENTS,R,2022,10
1043,Community and Housing,SPRING LAKE CARE HOME LTD,921833,19-Jan-23,11418,0,177067,Learning Disabilities Placemnt,321017              Nursing & Residential Care Homes,A,2022,10
1044,Community and Housing,SPRING LAKE CARE HOME LTD,922048,19-Jan-23,6468,0,177067,Learning Disabilities Placemnt,321017              Nursing & Residential Care Homes,A,2022,10
1045,Community and Housing,REDACTED PERSONAL DATA,914229,04-Jan-23,652.32,0,177115,Phys/Sens Placements - East,DIRECT PAYMENTS,R,2022,10
1046,Community and Housing,REDACTED PERSONAL DATA,926482,31-Jan-23,2283.12,0,177115,Older People Placements - East,DIRECT PAYMENTS,R,2022,10
1047,"Children, Schools and Family",HA TUTORS LTD,INV-13049,09-Jan-23,936,156,177219,Non-Delegated Statements,170000              Education,A,2022,10
1048,"Children, Schools and Family",HA TUTORS LTD,INV-13050,09-Jan-23,2942.1,490.35,177219,Non-Delegated Statements,170000              Education,A,2022,10
1049,"Children, Schools and Family",HA TUTORS LTD,INV-13054,09-Jan-23,663.6,110.6,177219,Non-Delegated Statements,170000              Education,A,2022,10
1050,"Children, Schools and Family",HA TUTORS LTD,INV-13053,09-Jan-23,1425.6,237.6,177219,Non-Delegated Statements,170000              Education,A,2022,10
1051,"Children, Schools and Family",HA TUTORS LTD,INV-13051,09-Jan-23,4090.8,681.8,177219,Non-Delegated Statements,170000              Education,A,2022,10
1052,"Children, Schools and Family",HA TUTORS LTD,INV-13052,09-Jan-23,1026,171,177219,Non-Delegated Statements,170000              Education,A,2022,10
1053,"Children, Schools and Family",HA TUTORS LTD,INV-13055,09-Jan-23,2615.1,435.85,177219,Non-Delegated Statements,170000              Education,A,2022,10
1054,Community and Housing,REDACTED PERSONAL DATA,914046,04-Jan-23,954.6,0,177241,Learning Disabilities Placemnt,DIRECT PAYMENTS,R,2022,10
1055,Unassigned,UK POWER NETWORKS (OPERATIONS),92146765,20-Jan-23,1279.2,213.2,177333,Environment and Regeneration,180000              Environmental Services,A,2022,10
1056,Corporate Services,EXPERT IN MIND,37829,18-Jan-23,524.16,87.36,177342,SLLP - Disbursements,280000              Legal Services                                                                            Confirmed,A,2022,10
1057,Corporate Services,EXPERT IN MIND,36146,23-Jan-23,862.32,143.72,177342,SLLP - Disbursements,280000              Legal Services                                                                            Confirmed,A,2022,10
1058,"Children, Schools and Family",HYTYME B AND B,26562A,04-Jan-23,1674,279,177425,Family Assessmt & Intervention,321000              Social Community Care Supplies & Services - Adult,A,2022,10
1059,"Children, Schools and Family",HYTYME B AND B,26622,04-Jan-23,918,153,177425,Family Assessmt & Intervention,321000              Social Community Care Supplies & Services - Adult,A,2022,10
1060,"Children, Schools and Family",HYTYME B AND B,26508,04-Jan-23,540,90,177425,Family Supp SafeGuard - Place,321000              Social Community Care Supplies & Services - Adult,A,2022,10
1061,"Children, Schools and Family",HYTYME B AND B,26680,13-Jan-23,1302,217,177425,Family Assessmt & Intervention,321000              Social Community Care Supplies & Services - Adult,A,2022,10
1062,"Children, Schools and Family",HYTYME B AND B,26672,13-Jan-23,1302,217,177425,Family Assessmt & Intervention,321000              Social Community Care Supplies & Services - Adult,A,2022,10
1063,Community and Housing,HYTYME B AND B,26645,18-Jan-23,15373.2,2562.2,177425,Bed & Breakfast - accomm,321000              Social Community Care Supplies & Services - Adult,A,2022,10
1064,"Children, Schools and Family",HYTYME B AND B,26682,16-Jan-23,1302,217,177425,Family Supp SafeGuard - Place,321000              Social Community Care Supplies & Services - Adult,A,2022,10
1065,Community and Housing,HYTYME B AND B,26646,26-Jan-23,1302,217,177425,Housing Strategy,321000              Social Community Care Supplies & Services - Adult,A,2022,10
1066,Community and Housing,HYTYME B AND B,26521,31-Jan-23,1302,217,177425,Housing Strategy,321000              Social Community Care Supplies & Services - Adult,A,2022,10
1067,Community and Housing,HYTYME B AND B,26581,31-Jan-23,1260,210,177425,Housing Strategy,321000              Social Community Care Supplies & Services - Adult,A,2022,10
1068,Community and Housing,REDACTED PERSONAL DATA,913921,04-Jan-23,710.2,0,177453,Phys/Sens Placements - East,DIRECT PAYMENTS,R,2022,10
1069,Community and Housing,REDACTED PERSONAL DATA,926253,31-Jan-23,710.2,0,177453,Phys/Sens Placements - East,DIRECT PAYMENTS,R,2022,10
1070,Community and Housing,REDACTED PERSONAL DATA,913910,04-Jan-23,724.72,0,177476,Learning Disabilities Placemnt,DIRECT PAYMENTS,R,2022,10
1071,Community and Housing,REDACTED PERSONAL DATA,926242,31-Jan-23,724.72,0,177476,Learning Disabilities Placemnt,DIRECT PAYMENTS,R,2022,10
1072,Community and Housing,REDACTED PERSONAL DATA,913871,04-Jan-23,1197.28,0,177502,Phys/Sens Placements - East,DIRECT PAYMENTS,R,2022,10
1073,Community and Housing,REDACTED PERSONAL DATA,926200,31-Jan-23,1197.28,0,177502,Phys/Sens Placements - East,DIRECT PAYMENTS,R,2022,10
1074,"Children, Schools and Family",BUTTERFLIES CHILDCARE LIMITED,P3 23 UPFRONT,10-Jan-23,17832.96,0,177504,EARLY YEARS NURSERY GRANTS,200000              Financial Services,A,2022,10
1075,Community and Housing,REDACTED PERSONAL DATA,914185,04-Jan-23,572.76,0,177739,Phys/Sens Placements - East,DIRECT PAYMENTS,R,2022,10
1076,Community and Housing,REDACTED PERSONAL DATA,926522,31-Jan-23,572.76,0,177739,Phys/Sens Placements - East,DIRECT PAYMENTS,R,2022,10
1077,Community and Housing,REDACTED PERSONAL DATA,914157,04-Jan-23,668.2,0,177785,Phys/Sens Placements - East,DIRECT PAYMENTS,R,2022,10
1078,Community and Housing,REDACTED PERSONAL DATA,926494,31-Jan-23,668.2,0,177785,Phys/Sens Placements - East,DIRECT PAYMENTS,R,2022,10
1079,"Children, Schools and Family",REDACTED PERSONAL DATA,P3 23 UPFRONT,10-Jan-23,829.44,0,177813,EARLY YEARS NURSERY GRANTS,200000              Financial Services,R,2022,10
1080,Unassigned,EDENRED (UK GROUP) LTD,CVHRS DEC22 CHPS,13-Jan-23,683.62,0,177846,Corporate Accountancy,321100              Social Community Care Supplies & Services - Children,A,2022,10
1081,Community and Housing,WORKSHOP 305,ASCO160,04-Jan-23,807.6,0,177941,Learning Disabilities Placemnt,321000              Social Community Care Supplies & Services - Adult,A,2022,10
1082,Community and Housing,WORKSHOP 305,RAG160,16-Jan-23,807.6,0,177941,Learning Disabilities Placemnt,321000              Social Community Care Supplies & Services - Adult,A,2022,10
1083,Community and Housing,WORKSHOP 305,SLAP160,16-Jan-23,538.32,0,177941,Learning Disabilities Placemnt,321000              Social Community Care Supplies & Services - Adult,A,2022,10
1084,Community and Housing,WORKSHOP 305,IALA160,19-Jan-23,538.4,0,177941,Learning Disabilities Placemnt,321000              Social Community Care Supplies & Services - Adult,A,2022,10
1085,Community and Housing,WORKSHOP 305,IALA161,31-Jan-23,538.4,0,177941,Learning Disabilities Placemnt,321000              Social Community Care Supplies & Services - Adult,A,2022,10
1086,Community and Housing,WORKSHOP 305,ASCO161,31-Jan-23,807.6,0,177941,Learning Disabilities Placemnt,321000              Social Community Care Supplies & Services - Adult,A,2022,10
1087,Community and Housing,REDACTED PERSONAL DATA,913865,04-Jan-23,731.4,0,177967,Learning Disabilities Placemnt,DIRECT PAYMENTS,R,2022,10
1088,Community and Housing,REDACTED PERSONAL DATA,926194,31-Jan-23,731.4,0,177967,Learning Disabilities Placemnt,DIRECT PAYMENTS,R,2022,10
1089,Community and Housing,REDACTED PERSONAL DATA,914125,04-Jan-23,890.96,0,177999,Learning Disabilities Placemnt,DIRECT PAYMENTS,R,2022,10
1090,Community and Housing,REDACTED PERSONAL DATA,926462,31-Jan-23,890.96,0,177999,Learning Disabilities Placemnt,DIRECT PAYMENTS,R,2022,10
1091,Community and Housing,REDACTED PERSONAL DATA,913915,04-Jan-23,3824,0,178412,Learning Disabilities Placemnt,DIRECT PAYMENTS,R,2022,10
1092,Community and Housing,REDACTED PERSONAL DATA,926247,31-Jan-23,3824,0,178412,Learning Disabilities Placemnt,DIRECT PAYMENTS,R,2022,10
1093,"Children, Schools and Family",Little Hearts Pre School,P3 23 UPFRONT,10-Jan-23,10726.62,0,178454,EARLY YEARS NURSERY GRANTS,200000              Financial Services,A,2022,10
1094,Community and Housing,BRAMBLEDOWN CARE HOME,921844,19-Jan-23,7448.8,0,178465,Phys/Sens Placements - East,321017              Nursing & Residential Care Homes,A,2022,10
1095,Community and Housing,LOVE WALK RESIDENTIAL HOME,921842,19-Jan-23,3381.4,0,178620,Phys/Sens Placements - East,321017              Nursing & Residential Care Homes,A,2022,10
1096,Community and Housing,KEW HOUSE,921851,19-Jan-23,3289.24,0,178621,Older People Placements - East,321017              Nursing & Residential Care Homes,A,2022,10
1097,Community and Housing,KEW HOUSE,921935,19-Jan-23,5800,0,178621,Older People Placements - East,321017              Nursing & Residential Care Homes,A,2022,10
1098,Community and Housing,REDACTED PERSONAL DATA,914025,04-Jan-23,964,0,178767,Learning Disabilities Placemnt,DIRECT PAYMENTS,R,2022,10
1099,Community and Housing,REDACTED PERSONAL DATA,926359,31-Jan-23,964,0,178767,Learning Disabilities Placemnt,DIRECT PAYMENTS,R,2022,10
1100,Community and Housing,REDACTED PERSONAL DATA,914137,04-Jan-23,1946.16,0,178802,Learning Disabilities Placemnt,DIRECT PAYMENTS,R,2022,10
1101,Community and Housing,REDACTED PERSONAL DATA,926473,31-Jan-23,1946.16,0,178802,Learning Disabilities Placemnt,DIRECT PAYMENTS,R,2022,10
1102,Community and Housing,REDACTED PERSONAL DATA,914054,04-Jan-23,1812.28,0,178874,Learning Disabilities Placemnt,DIRECT PAYMENTS,R,2022,10
1103,Community and Housing,REDACTED PERSONAL DATA,926402,31-Jan-23,6342.98,0,178874,Learning Disabilities Placemnt,DIRECT PAYMENTS,R,2022,10
1104,"Children, Schools and Family",MODERN MONTESSORI INTL. LTD,P3 23 UPFRONT,10-Jan-23,9624.67,0,178883,EARLY YEARS NURSERY GRANTS,200000              Financial Services,A,2022,10
1105,"Children, Schools and Family",REDACTED PERSONAL DATA,924539,23-Jan-23,2204.39,0,178940,Fostering Recruit/Assessment,321100              Social Community Care Supplies & Services - Children,R,2022,10
1106,"Children, Schools and Family",REDACTED PERSONAL DATA,924542,23-Jan-23,2442.74,0,178940,Fostering Recruit/Assessment,321100              Social Community Care Supplies & Services - Children,R,2022,10
1107,"Children, Schools and Family",REDACTED PERSONAL DATA,924638,23-Jan-23,2442.74,0,178940,Fostering Recruit/Assessment,321100              Social Community Care Supplies & Services - Children,R,2022,10
1108,Community and Housing,REDACTED PERSONAL DATA,914195,04-Jan-23,1336.44,0,179049,Learning Disabilities Placemnt,DIRECT PAYMENTS,R,2022,10
1109,Community and Housing,REDACTED PERSONAL DATA,926531,31-Jan-23,1336.44,0,179049,Learning Disabilities Placemnt,DIRECT PAYMENTS,R,2022,10
1110,"Children, Schools and Family",WILLOWS PRE-SCHOOL,P3 23 UPFRONT,10-Jan-23,17832.96,0,179134,EARLY YEARS NURSERY GRANTS,170000              Education,A,2022,10
1111,Community and Housing,REDACTED PERSONAL DATA,914227,04-Jan-23,1193.28,0,179299,Older People Placements - East,DIRECT PAYMENTS,R,2022,10
1112,Community and Housing,REDACTED PERSONAL DATA,926566,31-Jan-23,1193.28,0,179299,Older People Placements - East,DIRECT PAYMENTS,R,2022,10
1113,Community and Housing,REDACTED PERSONAL DATA,914091,04-Jan-23,1739.6,0,179332,Phys/Sens Placements - East,DIRECT PAYMENTS,R,2022,10
1114,Community and Housing,REDACTED PERSONAL DATA,926424,31-Jan-23,1739.6,0,179332,Phys/Sens Placements - East,DIRECT PAYMENTS,R,2022,10
1115,Community and Housing,REDACTED PERSONAL DATA,913836,04-Jan-23,4318.6,0,179383,Learning Disabilities Placemnt,DIRECT PAYMENTS,R,2022,10
1116,Community and Housing,REDACTED PERSONAL DATA,926486,31-Jan-23,14968.8,0,179383,Learning Disabilities Placemnt,DIRECT PAYMENTS,R,2022,10
1117,"Children, Schools and Family",REDACTED PERSONAL DATA,1YE,25-Jan-23,1354.99,0,179598,Placements Over 18,321000              Social Community Care Supplies & Services - Adult,R,2022,10
1118,Environment and Regeneration,FUTURE OF LONDON 2011 LIMITED,2022MEM048,25-Jan-23,5244,249,179719,Spatial Policy,200000              Financial Services,A,2022,10
1119,Community and Housing,ELYSIUM CARE PARTNERSHIPS LTD,921751,19-Jan-23,10202.48,0,179734,Learning Disabilities Placemnt,321017              Nursing & Residential Care Homes,A,2022,10
1120,Community and Housing,ELYSIUM CARE PARTNERSHIPS LTD,921880,19-Jan-23,9049.16,0,179734,Learning Disabilities Placemnt,321017              Nursing & Residential Care Homes,A,2022,10
1121,Community and Housing,ELYSIUM CARE PARTNERSHIPS LTD,921895,19-Jan-23,3462.2,0,179734,Learning Disabilities Placemnt,321017              Nursing & Residential Care Homes,A,2022,10
1122,Community and Housing,ELYSIUM CARE PARTNERSHIPS LTD,922021,19-Jan-23,9821,0,179734,Learning Disabilities Placemnt,321017              Nursing & Residential Care Homes,A,2022,10
1123,Community and Housing,WESTHOPE LTD,921846,19-Jan-23,6350.78,1058.46,179748,Learning Disabilities Placemnt,321017              Nursing & Residential Care Homes,A,2022,10
1124,Environment and Regeneration,BARKLANDS TREE SPECIALISTS,315,04-Jan-23,16721.15,2786.86,179780,Highways GM Contract,240000              Horticultural,A,2022,10
1125,Environment and Regeneration,BARKLANDS TREE SPECIALISTS,320,26-Jan-23,8055,1342.5,179780,Highways GM Contract,240000              Horticultural,A,2022,10
1126,Community and Housing,SUNNINGDALE HOUSE CARE HOME,922015,19-Jan-23,2575,0,179794,Learning Disabilities Placemnt,321017              Nursing & Residential Care Homes,A,2022,10
1127,Community and Housing,SUNLIGHT HOUSE,921787,19-Jan-23,7667.6,0,179813,Learning Disabilities Placemnt,321017              Nursing & Residential Care Homes,A,2022,10
1128,Community and Housing,SUNLIGHT HOUSE,921902,19-Jan-23,5140,0,179813,Learning Disabilities Placemnt,321017              Nursing & Residential Care Homes,A,2022,10
1129,"Children, Schools and Family",COLLIERS WOOD VILLAGE DAY NUR.,P3 23 UPFRONT,10-Jan-23,16801.92,0,179896,EARLY YEARS NURSERY GRANTS,200000              Financial Services,A,2022,10
1130,"Children, Schools and Family",STORMSAVER LTD,6022337,11-Jan-23,768.7,128.12,179980,Acacia IGC Building Management,"390000              Works - Construction, Repair & Maintenance",A,2022,10
1131,Community and Housing,BHAKTI SHYAMA CARE CENTRE,922086,19-Jan-23,2985.6,0,179993,Older People Placements - East,321017              Nursing & Residential Care Homes,A,2022,10
1132,Community and Housing,REDACTED PERSONAL DATA,914216,04-Jan-23,1109.32,0,180174,Older People Placements - East,DIRECT PAYMENTS,R,2022,10
1133,Community and Housing,REDACTED PERSONAL DATA,926582,31-Jan-23,3882.62,0,180174,Older People Placements - East,DIRECT PAYMENTS,R,2022,10
1134,Community and Housing,SUNRISE DAY CARE,4410,13-Jan-23,510.24,0,180196,Older People Placements - East,321000              Social Community Care Supplies & Services - Adult,A,2022,10
1135,Community and Housing,SUNRISE DAY CARE,4409,13-Jan-23,510.24,0,180196,Older People Placements - East,321000              Social Community Care Supplies & Services - Adult,A,2022,10
1136,Community and Housing,SUNRISE DAY CARE,4412,13-Jan-23,765.36,0,180196,Older People Placements - East,321000              Social Community Care Supplies & Services - Adult,A,2022,10
1137,Community and Housing,SUNRISE DAY CARE,4400,13-Jan-23,637.8,0,180196,Learning Disabilities Placemnt,321000              Social Community Care Supplies & Services - Adult,A,2022,10
1138,Community and Housing,SUNRISE DAY CARE,4396,13-Jan-23,510.24,0,180196,Older People Placements - East,321000              Social Community Care Supplies & Services - Adult,A,2022,10
1139,Community and Housing,SUNRISE DAY CARE,DP4813,13-Jan-23,2011.56,0,180196,Older People Placements - East,321000              Social Community Care Supplies & Services - Adult,A,2022,10
1140,Community and Housing,SUNRISE DAY CARE,4408,13-Jan-23,510.24,0,180196,Older People Placements - East,321000              Social Community Care Supplies & Services - Adult,A,2022,10
1141,Community and Housing,SUNRISE DAY CARE,DP4814,13-Jan-23,3090.48,0,180196,Phys/Sens Placements - East,321000              Social Community Care Supplies & Services - Adult,A,2022,10
1142,Community and Housing,SUNRISE DAY CARE,4399,13-Jan-23,510.24,0,180196,Older People Placements - East,321000              Social Community Care Supplies & Services - Adult,A,2022,10
1143,Community and Housing,SUNRISE DAY CARE,DP4812,13-Jan-23,1470.32,0,180196,Older People Placements - East,321000              Social Community Care Supplies & Services - Adult,A,2022,10
1144,Community and Housing,REDACTED PERSONAL DATA,913983,04-Jan-23,509.12,0,180242,Phys/Sens Placements - East,DIRECT PAYMENTS,R,2022,10
1145,Community and Housing,REDACTED PERSONAL DATA,926316,31-Jan-23,509.12,0,180242,Phys/Sens Placements - East,DIRECT PAYMENTS,R,2022,10
1146,Community and Housing,REDACTED PERSONAL DATA,913867,04-Jan-23,1177.36,0,180282,Phys/Sens Placements - East,DIRECT PAYMENTS,R,2022,10
1147,Community and Housing,REDACTED PERSONAL DATA,926196,31-Jan-23,1177.36,0,180282,Phys/Sens Placements - East,DIRECT PAYMENTS,R,2022,10
1148,Community and Housing,REDACTED PERSONAL DATA,913874,04-Jan-23,2839.28,0,180285,Older People Placements - East,DIRECT PAYMENTS,R,2022,10
1149,Community and Housing,REDACTED PERSONAL DATA,926203,31-Jan-23,2839.28,0,180285,Older People Placements - East,DIRECT PAYMENTS,R,2022,10
1150,Community and Housing,SEVACARE,25.12.22/9,23-Jan-23,2222.63,0,180307,Older People Placements - East,321000              Social Community Care Supplies & Services - Adult,A,2022,10
1151,Community and Housing,SEVACARE,25.12.22/6,23-Jan-23,528.92,0,180307,Phys/Sens Placements - East,321000              Social Community Care Supplies & Services - Adult,A,2022,10
1152,Community and Housing,SEVACARE,25.12.22/4,23-Jan-23,1212.01,0,180307,Older People Placements - East,321000              Social Community Care Supplies & Services - Adult,A,2022,10
1153,Community and Housing,SEVACARE,25.12.22/2,23-Jan-23,713.46,0,180307,Older People Placements - East,321000              Social Community Care Supplies & Services - Adult,A,2022,10
1154,Community and Housing,SEVACARE,25.12.22/5,23-Jan-23,758.18,0,180307,Older People Placements - East,321000              Social Community Care Supplies & Services - Adult,A,2022,10
1155,"Children, Schools and Family",STUFF-UK.NET,PF-10345085,24-Jan-23,1380.84,0,180424,School Improvement GeneralFund,270000              Information Communication Technology,A,2022,10
1156,Unassigned,UK Power Networks (Faults / Operations),92145542,16-Jan-23,1764,294,180431,Environment and Regeneration,190000              Facilities & Management Services,A,2022,10
1157,"Children, Schools and Family",RESTORE PLC,1325151,18-Jan-23,551.28,91.88,180441,Fostering Recruit/Assessment,190000              Facilities & Management Services,A,2022,10
1158,Corporate Services,RESTORE PLC,1325153,18-Jan-23,673.2,112.2,180441,Legal Shared Service,190000              Facilities & Management Services,A,2022,10
1159,"Children, Schools and Family",RESTORE PLC,1320697,18-Jan-23,802.62,133.77,180441,Head of CSC & Youth Inclusion,190000              Facilities & Management Services,A,2022,10
1160,Community and Housing,REDACTED PERSONAL DATA,914194,04-Jan-23,1320.52,0,180447,Older People Placements - East,DIRECT PAYMENTS,R,2022,10
1161,Community and Housing,REDACTED PERSONAL DATA,926530,31-Jan-23,1320.52,0,180447,Older People Placements - East,DIRECT PAYMENTS,R,2022,10
1162,Community and Housing,REDACTED PERSONAL DATA,914212,04-Jan-23,500.96,0,180478,Phys/Sens Placements - East,DIRECT PAYMENTS,R,2022,10
1163,Community and Housing,REDACTED PERSONAL DATA,926550,31-Jan-23,500.96,0,180478,Phys/Sens Placements - East,DIRECT PAYMENTS,R,2022,10
1164,Corporate Services,ZYLPHA LIMITED,INV-3160,10-Jan-23,12000,2000,180532,Legal Shared Service,270000              Information Communication Technology                                                      Confirmed,A,2022,10
1165,"Children, Schools and Family",REDACTED PERSONAL DATA,920264,13-Jan-23,514.75,0,180579,UASC LAC Under 18,321100              Social Community Care Supplies & Services - Children,R,2022,10
1166,"Children, Schools and Family",REDACTED PERSONAL DATA,920272,13-Jan-23,514.75,0,180579,Fostering Support,321100              Social Community Care Supplies & Services - Children,R,2022,10
1167,"Children, Schools and Family",REDACTED PERSONAL DATA,924242,20-Jan-23,514.75,0,180579,UASC LAC Under 18,321100              Social Community Care Supplies & Services - Children,R,2022,10
1168,"Children, Schools and Family",REDACTED PERSONAL DATA,927112,27-Jan-23,514.75,0,180579,UASC LAC Under 18,321100              Social Community Care Supplies & Services - Children,R,2022,10
1169,Environment and Regeneration,HMCTS,TECBATCHES2023,23-Jan-23,25000,0,180649,Operational Running Costs,350000              Street & Traffic Management,A,2022,10
1170,Community and Housing,REDACTED PERSONAL DATA,913866,04-Jan-23,763.68,0,180804,Learning Disabilities Placemnt,DIRECT PAYMENTS,R,2022,10
1171,Community and Housing,REDACTED PERSONAL DATA,926195,31-Jan-23,763.68,0,180804,Learning Disabilities Placemnt,DIRECT PAYMENTS,R,2022,10
1172,Community and Housing,REDACTED PERSONAL DATA,916613,09-Jan-23,722.52,0,180839,LD Housing Support Placements,321000              Social Community Care Supplies & Services - Adult,R,2022,10
1173,Community and Housing,REDACTED PERSONAL DATA,913992,04-Jan-23,576.72,0,180866,Phys/Sens Placements - East,DIRECT PAYMENTS,R,2022,10
1174,Community and Housing,REDACTED PERSONAL DATA,914008,04-Jan-23,1336.44,0,180866,Phys/Sens Placements - East,DIRECT PAYMENTS,R,2022,10
1175,Community and Housing,REDACTED PERSONAL DATA,926325,31-Jan-23,576.72,0,180866,Phys/Sens Placements - East,DIRECT PAYMENTS,R,2022,10
1176,Community and Housing,REDACTED PERSONAL DATA,926341,31-Jan-23,1336.44,0,180866,Phys/Sens Placements - East,DIRECT PAYMENTS,R,2022,10
1177,Community and Housing,REDACTED PERSONAL DATA,913957,04-Jan-23,2156,0,180889,Older People Placements - East,DIRECT PAYMENTS,R,2022,10
1178,Community and Housing,REDACTED PERSONAL DATA,926288,31-Jan-23,2156,0,180889,Older People Placements - East,DIRECT PAYMENTS,R,2022,10
1179,Community and Housing,SENAD ECCLESBOURNE LODGE,921686,19-Jan-23,9810.88,0,180904,Learning Disabilities Placemnt,321017              Nursing & Residential Care Homes,A,2022,10
1180,Community and Housing,REDACTED PERSONAL DATA,913939,04-Jan-23,890.96,0,180999,Older People Placements - East,DIRECT PAYMENTS,R,2022,10
1181,Community and Housing,REDACTED PERSONAL DATA,926271,31-Jan-23,890.96,0,180999,Older People Placements - East,DIRECT PAYMENTS,R,2022,10
1182,Environment and Regeneration,PREMIER MINICAB SER. UK LTD,63912,26-Jan-23,3090,515,181053,Passenger Transport,360000              Passenger Transport,A,2022,10
1183,Environment and Regeneration,PREMIER MINICAB SER. UK LTD,63748,26-Jan-23,3600,600,181053,Passenger Transport,360000              Passenger Transport,A,2022,10
1184,Environment and Regeneration,PREMIER MINICAB SER. UK LTD,63395,26-Jan-23,2562,427,181053,Passenger Transport,360000              Passenger Transport,A,2022,10
1185,Environment and Regeneration,PREMIER MINICAB SER. UK LTD,65914,26-Jan-23,2880,480,181053,Passenger Transport,360000              Passenger Transport,A,2022,10
1186,Community and Housing,REDACTED PERSONAL DATA,914067,04-Jan-23,2530.08,0,181129,Older People Placements - East,DIRECT PAYMENTS,R,2022,10
1187,Community and Housing,REDACTED PERSONAL DATA,926400,31-Jan-23,2530.08,0,181129,Older People Placements - East,DIRECT PAYMENTS,R,2022,10
1188,Community and Housing,Community Equipment Services,9100000666,24-Jan-23,630,105,181238,Pooled Equipment,410000              Social Community Care Supplies & Services,A,2022,10
1189,Community and Housing,Community Equipment Services,9100000679,24-Jan-23,7094.4,1182.4,181238,Pooled Equipment,410000              Social Community Care Supplies & Services,A,2022,10
1190,Community and Housing,Community Equipment Services,9100000694,26-Jan-23,469200,78200,181238,Pooled Equipment,410000              Social Community Care Supplies & Services,A,2022,10
1191,Community and Housing,REDACTED PERSONAL DATA,913839,04-Jan-23,3500.2,0,181418,Older People Placements - East,DIRECT PAYMENTS,R,2022,10
1192,Community and Housing,REDACTED PERSONAL DATA,926170,31-Jan-23,1400.08,0,181418,Older People Placements - East,DIRECT PAYMENTS,R,2022,10
